Organisation Name,Organisation Code,Effective Date,Directorate Where Expenditure Occurred,Supplier Name,Payment Date,Transaction Number,Gross Amount,Purpose of Spend,Merchant Category,Card Transactions
WALSALL COUNCIL,http://opendatacommunities.org/id/metropolitan-district-council/walsall ,30/09/2021,CHILDRENS SERVICES,WWW.FURNITUREATWORK.CO,01/07/2021,H59620210703AFFHXOWRH-1,69.60,ADMINISTRATIVE SUPPLIES-PURCHASE OF FURNITURE & EQUIPM,"EQUIPMENT, FURNITURE, AND HOME FURNISHINGS STORES ",GPC
WALSALL COUNCIL,http://opendatacommunities.org/id/metropolitan-district-council/walsall ,30/09/2021,RESOURCES AND TRANSFORMATION,CHICKEN JOES LTD,01/07/2021,H59620210703AGNCGACHE-1,43.50,CATERING - SCHOOLS-FOOD & DRINK SUPPLIES,CATERERS,GPC
WALSALL COUNCIL,http://opendatacommunities.org/id/metropolitan-district-council/walsall ,30/09/2021,CHILDRENS SERVICES,BEVERLEY HOTEL LTD - T,01/07/2021,H59620210703AQACSRICB-1,22.50,BED & BREAKFAST PAYMENTS-BED & BREAKFAST PAYMENTS,"HOTELS, MOTELS, RESORTS",GPC
WALSALL COUNCIL,http://opendatacommunities.org/id/metropolitan-district-council/walsall ,30/09/2021,RESOURCES AND TRANSFORMATION,CHICKEN JOES LTD,01/07/2021,H59620210703AUBVCVIRT-1,280.62,CATERING - SCHOOLS-FOOD & DRINK SUPPLIES,CATERERS,GPC
WALSALL COUNCIL,http://opendatacommunities.org/id/metropolitan-district-council/walsall ,30/09/2021,CHILDRENS SERVICES,REMOVALS.CO.UK,01/07/2021,H59620210703BFKDBIISU-1,112.08,LOCALITY FAMILY SUPPORT-NORTH-PROFESSIONAL SERVICES-PRIV CON,MOTOR FREIGHT CARRIERS,GPC
WALSALL COUNCIL,http://opendatacommunities.org/id/metropolitan-district-council/walsall ,30/09/2021,CHILDRENS SERVICES,TESCO STORE 2856,01/07/2021,H59620210703BQLTKABMG-1,121.15,TRANSITION AND LEAVING CARE PL-PURCHASE OF FURNITURE & EQUIPM,GROCERY STORES AND SUPERMARKETS,GPC
WALSALL COUNCIL,http://opendatacommunities.org/id/metropolitan-district-council/walsall ,30/09/2021,CHILDRENS SERVICES,ASDAN,01/07/2021,H59620210703BQRYBRNPB-1,10.98,LOOKED AFTER CHILDRENS SOCIAL -STATIONERY & GENERAL OFFICE SU,OTHER SCHOOLS AND EDUCATIONAL SERVICES,GPC
WALSALL COUNCIL,http://opendatacommunities.org/id/metropolitan-district-council/walsall ,30/09/2021,CHILDRENS SERVICES,ASDAN,01/07/2021,H59620210703BQRYBRNPB-2,81.00,LOOKED AFTER CHILDRENS SOCIAL -STATIONERY & GENERAL OFFICE SU,OTHER SCHOOLS AND EDUCATIONAL SERVICES,GPC
WALSALL COUNCIL,http://opendatacommunities.org/id/metropolitan-district-council/walsall ,30/09/2021,ADULT SOCIAL CARE,REMOVALS.CO.UK,01/07/2021,H59620210703BTJRIEJLF-1,201.60,HOLLYBANK-PROFESSIONAL SERVICES-PRIV CON,MOTOR FREIGHT CARRIERS,GPC
WALSALL COUNCIL,http://opendatacommunities.org/id/metropolitan-district-council/walsall ,30/09/2021,CHILDRENS SERVICES,ASDA GROCERIES ONLINE,01/07/2021,H59620210703BUTYDYJKY-1,10.25,FOOD TECHNOLOGY-MATERIALS,GROCERY STORES AND SUPERMARKETS,GPC
WALSALL COUNCIL,http://opendatacommunities.org/id/metropolitan-district-council/walsall ,30/09/2021,CHILDRENS SERVICES,ASDA GROCERIES ONLINE,01/07/2021,H59620210703BUTYDYJKY-2,35.09,FOOD TECHNOLOGY-MATERIALS,GROCERY STORES AND SUPERMARKETS,GPC
WALSALL COUNCIL,http://opendatacommunities.org/id/metropolitan-district-council/walsall ,30/09/2021,CHILDRENS SERVICES,AMZNMKTPLACE,01/07/2021,H59620210703CCDGNXWDH-1,59.97,ICT LEARNING RESOURCES-MATERIALS,MISCELLANEOUS AND SPECIALTY RETAIL STORES,GPC
WALSALL COUNCIL,http://opendatacommunities.org/id/metropolitan-district-council/walsall ,30/09/2021,RESOURCES AND TRANSFORMATION,CHICKEN JOES LTD,01/07/2021,H59620210703CKSIWYJVB-1,83.35,CATERING - SCHOOLS-FOOD & DRINK SUPPLIES,CATERERS,GPC
WALSALL COUNCIL,http://opendatacommunities.org/id/metropolitan-district-council/walsall ,30/09/2021,RESOURCES AND TRANSFORMATION,REMOVALS.CO.UK,01/07/2021,H59620210703CQNMFVCKW-1,705.60,RECHARGEABLE EQUIPMENT-COMPUTER EQUIPMENT,MOTOR FREIGHT CARRIERS,GPC
WALSALL COUNCIL,http://opendatacommunities.org/id/metropolitan-district-council/walsall ,30/09/2021,CHILDRENS SERVICES,WWW.FURNITUREATWORK.CO,01/07/2021,H59620210703CSCPFVKNT-1,456.00,ADMINISTRATIVE SUPPLIES-PURCHASE OF FURNITURE & EQUIPM,"EQUIPMENT, FURNITURE, AND HOME FURNISHINGS STORES ",GPC
WALSALL COUNCIL,http://opendatacommunities.org/id/metropolitan-district-council/walsall ,30/09/2021,CHILDRENS SERVICES,GENESYS OFFICE FURNITU,01/07/2021,H59620210703CYEQBIHWD-1,1828.80,LEAMORE PRIMARY SCHOOL-PURCHASE OF FURNITURE & EQUIPM,OFFICE AND COMMERCIAL FURNITURE,GPC
WALSALL COUNCIL,http://opendatacommunities.org/id/metropolitan-district-council/walsall ,30/09/2021,RESOURCES AND TRANSFORMATION,CHICKEN JOES LTD,01/07/2021,H59620210703DCIEBWSRD-1,47.24,CATERING - SCHOOLS-FOOD & DRINK SUPPLIES,CATERERS,GPC
WALSALL COUNCIL,http://opendatacommunities.org/id/metropolitan-district-council/walsall ,30/09/2021,CHILDRENS SERVICES,FINDEL EDUCATION,01/07/2021,H59620210703DIVCUIEFT-1,151.13,CURRICULUM STOCK-MATERIALS,OTHER DIRECT MARKETING-OTHER DIRECT MARKETERS,GPC
WALSALL COUNCIL,http://opendatacommunities.org/id/metropolitan-district-council/walsall ,30/09/2021,CHILDRENS SERVICES,GEN REGISTER OFFICE,01/07/2021,H59620210703EKKTIIRQX-1,14.00,TRANSITION AND LEAVING CARE PL-FEES & LICENCES,GOVERNMENT SERVICES,GPC
WALSALL COUNCIL,http://opendatacommunities.org/id/metropolitan-district-council/walsall ,30/09/2021,CHILDRENS SERVICES,BEVERLEY HOTEL LTD - T,01/07/2021,H59620210703FJDCNUSEP-1,249.00,BED & BREAKFAST PAYMENTS-BED & BREAKFAST PAYMENTS,"HOTELS, MOTELS, RESORTS",GPC
WALSALL COUNCIL,http://opendatacommunities.org/id/metropolitan-district-council/walsall ,30/09/2021,CHILDRENS SERVICES,MY.MORRISONS.COM,01/07/2021,H59620210703FVZODPEBR-1,20.00,ST FRANCIS OF ASSISI CATHOLIC -EXTERNAL TRAINING,GROCERY STORES AND SUPERMARKETS,GPC
WALSALL COUNCIL,http://opendatacommunities.org/id/metropolitan-district-council/walsall ,30/09/2021,CHILDRENS SERVICES,E.ON NEXT LTD,01/07/2021,H59620210703GBUULFYVD-1,6.06,WALSALL CRISIS SUPPORT SCHEME-OTHER ENERGY COSTS,"UTILITIES - ELECTRIC, GAS, SANITARY & WATER",GPC
WALSALL COUNCIL,http://opendatacommunities.org/id/metropolitan-district-council/walsall ,30/09/2021,CHILDRENS SERVICES,123 REG LTD,01/07/2021,H59620210703GCHHVBTOL-1,11.99,ADMINISTRATIVE SUPPLIES-STATIONERY & GENERAL OFFICE SU,DIRECT MARKETING CONTINUITY SUBSCRIPTION MERCHANTS,GPC
WALSALL COUNCIL,http://opendatacommunities.org/id/metropolitan-district-council/walsall ,30/09/2021,ECONOMY & ENVIRONMENT,THE BEST FUN LIMIT,01/07/2021,H59620210703GIIMNKQSB-1,432.00,BLOXWICH ACTIVE LIVING CENTRE-FEES & LICENCES,OTHER RECREATION SERVICES,GPC
WALSALL COUNCIL,http://opendatacommunities.org/id/metropolitan-district-council/walsall ,30/09/2021,RESOURCES AND TRANSFORMATION,CHICKEN JOES LTD,01/07/2021,H59620210703GUVBTTYHC-1,105.60,CATERING - SCHOOLS-FOOD & DRINK SUPPLIES,CATERERS,GPC
WALSALL COUNCIL,http://opendatacommunities.org/id/metropolitan-district-council/walsall ,30/09/2021,RESOURCES AND TRANSFORMATION,CHICKEN JOES LTD,01/07/2021,H59620210703GVOUTUBCW-1,256.34,CATERING - SCHOOLS-FOOD & DRINK SUPPLIES,CATERERS,GPC
WALSALL COUNCIL,http://opendatacommunities.org/id/metropolitan-district-council/walsall ,30/09/2021,CHILDRENS SERVICES,PAYPAL *ILLUMINATE,01/07/2021,H59620210703HNAZVCIVR-1,133.95,BUSINESS STUDIES-MATERIALS,BOOK STORES,GPC
WALSALL COUNCIL,http://opendatacommunities.org/id/metropolitan-district-council/walsall ,30/09/2021,CHILDRENS SERVICES,PAYPAL *ILLUMINATE,01/07/2021,H59620210703HNAZVCIVR-2,7.00,BUSINESS STUDIES-MATERIALS,BOOK STORES,GPC
WALSALL COUNCIL,http://opendatacommunities.org/id/metropolitan-district-council/walsall ,30/09/2021,RESOURCES AND TRANSFORMATION,REMOVALS.CO.UK,01/07/2021,H59620210703HNCVLJMVW-1,127.20,CATERING - MANAGEMENT-PROFESSIONAL SERVICES-PRIV CON,MOTOR FREIGHT CARRIERS,GPC
WALSALL COUNCIL,http://opendatacommunities.org/id/metropolitan-district-council/walsall ,30/09/2021,CHILDRENS SERVICES,QBAR,01/07/2021,H59620210703HSJZRKVSP-1,14.16,EDGE OF CARE TEAM-MATERIALS,BILLIARD AND POOL ESTABLISHMENTS,GPC
WALSALL COUNCIL,http://opendatacommunities.org/id/metropolitan-district-council/walsall ,30/09/2021,CHILDRENS SERVICES,AMZNMKTPLACE,01/07/2021,H59620210703IFUHMWKHK-1,22.99,OAKWOOD SCHOOL-FIRE FIGHTING EQUIPMENT MAINTE,MISCELLANEOUS AND SPECIALTY RETAIL STORES,GPC
WALSALL COUNCIL,http://opendatacommunities.org/id/metropolitan-district-council/walsall ,30/09/2021,CHILDRENS SERVICES,AMAZON.CO.UK*2037R9324,01/07/2021,H59620210703IWRRTMRNK-1,999.00,ICT LEARNING RESOURCES-PURCHASE OF FURNITURE & EQUIPM,OTHER DIRECT MARKETING-OTHER DIRECT MARKETERS,GPC
WALSALL COUNCIL,http://opendatacommunities.org/id/metropolitan-district-council/walsall ,30/09/2021,CHILDRENS SERVICES,PAYPAL *INFO,01/07/2021,H59620210703JBGXEPTIC-1,44.70,PELSALL VILLAGE SCHOOL-PERSONAL REQUISITES-MATERIALS,PROFESSIONAL SERVICES,GPC
WALSALL COUNCIL,http://opendatacommunities.org/id/metropolitan-district-council/walsall ,30/09/2021,RESOURCES AND TRANSFORMATION,CHICKEN JOES LTD,01/07/2021,H59620210703JCPIUTJDX-1,69.92,CATERING - SCHOOLS-FOOD & DRINK SUPPLIES,CATERERS,GPC
WALSALL COUNCIL,http://opendatacommunities.org/id/metropolitan-district-council/walsall ,30/09/2021,CHILDRENS SERVICES,HTTP://WWW.FORWARDPRODUC,01/07/2021,H59620210703JDJYEGRHF-1,43.88,ADMINISTRATIVE SUPPLIES-MATERIALS,"STATIONERY, OFFICE SUPPLIES AND WRITING PAPER",GPC
WALSALL COUNCIL,http://opendatacommunities.org/id/metropolitan-district-council/walsall ,30/09/2021,CHILDRENS SERVICES,THE HYGIENE HUB LI,01/07/2021,H59620210703JIJWXVBIK-1,95.76,ELMWOOD SCHOOL-CLEANING MATERIALS,"CLEANING AND MAINTENANCE, JANITORIAL SERVICES",GPC
WALSALL COUNCIL,http://opendatacommunities.org/id/metropolitan-district-council/walsall ,30/09/2021,ECONOMY & ENVIRONMENT,AMZNMKTPLACE AMAZON.CO.UK,01/07/2021,H59620210703JMNTKUAZP-1,44.02,DARLASTON SWIMMING AND FITNESS-MATERIALS,MISCELLANEOUS AND SPECIALTY RETAIL STORES,GPC
WALSALL COUNCIL,http://opendatacommunities.org/id/metropolitan-district-council/walsall ,30/09/2021,ECONOMY & ENVIRONMENT,HSE,01/07/2021,H59620210703JXXKOMENY-1,715.00,WALSALL OUTDOOR PURSUITS-FEES & LICENCES,GOVERNMENT SERVICES,GPC
WALSALL COUNCIL,http://opendatacommunities.org/id/metropolitan-district-council/walsall ,30/09/2021,RESOURCES AND TRANSFORMATION,CHICKEN JOES LTD,01/07/2021,H59620210703KDRODELVN-1,87.74,CATERING - SCHOOLS-FOOD & DRINK SUPPLIES,CATERERS,GPC
WALSALL COUNCIL,http://opendatacommunities.org/id/metropolitan-district-council/walsall ,30/09/2021,RESOURCES AND TRANSFORMATION,REMOVALS.CO.UK,01/07/2021,H59620210703KGOVKIJXY-1,83.23,GROWTH DEAL REVENUE-PROFESSIONAL SERVICES-PRIV CON,MOTOR FREIGHT CARRIERS,GPC
WALSALL COUNCIL,http://opendatacommunities.org/id/metropolitan-district-council/walsall ,30/09/2021,CHILDRENS SERVICES,AMZ*AMAZE PRODUCTS,01/07/2021,H59620210703KMJNKXPXL-1,-68.93,LOCALITY FAMILY SUPPORT-WEST-CLEANING MATERIALS,MISCELLANEOUS AND SPECIALTY RETAIL STORES,GPC
WALSALL COUNCIL,http://opendatacommunities.org/id/metropolitan-district-council/walsall ,30/09/2021,RESOURCES AND TRANSFORMATION,NOBISCO LIMITED,01/07/2021,H59620210703LDVKCVAJR-1,204.67,CATERING - SCHOOLS-FOOD & DRINK SUPPLIES,OTHER INDUSTRIAL SUPPLIES,GPC
WALSALL COUNCIL,http://opendatacommunities.org/id/metropolitan-district-council/walsall ,30/09/2021,CHILDRENS SERVICES,AMZNMKTPLACE,01/07/2021,H59620210703LOLNDCLBU-1,68.70,ADMINISTRATIVE SUPPLIES-STATIONERY & GENERAL OFFICE SU,MISCELLANEOUS AND SPECIALTY RETAIL STORES,GPC
WALSALL COUNCIL,http://opendatacommunities.org/id/metropolitan-district-council/walsall ,30/09/2021,CHILDRENS SERVICES,AMZNMKTPLACE,01/07/2021,H59620210703LORPOEHOD-1,9.48,EDGE OF CARE TEAM-STATIONERY & GENERAL OFFICE SU,MISCELLANEOUS AND SPECIALTY RETAIL STORES,GPC
WALSALL COUNCIL,http://opendatacommunities.org/id/metropolitan-district-council/walsall ,30/09/2021,RESOURCES AND TRANSFORMATION,REMOVALS.CO.UK,01/07/2021,H59620210703LPQKQQKXM-1,364.80,ELECTORAL SERVICES-PROFESSIONAL SERVICES-PRIV CON,MOTOR FREIGHT CARRIERS,GPC
WALSALL COUNCIL,http://opendatacommunities.org/id/metropolitan-district-council/walsall ,30/09/2021,RESOURCES AND TRANSFORMATION,CHICKEN JOES LTD,01/07/2021,H59620210703LVHDVWTHV-1,62.40,CATERING - SCHOOLS-FOOD & DRINK SUPPLIES,CATERERS,GPC
WALSALL COUNCIL,http://opendatacommunities.org/id/metropolitan-district-council/walsall ,30/09/2021,CHILDRENS SERVICES,REMOVALS.CO.UK,01/07/2021,H59620210703MPJILYAGQ-1,86.40,LOOKED AFTER CHILDRENS SOCIAL -PROFESSIONAL FEES & SERVICES,MOTOR FREIGHT CARRIERS,GPC
WALSALL COUNCIL,http://opendatacommunities.org/id/metropolitan-district-council/walsall ,30/09/2021,CHILDRENS SERVICES,AMAZON.CO.UK*2033H6NB4,01/07/2021,H59620210703NMZOTVFGD-1,33.31,LAW-MATERIALS,OTHER DIRECT MARKETING-OTHER DIRECT MARKETERS,GPC
WALSALL COUNCIL,http://opendatacommunities.org/id/metropolitan-district-council/walsall ,30/09/2021,RESOURCES AND TRANSFORMATION,CHICKEN JOES LTD,01/07/2021,H59620210703NNZERGNWC-1,59.52,CATERING - SCHOOLS-FOOD & DRINK SUPPLIES,CATERERS,GPC
WALSALL COUNCIL,http://opendatacommunities.org/id/metropolitan-district-council/walsall ,30/09/2021,CHILDRENS SERVICES,JANE CONSIDINE EDUCATI,01/07/2021,H59620210703OFQESPTYR-1,149.99,ENGLISH-MATERIALS,"SCHOOLS, ELEMENTARY AND SECONDARY",GPC
WALSALL COUNCIL,http://opendatacommunities.org/id/metropolitan-district-council/walsall ,30/09/2021,RESOURCES AND TRANSFORMATION,CHICKEN JOES LTD,01/07/2021,H59620210703OLCPXKROP-1,66.46,CATERING - SCHOOLS-FOOD & DRINK SUPPLIES,CATERERS,GPC
WALSALL COUNCIL,http://opendatacommunities.org/id/metropolitan-district-council/walsall ,30/09/2021,RESOURCES AND TRANSFORMATION,CHICKEN JOES LTD,01/07/2021,H59620210703ONHWENYOK-1,42.13,CATERING - SCHOOLS-FOOD & DRINK SUPPLIES,CATERERS,GPC
WALSALL COUNCIL,http://opendatacommunities.org/id/metropolitan-district-council/walsall ,30/09/2021,RESOURCES AND TRANSFORMATION,CHICKEN JOES LTD,01/07/2021,H59620210703ORGQMCUCC-1,62.96,CATERING - SCHOOLS-FOOD & DRINK SUPPLIES,CATERERS,GPC
WALSALL COUNCIL,http://opendatacommunities.org/id/metropolitan-district-council/walsall ,30/09/2021,CHILDRENS SERVICES,PAYPAL *NAPIERPRESS,01/07/2021,H59620210703OWZEUPRYJ-1,86.76,BUSINESS STUDIES-MATERIALS,MISCELLANEOUS PUBLISHING AND PRINTING,GPC
WALSALL COUNCIL,http://opendatacommunities.org/id/metropolitan-district-council/walsall ,30/09/2021,RESOURCES AND TRANSFORMATION,CHICKEN JOES LTD,01/07/2021,H59620210703PIVEWXVVP-1,46.40,CATERING - SCHOOLS-FOOD & DRINK SUPPLIES,CATERERS,GPC
WALSALL COUNCIL,http://opendatacommunities.org/id/metropolitan-district-council/walsall ,30/09/2021,CHILDRENS SERVICES,REMOVALS.CO.UK,01/07/2021,H59620210703PLEIBGJRT-1,86.40,SCHOOL IMPROVEMENT-VIRTUAL SCH-PROFESSIONAL FEES & SERVICES,MOTOR FREIGHT CARRIERS,GPC
WALSALL COUNCIL,http://opendatacommunities.org/id/metropolitan-district-council/walsall ,30/09/2021,CHILDRENS SERVICES,SCREWFIX DIRECT,01/07/2021,H59620210703PMTJLCCNW-1,314.14,CHUCKERY PRIMARY SCHOOL-OPERATIONAL MAINTENANCE,LUMBER & BUILDING MATERIALS STORES,GPC
WALSALL COUNCIL,http://opendatacommunities.org/id/metropolitan-district-council/walsall ,30/09/2021,RESOURCES AND TRANSFORMATION,CHICKEN JOES LTD,01/07/2021,H59620210703PVFELGNHJ-1,48.62,CATERING - SCHOOLS-FOOD & DRINK SUPPLIES,CATERERS,GPC
WALSALL COUNCIL,http://opendatacommunities.org/id/metropolitan-district-council/walsall ,30/09/2021,RESOURCES AND TRANSFORMATION,REMOVALS.CO.UK,01/07/2021,H59620210703QEQRGAUTV-1,54.90,CATERING - MANAGEMENT-PROFESSIONAL SERVICES-PRIV CON,MOTOR FREIGHT CARRIERS,GPC
WALSALL COUNCIL,http://opendatacommunities.org/id/metropolitan-district-council/walsall ,30/09/2021,CHILDRENS SERVICES,WCC DEBT INCOME,01/07/2021,H59620210703QMSNXHIGE-1,50.00,LEAMORE PRIMARY SCHOOL-EXTERNAL TRAINING,COMPUTER SOFTWARE STORES,GPC
WALSALL COUNCIL,http://opendatacommunities.org/id/metropolitan-district-council/walsall ,30/09/2021,ECONOMY & ENVIRONMENT,WWW BACKCS CO UK,01/07/2021,H59620210703QXKDYVJIS-1,990.00,COMMUNITY PROTECTION-PURCHASE OF FURNITURE & EQUIPM,OFFICE AND COMMERCIAL FURNITURE,GPC
WALSALL COUNCIL,http://opendatacommunities.org/id/metropolitan-district-council/walsall ,30/09/2021,RESOURCES AND TRANSFORMATION,NOBISCO LIMITED,01/07/2021,H59620210703RFELHUPSQ-1,50.81,CATERING - SCHOOLS-FOOD & DRINK SUPPLIES,OTHER INDUSTRIAL SUPPLIES,GPC
WALSALL COUNCIL,http://opendatacommunities.org/id/metropolitan-district-council/walsall ,30/09/2021,CHILDRENS SERVICES,ARGOS LTD,01/07/2021,H59620210703RGXUMLRSD-1,102.00,TARGETED YOUTH WORK-OTHER EXPENSES,DISCOUNT STORES,GPC
WALSALL COUNCIL,http://opendatacommunities.org/id/metropolitan-district-council/walsall ,30/09/2021,CHILDRENS SERVICES,REMOVALS.CO.UK,01/07/2021,H59620210703RPUVGFPGU-1,476.40,PROCESSING-PROFESSIONAL FEES & SERVICES,MOTOR FREIGHT CARRIERS,GPC
WALSALL COUNCIL,http://opendatacommunities.org/id/metropolitan-district-council/walsall ,30/09/2021,RESOURCES AND TRANSFORMATION,CHICKEN JOES LTD,01/07/2021,H59620210703SBHLEUQWW-1,77.62,CATERING - SCHOOLS-FOOD & DRINK SUPPLIES,CATERERS,GPC
WALSALL COUNCIL,http://opendatacommunities.org/id/metropolitan-district-council/walsall ,30/09/2021,RESOURCES AND TRANSFORMATION,CHICKEN JOES LTD,01/07/2021,H59620210703SPNAJOEXI-1,72.80,CATERING - SCHOOLS-FOOD & DRINK SUPPLIES,CATERERS,GPC
WALSALL COUNCIL,http://opendatacommunities.org/id/metropolitan-district-council/walsall ,30/09/2021,ECONOMY & ENVIRONMENT,J2 EFAX PLUS SERVICE,01/07/2021,H59620210703STHLYCTXQ-1,19.20,REGISTRAR-COMPUTER EQUIPMENT,DIRECT MARKETING CONTINUITY SUBSCRIPTION MERCHANTS,GPC
WALSALL COUNCIL,http://opendatacommunities.org/id/metropolitan-district-council/walsall ,30/09/2021,CHILDRENS SERVICES,NEWITTS.COM,01/07/2021,H59620210703TCPASMHTJ-1,42.30,PE RESOURCES-MATERIALS,"SPORTS APPAREL, RIDING APPAREL STORES",GPC
WALSALL COUNCIL,http://opendatacommunities.org/id/metropolitan-district-council/walsall ,30/09/2021,RESOURCES AND TRANSFORMATION,CHICKEN JOES LTD,01/07/2021,H59620210703TGMBYKCWK-1,131.32,CATERING - SCHOOLS-FOOD & DRINK SUPPLIES,CATERERS,GPC
WALSALL COUNCIL,http://opendatacommunities.org/id/metropolitan-district-council/walsall ,30/09/2021,CHILDRENS SERVICES,AMZNMKTPLACE,01/07/2021,H59620210703THCYBPRUV-1,34.35,ADMINISTRATIVE SUPPLIES-STATIONERY & GENERAL OFFICE SU,MISCELLANEOUS AND SPECIALTY RETAIL STORES,GPC
WALSALL COUNCIL,http://opendatacommunities.org/id/metropolitan-district-council/walsall ,30/09/2021,RESOURCES AND TRANSFORMATION,CHICKEN JOES LTD,01/07/2021,H59620210703TYFGWBIQG-1,85.80,CATERING - SCHOOLS-FOOD & DRINK SUPPLIES,CATERERS,GPC
WALSALL COUNCIL,http://opendatacommunities.org/id/metropolitan-district-council/walsall ,30/09/2021,CHILDRENS SERVICES,ROMAN WAY HOTEL,01/07/2021,H59620210703TYYKHICHE-1,172.00,SAFEGUARDING & FAMILY SUPPORT-ACCOMMODATION AND RELATED COST,"HOTELS, MOTELS, RESORTS",GPC
WALSALL COUNCIL,http://opendatacommunities.org/id/metropolitan-district-council/walsall ,30/09/2021,RESOURCES AND TRANSFORMATION,CHICKEN JOES LTD,01/07/2021,H59620210703UBMJGUMEA-1,92.84,CATERING - SCHOOLS-FOOD & DRINK SUPPLIES,CATERERS,GPC
WALSALL COUNCIL,http://opendatacommunities.org/id/metropolitan-district-council/walsall ,30/09/2021,ECONOMY & ENVIRONMENT,WETRANSFER,01/07/2021,H59620210703UCNVWBFPW-1,8.62,NAG - ART GALLERY MARKETING-OUTWORK PRINT & DESIGN,"COMPUTER PROGRAM, SYSTEM DESIGN",GPC
WALSALL COUNCIL,http://opendatacommunities.org/id/metropolitan-district-council/walsall ,30/09/2021,CHILDRENS SERVICES,EASYJET 000K27ZXJ6,01/07/2021,H59620210703UHHTTKZVF-1,163.96,LOOKED AFTER CHILDRENS SOCIAL -OTHER TRAVEL ALLOWANCES,EASYJET,GPC
WALSALL COUNCIL,http://opendatacommunities.org/id/metropolitan-district-council/walsall ,30/09/2021,CHILDRENS SERVICES,EASYJET 000K27ZXJ6,01/07/2021,H59620210703UHHTTKZVF-2,18.89,LOOKED AFTER CHILDRENS SOCIAL -OTHER TRAVEL ALLOWANCES,EASYJET,GPC
WALSALL COUNCIL,http://opendatacommunities.org/id/metropolitan-district-council/walsall ,30/09/2021,CHILDRENS SERVICES,ASDA GROCERIES ONLINE,01/07/2021,H59620210703UIFKUWYBG-1,-0.30,FOOD TECHNOLOGY-MATERIALS,GROCERY STORES AND SUPERMARKETS,GPC
WALSALL COUNCIL,http://opendatacommunities.org/id/metropolitan-district-council/walsall ,30/09/2021,RESOURCES AND TRANSFORMATION,CHICKEN JOES LTD,01/07/2021,H59620210703UOVBMIJKN-1,57.38,CATERING - SCHOOLS-FOOD & DRINK SUPPLIES,CATERERS,GPC
WALSALL COUNCIL,http://opendatacommunities.org/id/metropolitan-district-council/walsall ,30/09/2021,CHILDRENS SERVICES,PP*GLMS,01/07/2021,H59620210703URYMBWTKN-1,213.00,OAKWOOD SCHOOL-OPERATIONAL MAINTENANCE,"AUTOMOTIVE PARTS, ACCESSORIES STORES",GPC
WALSALL COUNCIL,http://opendatacommunities.org/id/metropolitan-district-council/walsall ,30/09/2021,CHILDRENS SERVICES,POST OFFICE COUNTER,01/07/2021,H59620210703USKMJFQEV-1,170.00,LOOKED AFTER CHILDRENS SOCIAL -POSTAGES & COURIER SERVICES,POSTAL SERVICES - GOVERNMENT ONLY,GPC
WALSALL COUNCIL,http://opendatacommunities.org/id/metropolitan-district-council/walsall ,30/09/2021,CHILDRENS SERVICES,HOTEL AT BOOKING.COM,01/07/2021,H59620210703UZKDVWSOS-1,522.00,BED & BREAKFAST PAYMENTS-BED & BREAKFAST PAYMENTS,"HOTELS, MOTELS, RESORTS",GPC
WALSALL COUNCIL,http://opendatacommunities.org/id/metropolitan-district-council/walsall ,30/09/2021,CHILDRENS SERVICES,POST OFFICE COUNTER,01/07/2021,H59620210703VDPBGNOMU-1,132.00,CHILDREN'S COMMISSIONING-POSTAGES & COURIER SERVICES,POSTAL SERVICES - GOVERNMENT ONLY,GPC
WALSALL COUNCIL,http://opendatacommunities.org/id/metropolitan-district-council/walsall ,30/09/2021,CHILDRENS SERVICES,AMAZON.CO.UK*204X44N34,01/07/2021,H59620210703VQQMQEHSH-1,59.22,E19-LIBRARY BOOKS,OTHER DIRECT MARKETING-OTHER DIRECT MARKETERS,GPC
WALSALL COUNCIL,http://opendatacommunities.org/id/metropolitan-district-council/walsall ,30/09/2021,CHILDRENS SERVICES,ALDI 772 129,01/07/2021,H59620210703VTFEQXQYN-1,4.55,HOUSING YEI/ESF MATCH-CLEANING MATERIALS,GROCERY STORES AND SUPERMARKETS,GPC
WALSALL COUNCIL,http://opendatacommunities.org/id/metropolitan-district-council/walsall ,30/09/2021,RESOURCES AND TRANSFORMATION,CHICKEN JOES LTD,01/07/2021,H59620210703WIRYYIXHM-1,103.58,CATERING - SCHOOLS-FOOD & DRINK SUPPLIES,CATERERS,GPC
WALSALL COUNCIL,http://opendatacommunities.org/id/metropolitan-district-council/walsall ,30/09/2021,RESOURCES AND TRANSFORMATION,REMOVALS.CO.UK,01/07/2021,H59620210703WQETJOXRP-1,43.44,HEALTH & SAFETY-PROFESSIONAL SERVICES-PRIV CON,MOTOR FREIGHT CARRIERS,GPC
WALSALL COUNCIL,http://opendatacommunities.org/id/metropolitan-district-council/walsall ,30/09/2021,CHILDRENS SERVICES,WEST MIDLAND CARD,01/07/2021,H59620210703XNJIQPXWX-1,3.00,TRANSITION AND LEAVING CARE PL-OFFICERS & STAFF PUBLIC TRANSP,BUS LINES,GPC
WALSALL COUNCIL,http://opendatacommunities.org/id/metropolitan-district-council/walsall ,30/09/2021,ECONOMY & ENVIRONMENT,IOMA CLOTHING CO LTD,01/07/2021,H59620210703YCERRTOCB-1,44.82,WALSALL GALA SWIMMING AND FITN-CLOTHING & LAUNDRY,MENS AND WOMENS CLOTHING STORES,GPC
WALSALL COUNCIL,http://opendatacommunities.org/id/metropolitan-district-council/walsall ,30/09/2021,ECONOMY & ENVIRONMENT,AMZ*TOOLDEN,01/07/2021,H59620210703YHPIGDHKC-1,20.25,FLEET-PURCHASE OF FURNITURE & EQUIPM,MISCELLANEOUS HOUSE FURNISHING SPECIALTY SHOPS,GPC
WALSALL COUNCIL,http://opendatacommunities.org/id/metropolitan-district-council/walsall ,30/09/2021,CHILDRENS SERVICES,BGRP LTD,01/07/2021,H59620210703YJGKXNMKL-1,261.95,LEAMORE PRIMARY SCHOOL-EXTERNAL TRAINING,"EQUIPMENT, FURNITURE, AND HOME FURNISHINGS STORES ",GPC
WALSALL COUNCIL,http://opendatacommunities.org/id/metropolitan-district-council/walsall ,30/09/2021,RESOURCES AND TRANSFORMATION,CHICKEN JOES LTD,01/07/2021,H59620210703YNYQEHPLY-1,36.00,CATERING - SCHOOLS-FOOD & DRINK SUPPLIES,CATERERS,GPC
WALSALL COUNCIL,http://opendatacommunities.org/id/metropolitan-district-council/walsall ,30/09/2021,ECONOMY & ENVIRONMENT,CLEAR BUSINESS,01/07/2021,H59620210703ZUMEFQVPW-1,48.60,COMMUNITY LIAISON-OTHER ENERGY COSTS,"UTILITIES - ELECTRIC, GAS, SANITARY & WATER",GPC
WALSALL COUNCIL,http://opendatacommunities.org/id/metropolitan-district-council/walsall ,30/09/2021,ECONOMY & ENVIRONMENT,CLEAR BUSINESS,01/07/2021,H59620210703ZUMEFQVPW-2,358.51,COMMUNITY LIAISON-OTHER ENERGY COSTS,"UTILITIES - ELECTRIC, GAS, SANITARY & WATER",GPC
WALSALL COUNCIL,http://opendatacommunities.org/id/metropolitan-district-council/walsall ,30/09/2021,ECONOMY & ENVIRONMENT,CLEAR BUSINESS,01/07/2021,H59620210703ZUMEFQVPW-3,42.44,COMMUNITY LIAISON-OTHER ENERGY COSTS,"UTILITIES - ELECTRIC, GAS, SANITARY & WATER",GPC
WALSALL COUNCIL,http://opendatacommunities.org/id/metropolitan-district-council/walsall ,30/09/2021,CHILDRENS SERVICES,247 CARS WILLENHALL LTD,01/07/2021,H59620210706ACGMGQAHF-1,-16.70,INITIAL RESPONSE SERVICE-TAXI FARES,TAXI SERVICES,GPC
WALSALL COUNCIL,http://opendatacommunities.org/id/metropolitan-district-council/walsall ,30/09/2021,CHILDRENS SERVICES,247 CARS WILLENHALL LTD,01/07/2021,H59620210706AVVBZCGXV-1,16.90,INITIAL RESPONSE SERVICE-TAXI FARES,TAXI SERVICES,GPC
WALSALL COUNCIL,http://opendatacommunities.org/id/metropolitan-district-council/walsall ,30/09/2021,CHILDRENS SERVICES,247 CARS WILLENHALL LTD,01/07/2021,H59620210706BRUUDNUFI-1,16.70,INITIAL RESPONSE SERVICE-TAXI FARES,TAXI SERVICES,GPC
WALSALL COUNCIL,http://opendatacommunities.org/id/metropolitan-district-council/walsall ,30/09/2021,CHILDRENS SERVICES,WWW.MYPOSTSHOP.COM,01/07/2021,H59620210706CCKOSSHXR-1,435.99,FAMILY PLACEMENTS-STATIONERY & GENERAL OFFICE SU,"STATIONERY, OFFICE SUPPLIES AND WRITING PAPER",GPC
WALSALL COUNCIL,http://opendatacommunities.org/id/metropolitan-district-council/walsall ,30/09/2021,CHILDRENS SERVICES,PREMIER INN44029480,01/07/2021,H59620210706EYVTEGSSE-1,190.00,LOOKED AFTER CHILDRENS SOCIAL -HOTEL ACCOMMODATION-EMPLOYEES,PREMIER INN,GPC
WALSALL COUNCIL,http://opendatacommunities.org/id/metropolitan-district-council/walsall ,30/09/2021,CHILDRENS SERVICES,247 CARS WILLENHALL LTD,01/07/2021,H59620210706MYWXXISUH-1,6.70,SAFEGUARDING & FAMILY SUPPORT-TAXI FARES,TAXI SERVICES,GPC
WALSALL COUNCIL,http://opendatacommunities.org/id/metropolitan-district-council/walsall ,30/09/2021,CHILDRENS SERVICES,247 CARS WILLENHALL LTD,01/07/2021,H59620210706NBNRBESJZ-1,-16.90,INITIAL RESPONSE SERVICE-TAXI FARES,TAXI SERVICES,GPC
WALSALL COUNCIL,http://opendatacommunities.org/id/metropolitan-district-council/walsall ,30/09/2021,CHILDRENS SERVICES,247 CARS WILLENHALL LTD,01/07/2021,H59620210706QWTGUEPBH-1,6.70,SAFEGUARDING & FAMILY SUPPORT-TAXI FARES,TAXI SERVICES,GPC
WALSALL COUNCIL,http://opendatacommunities.org/id/metropolitan-district-council/walsall ,30/09/2021,RESOURCES AND TRANSFORMATION,WWW.SCC.COM,01/07/2021,H59620210706XFYGWBEVK-1,141.77,RECHARGEABLE EQUIPMENT-COMPUTER EQUIPMENT,"COMPUTERS, COMPUTER PERIPHERAL EQUIPMENT, SOFTWARE",GPC
WALSALL COUNCIL,http://opendatacommunities.org/id/metropolitan-district-council/walsall ,30/09/2021,ECONOMY & ENVIRONMENT,FOREIGN EXCHANGE FEE,02/07/2021,H59620210703SRVDBSVZX-1,0.24,NAG - ART GALLERY MARKETING-OUTWORK PRINT & DESIGN,,GPC
WALSALL COUNCIL,http://opendatacommunities.org/id/metropolitan-district-council/walsall ,30/09/2021,RESOURCES AND TRANSFORMATION,NOBISCO LIMITED,02/07/2021,H59620210706AESENFOKY-1,86.62,CATERING - SCHOOLS-FOOD & DRINK SUPPLIES,OTHER INDUSTRIAL SUPPLIES,GPC
WALSALL COUNCIL,http://opendatacommunities.org/id/metropolitan-district-council/walsall ,30/09/2021,CHILDRENS SERVICES,WWW.PARTYDELIGHTS.CO.U,02/07/2021,H59620210706ATVHPRHLW-1,55.92,CONTINGENCY-MATERIALS,"CARD, GIFT, NOVELTY, AND SOUVENIR SHOPS",GPC
WALSALL COUNCIL,http://opendatacommunities.org/id/metropolitan-district-council/walsall ,30/09/2021,CHILDRENS SERVICES,AMZNMKTPLACE,02/07/2021,H59620210706BDRDBOZQV-1,58.78,CONTACT SESSIONAL STAFF-STATIONERY & GENERAL OFFICE SU,MISCELLANEOUS AND SPECIALTY RETAIL STORES,GPC
WALSALL COUNCIL,http://opendatacommunities.org/id/metropolitan-district-council/walsall ,30/09/2021,CHILDRENS SERVICES,SP SERVICES UK LTD,02/07/2021,H59620210706BJOUWMUJM-1,106.20,ADMINISTRATIVE SUPPLIES-MATERIALS,"HEALTH PRACTITIONERS, MEDICAL SERVICES",GPC
WALSALL COUNCIL,http://opendatacommunities.org/id/metropolitan-district-council/walsall ,30/09/2021,RESOURCES AND TRANSFORMATION,WM MORRISONS STORE,02/07/2021,H59620210706BKIFTQTHK-1,20.24,CATERING - SCHOOLS-FOOD & DRINK SUPPLIES,GROCERY STORES AND SUPERMARKETS,GPC
WALSALL COUNCIL,http://opendatacommunities.org/id/metropolitan-district-council/walsall ,30/09/2021,CHILDRENS SERVICES,AMAZON.CO.UK*203VO3JK4,02/07/2021,H59620210706BOTYYPIOM-1,36.47,VIRTUAL SCHOOL CENTRAL PUPIL P-OTHER EXPENSES,OTHER DIRECT MARKETING-OTHER DIRECT MARKETERS,GPC
WALSALL COUNCIL,http://opendatacommunities.org/id/metropolitan-district-council/walsall ,30/09/2021,CHILDRENS SERVICES,247 CARS WILLENHALL LTD,02/07/2021,H59620210706CDWEXKERO-1,-6.70,SAFEGUARDING & FAMILY SUPPORT-TAXI FARES,TAXI SERVICES,GPC
WALSALL COUNCIL,http://opendatacommunities.org/id/metropolitan-district-council/walsall ,30/09/2021,CHILDRENS SERVICES,WWW.GL-EDUCATION.C,02/07/2021,H59620210706CFJSHONXT-1,-120.31,EDUCATIONAL PSYCHOLOGISTS-LIBRARY BOOKS,BOOK STORES,GPC
WALSALL COUNCIL,http://opendatacommunities.org/id/metropolitan-district-council/walsall ,30/09/2021,RESOURCES AND TRANSFORMATION,NOBISCO LIMITED,02/07/2021,H59620210706CNDBENOIG-1,196.55,CATERING - SCHOOLS-FOOD & DRINK SUPPLIES,OTHER INDUSTRIAL SUPPLIES,GPC
WALSALL COUNCIL,http://opendatacommunities.org/id/metropolitan-district-council/walsall ,30/09/2021,CHILDRENS SERVICES,BEVERLEY HOTEL LTD - T,02/07/2021,H59620210706COBDUHFVL-1,271.50,BED & BREAKFAST PAYMENTS-BED & BREAKFAST PAYMENTS,"HOTELS, MOTELS, RESORTS",GPC
WALSALL COUNCIL,http://opendatacommunities.org/id/metropolitan-district-council/walsall ,30/09/2021,RESOURCES AND TRANSFORMATION,ARTHUR BRETT CATER,02/07/2021,H59620210706CXALTTMPW-1,29.50,CATERING - SCHOOLS-FOOD & DRINK SUPPLIES,MISCELLANEOUS FOOD STORES & CONVENIENCE STORES,GPC
WALSALL COUNCIL,http://opendatacommunities.org/id/metropolitan-district-council/walsall ,30/09/2021,CHILDRENS SERVICES,INVESTINTECH COM INC,02/07/2021,H59620210706DBJJJQGSI-1,36.00,ICT LEARNING RESOURCES-MATERIALS,"COMPUTERS, COMPUTER PERIPHERAL EQUIPMENT, SOFTWARE",GPC
WALSALL COUNCIL,http://opendatacommunities.org/id/metropolitan-district-council/walsall ,30/09/2021,CHILDRENS SERVICES,WWW.BANNERUK.COM,02/07/2021,H59620210706FSIHTSHJE-1,166.80,SAFEGUARDING & FAMILY SUPPORT-STATIONERY & GENERAL OFFICE SU,"STATIONERY, OFFICE SUPPLIES AND WRITING PAPER",GPC
WALSALL COUNCIL,http://opendatacommunities.org/id/metropolitan-district-council/walsall ,30/09/2021,CHILDRENS SERVICES,ESSO PRIMLEY SERVICE STAT,02/07/2021,H59620210706GKQYEVPAF-1,1.69,EDGE OF CARE TEAM-FOOD & DRINK SUPPLIES,SERVICE STATIONS,GPC
WALSALL COUNCIL,http://opendatacommunities.org/id/metropolitan-district-council/walsall ,30/09/2021,RESOURCES AND TRANSFORMATION,ARTHUR BRETT CATER,02/07/2021,H59620210706GVWLGBBHG-1,64.54,CATERING - SCHOOLS-FOOD & DRINK SUPPLIES,MISCELLANEOUS FOOD STORES & CONVENIENCE STORES,GPC
WALSALL COUNCIL,http://opendatacommunities.org/id/metropolitan-district-council/walsall ,30/09/2021,RESOURCES AND TRANSFORMATION,NOBISCO LIMITED,02/07/2021,H59620210706HEPZFLOPJ-1,89.08,CATERING - SCHOOLS-FOOD & DRINK SUPPLIES,OTHER INDUSTRIAL SUPPLIES,GPC
WALSALL COUNCIL,http://opendatacommunities.org/id/metropolitan-district-council/walsall ,30/09/2021,CHILDRENS SERVICES,EDF ENERGY-DOM,02/07/2021,H59620210706HVHKVNSEL-1,252.17,WALSALL CRISIS SUPPORT SCHEME-OTHER ENERGY COSTS,"UTILITIES - ELECTRIC, GAS, SANITARY & WATER",GPC
WALSALL COUNCIL,http://opendatacommunities.org/id/metropolitan-district-council/walsall ,30/09/2021,RESOURCES AND TRANSFORMATION,NOBISCO LIMITED,02/07/2021,H59620210706IBTPIKTBO-1,94.96,CATERING - SCHOOLS-FOOD & DRINK SUPPLIES,OTHER INDUSTRIAL SUPPLIES,GPC
WALSALL COUNCIL,http://opendatacommunities.org/id/metropolitan-district-council/walsall ,30/09/2021,CHILDRENS SERVICES,AMZNMKTPLACE,02/07/2021,H59620210706JJJBFTTJI-1,29.61,ADMINISTRATIVE SUPPLIES-STATIONERY & GENERAL OFFICE SU,MISCELLANEOUS AND SPECIALTY RETAIL STORES,GPC
WALSALL COUNCIL,http://opendatacommunities.org/id/metropolitan-district-council/walsall ,30/09/2021,ECONOMY & ENVIRONMENT,AMZNMKTPLACE AMAZON.CO.UK,02/07/2021,H59620210706JQWXLEJEE-1,14.47,DARLASTON SWIMMING AND FITNESS-MATERIALS,MISCELLANEOUS AND SPECIALTY RETAIL STORES,GPC
WALSALL COUNCIL,http://opendatacommunities.org/id/metropolitan-district-council/walsall ,30/09/2021,CHILDRENS SERVICES,WALSALL COUNCIL,02/07/2021,H59620210706JURWUOXNJ-1,42.22,PELSALL VILLAGE SCHOOL-POLICE CHECKS,GOVERNMENT SERVICES,GPC
WALSALL COUNCIL,http://opendatacommunities.org/id/metropolitan-district-council/walsall ,30/09/2021,ECONOMY & ENVIRONMENT,B & Q 1276,02/07/2021,H59620210706JVPDTKUQV-1,34.50,COMMUNITY LIAISON-PURCHASE OF FURNITURE & EQUIPM,HOME SUPPLY WAREHOUSE STORES,GPC
WALSALL COUNCIL,http://opendatacommunities.org/id/metropolitan-district-council/walsall ,30/09/2021,CHILDRENS SERVICES,W M MORRISONS.COM,02/07/2021,H59620210706KSYLQGFBW-1,18.96,BLUEBELLS-FOOD & DRINK SUPPLIES,GROCERY STORES AND SUPERMARKETS,GPC
WALSALL COUNCIL,http://opendatacommunities.org/id/metropolitan-district-council/walsall ,30/09/2021,CHILDRENS SERVICES,W M MORRISONS.COM,02/07/2021,H59620210706KSYLQGFBW-2,109.72,BLUEBELLS-FOOD & DRINK SUPPLIES,GROCERY STORES AND SUPERMARKETS,GPC
WALSALL COUNCIL,http://opendatacommunities.org/id/metropolitan-district-council/walsall ,30/09/2021,CHILDRENS SERVICES,POST OFFICE COUNTER,02/07/2021,H59620210706KXBARLKLT-1,5.23,TARGETED YOUTH WORK-POSTAGES & COURIER SERVICES,POSTAL SERVICES - GOVERNMENT ONLY,GPC
WALSALL COUNCIL,http://opendatacommunities.org/id/metropolitan-district-council/walsall ,30/09/2021,ECONOMY & ENVIRONMENT,B & Q 1276,02/07/2021,H59620210706LAUERVEKP-1,43.50,COMMUNITY LIAISON-PURCHASE OF FURNITURE & EQUIPM,HOME SUPPLY WAREHOUSE STORES,GPC
WALSALL COUNCIL,http://opendatacommunities.org/id/metropolitan-district-council/walsall ,30/09/2021,CHILDRENS SERVICES,WWW.FURNITUREATWORK.CO,02/07/2021,H59620210706LBGLGHIGG-1,183.60,ADMINISTRATIVE SUPPLIES-PURCHASE OF FURNITURE & EQUIPM,"EQUIPMENT, FURNITURE, AND HOME FURNISHINGS STORES ",GPC
WALSALL COUNCIL,http://opendatacommunities.org/id/metropolitan-district-council/walsall ,30/09/2021,RESOURCES AND TRANSFORMATION,NOBISCO LIMITED,02/07/2021,H59620210706LOHZYFPSL-1,104.45,CATERING - SCHOOLS-FOOD & DRINK SUPPLIES,OTHER INDUSTRIAL SUPPLIES,GPC
WALSALL COUNCIL,http://opendatacommunities.org/id/metropolitan-district-council/walsall ,30/09/2021,ECONOMY & ENVIRONMENT,AMZNMKTPLACE,02/07/2021,H59620210706LPMCLDZOS-1,8.10,LIBRARY OPERATIONS - MOBILE SE-STATIONERY & GENERAL OFFICE SU,MISCELLANEOUS AND SPECIALTY RETAIL STORES,GPC
WALSALL COUNCIL,http://opendatacommunities.org/id/metropolitan-district-council/walsall ,30/09/2021,CHILDRENS SERVICES,WALSALL COUNCIL,02/07/2021,H59620210706LYXQSSYBE-1,42.22,ST FRANCIS OF ASSISI CATHOLIC -POLICE CHECKS,GOVERNMENT SERVICES,GPC
WALSALL COUNCIL,http://opendatacommunities.org/id/metropolitan-district-council/walsall ,30/09/2021,CHILDRENS SERVICES,ADOBE ACROPRO SUBS,02/07/2021,H59620210706MFCRUOXIK-1,15.17,ADMINISTRATIVE SUPPLIES-MATERIALS,COMPUTER SOFTWARE STORES,GPC
WALSALL COUNCIL,http://opendatacommunities.org/id/metropolitan-district-council/walsall ,30/09/2021,CHILDRENS SERVICES,J AND N SUPERFOOD STOR,02/07/2021,H59620210706MHBZBYYRW-1,2.89,EDGE OF CARE TEAM-FOOD & DRINK SUPPLIES,GROCERY STORES AND SUPERMARKETS,GPC
WALSALL COUNCIL,http://opendatacommunities.org/id/metropolitan-district-council/walsall ,30/09/2021,RESOURCES AND TRANSFORMATION,WWW.BANNERUK.COM,02/07/2021,H59620210706NNFKYQEGZ-1,87.00,CENTRALISED STATIONERY-STATIONERY & GENERAL OFFICE SU,"STATIONERY, OFFICE SUPPLIES AND WRITING PAPER",GPC
WALSALL COUNCIL,http://opendatacommunities.org/id/metropolitan-district-council/walsall ,30/09/2021,RESOURCES AND TRANSFORMATION,NOBISCO LIMITED,02/07/2021,H59620210706NQIWUZUXM-1,244.57,CATERING - SCHOOLS-FOOD & DRINK SUPPLIES,OTHER INDUSTRIAL SUPPLIES,GPC
WALSALL COUNCIL,http://opendatacommunities.org/id/metropolitan-district-council/walsall ,30/09/2021,ADULT SOCIAL CARE,AMZNMKTPLACE,02/07/2021,H59620210706OHHLICEWC-1,219.99,COVID-19 OUTBREAK MANAGEMENT G-PURCHASE OF FURNITURE & EQUIPM,MISCELLANEOUS AND SPECIALTY RETAIL STORES,GPC
WALSALL COUNCIL,http://opendatacommunities.org/id/metropolitan-district-council/walsall ,30/09/2021,RESOURCES AND TRANSFORMATION,NOBISCO LIMITED,02/07/2021,H59620210706OOUIVHJWW-1,40.56,CATERING - SCHOOLS-FOOD & DRINK SUPPLIES,OTHER INDUSTRIAL SUPPLIES,GPC
WALSALL COUNCIL,http://opendatacommunities.org/id/metropolitan-district-council/walsall ,30/09/2021,CHILDRENS SERVICES,WWW.EASYEQUIPMENT.COM,02/07/2021,H59620210706OUGJXTWJQ-1,1439.99,GENERAL-MATERIALS,OTHER COMMERCIAL EQUIPMENT,GPC
WALSALL COUNCIL,http://opendatacommunities.org/id/metropolitan-district-council/walsall ,30/09/2021,CHILDRENS SERVICES,BRUNEL ENGRAVING ECOM,02/07/2021,H59620210706OZOCZITCV-1,142.92,ADMINISTRATIVE SUPPLIES-MATERIALS,OTHER DURABLE GOODS,GPC
WALSALL COUNCIL,http://opendatacommunities.org/id/metropolitan-district-council/walsall ,30/09/2021,CHILDRENS SERVICES,POST OFFICE COUNTER,02/07/2021,H59620210706PFVOAPPGE-1,4.50,LOOKED AFTER CHILDRENS SOCIAL -POSTAGES & COURIER SERVICES,POSTAL SERVICES - GOVERNMENT ONLY,GPC
WALSALL COUNCIL,http://opendatacommunities.org/id/metropolitan-district-council/walsall ,30/09/2021,CHILDRENS SERVICES,WALSALL COUNCIL,02/07/2021,H59620210706PGSEOPLQE-1,42.22,ST FRANCIS OF ASSISI CATHOLIC -POLICE CHECKS,GOVERNMENT SERVICES,GPC
WALSALL COUNCIL,http://opendatacommunities.org/id/metropolitan-district-council/walsall ,30/09/2021,RESOURCES AND TRANSFORMATION,NOBISCO LIMITED,02/07/2021,H59620210706QIYGRGHBF-1,67.10,CATERING - SCHOOLS-FOOD & DRINK SUPPLIES,OTHER INDUSTRIAL SUPPLIES,GPC
WALSALL COUNCIL,http://opendatacommunities.org/id/metropolitan-district-council/walsall ,30/09/2021,CHILDRENS SERVICES,AMZNMKTPLACE,02/07/2021,H59620210706TSPOSKYJR-1,1.92,EDGE OF CARE TEAM-STATIONERY & GENERAL OFFICE SU,MISCELLANEOUS AND SPECIALTY RETAIL STORES,GPC
WALSALL COUNCIL,http://opendatacommunities.org/id/metropolitan-district-council/walsall ,30/09/2021,RESOURCES AND TRANSFORMATION,ARTHUR BRETT CATER,02/07/2021,H59620210706UNBVUGIOU-1,64.04,CATERING - SCHOOLS-FOOD & DRINK SUPPLIES,MISCELLANEOUS FOOD STORES & CONVENIENCE STORES,GPC
WALSALL COUNCIL,http://opendatacommunities.org/id/metropolitan-district-council/walsall ,30/09/2021,RESOURCES AND TRANSFORMATION,ARTHUR BRETT CATER,02/07/2021,H59620210706UNWIVHDGB-1,12.15,CATERING - SCHOOLS-FOOD & DRINK SUPPLIES,MISCELLANEOUS FOOD STORES & CONVENIENCE STORES,GPC
WALSALL COUNCIL,http://opendatacommunities.org/id/metropolitan-district-council/walsall ,30/09/2021,RESOURCES AND TRANSFORMATION,WALSALL COUNCIL,02/07/2021,H59620210706URMKPIOXF-1,20.50,YEI ESF FUNDING-FEES & LICENCES,GOVERNMENT SERVICES,GPC
WALSALL COUNCIL,http://opendatacommunities.org/id/metropolitan-district-council/walsall ,30/09/2021,RESOURCES AND TRANSFORMATION,WALSALL COUNCIL,02/07/2021,H59620210706URMKPIOXF-2,20.50,YEI (IMPACT) PROGRAMME-FEES & LICENCES,GOVERNMENT SERVICES,GPC
WALSALL COUNCIL,http://opendatacommunities.org/id/metropolitan-district-council/walsall ,30/09/2021,ECONOMY & ENVIRONMENT,BLACK COUNTRY PAINTS,02/07/2021,H59620210706VHOQROLCB-1,210.00,WALSALL OUTDOOR PURSUITS-MATERIALS,"GLASS, PAINT AND WALLPAPER STORES",GPC
WALSALL COUNCIL,http://opendatacommunities.org/id/metropolitan-district-council/walsall ,30/09/2021,RESOURCES AND TRANSFORMATION,NOBISCO LIMITED,02/07/2021,H59620210706VRIINONUW-1,162.31,CATERING - SCHOOLS-FOOD & DRINK SUPPLIES,OTHER INDUSTRIAL SUPPLIES,GPC
WALSALL COUNCIL,http://opendatacommunities.org/id/metropolitan-district-council/walsall ,30/09/2021,CHILDRENS SERVICES,BEVERLEY HOTEL LTD - T,02/07/2021,H59620210706WWCRBCJXD-1,576.10,BED & BREAKFAST PAYMENTS-BED & BREAKFAST PAYMENTS,"HOTELS, MOTELS, RESORTS",GPC
WALSALL COUNCIL,http://opendatacommunities.org/id/metropolitan-district-council/walsall ,30/09/2021,CHILDRENS SERVICES,AMAZON.CO.UK*204E54JH4,02/07/2021,H59620210706XMKSFQWKD-1,12.16,VIRTUAL SCHOOL CENTRAL PUPIL P-OTHER EXPENSES,OTHER DIRECT MARKETING-OTHER DIRECT MARKETERS,GPC
WALSALL COUNCIL,http://opendatacommunities.org/id/metropolitan-district-council/walsall ,30/09/2021,CHILDRENS SERVICES,SPAR STORE ALDRIDGE,02/07/2021,H59620210706YGNGUIHBR-1,6.76,EDGE OF CARE TEAM-FOOD & DRINK SUPPLIES,GROCERY STORES AND SUPERMARKETS,GPC
WALSALL COUNCIL,http://opendatacommunities.org/id/metropolitan-district-council/walsall ,30/09/2021,RESOURCES AND TRANSFORMATION,NOBISCO LIMITED,02/07/2021,H59620210706YIFGSELEY-1,266.93,CATERING - SCHOOLS-FOOD & DRINK SUPPLIES,OTHER INDUSTRIAL SUPPLIES,GPC
WALSALL COUNCIL,http://opendatacommunities.org/id/metropolitan-district-council/walsall ,30/09/2021,CHILDRENS SERVICES,VIRTUAL COLLEGE LIMITE,02/07/2021,H59620210706YQWOTSOQL-1,28.80,BLUEBELLS-EXTERNAL TRAINING,OTHER SCHOOLS AND EDUCATIONAL SERVICES,GPC
WALSALL COUNCIL,http://opendatacommunities.org/id/metropolitan-district-council/walsall ,30/09/2021,CHILDRENS SERVICES,DEFIBWORLD,02/07/2021,H59620210706YRIQWBJYG-1,121.59,STUDENT SUPPORT & MENTORING-MATERIALS,"ORGANIZATIONS, CHARITABLE AND SOCIAL SERVICE",GPC
WALSALL COUNCIL,http://opendatacommunities.org/id/metropolitan-district-council/walsall ,30/09/2021,CHILDRENS SERVICES,NEWITTS.COM,02/07/2021,H59620210706YSJLRSJDR-1,59.90,PE RESOURCES-MATERIALS,"SPORTS APPAREL, RIDING APPAREL STORES",GPC
WALSALL COUNCIL,http://opendatacommunities.org/id/metropolitan-district-council/walsall ,30/09/2021,RESOURCES AND TRANSFORMATION,NOBISCO LIMITED,02/07/2021,H59620210706ZQOJKPHEN-1,125.65,CATERING - SCHOOLS-FOOD & DRINK SUPPLIES,OTHER INDUSTRIAL SUPPLIES,GPC
WALSALL COUNCIL,http://opendatacommunities.org/id/metropolitan-district-council/walsall ,30/09/2021,RESOURCES AND TRANSFORMATION,B&M 541 - ALDIDGE,02/07/2021,H59620210706ZRQIJVCLV-1,9.00,CATERING - SCHOOLS-OTHER EXPENSES,MISCELLANEOUS GENERAL MERCHANDISE,GPC
WALSALL COUNCIL,http://opendatacommunities.org/id/metropolitan-district-council/walsall ,30/09/2021,CHILDRENS SERVICES,HORSE & JOCKEY,02/07/2021,H59620210706ZSFKBGVPE-1,5.35,"43A HILTON ROAD, WILLENHALL-FOOD & DRINK SUPPLIES","BARS, COCKTAIL LOUNGES, DISCOTHEQUES, NIGHTCLUBS",GPC
WALSALL COUNCIL,http://opendatacommunities.org/id/metropolitan-district-council/walsall ,30/09/2021,CHILDRENS SERVICES,SNAPFISH UK *,02/07/2021,H59620210707INJEVZFUE-1,8.42,ADMINISTRATIVE SUPPLIES-MATERIALS,"PHOTO DEVELOPING, PHOTOFINISHING LABORATORIES",GPC
WALSALL COUNCIL,http://opendatacommunities.org/id/metropolitan-district-council/walsall ,30/09/2021,CHILDRENS SERVICES,TVLICENSING.CO.UK,02/07/2021,H59620210707KXMGJKVTX-1,159.00,TRANSITION AND LEAVING CARE PL-PURCHASE OF FURNITURE & EQUIPM,"CONSULTING, MANAGEMENT, AND PR SERVICES",GPC
WALSALL COUNCIL,http://opendatacommunities.org/id/metropolitan-district-council/walsall ,30/09/2021,RESOURCES AND TRANSFORMATION,WWW.SCC.COM,02/07/2021,H59620210708DKSYMKTQD-1,233.13,RECHARGEABLE EQUIPMENT-COMPUTER EQUIPMENT,"COMPUTERS, COMPUTER PERIPHERAL EQUIPMENT, SOFTWARE",GPC
WALSALL COUNCIL,http://opendatacommunities.org/id/metropolitan-district-council/walsall ,30/09/2021,ECONOMY & ENVIRONMENT,FACEBK ZCT4V477X2,03/07/2021,H59620210706CCRIFRCEU-1,16.00,COMMUNITY LIAISON-PUBLICITY & ADVERTISING (NON S,ADVERTISING SERVICES,GPC
WALSALL COUNCIL,http://opendatacommunities.org/id/metropolitan-district-council/walsall ,30/09/2021,CHILDRENS SERVICES,BEVERLEY HOTEL LTD - T,03/07/2021,H59620210706CKCUQZTBH-1,-271.50,BED & BREAKFAST PAYMENTS-BED & BREAKFAST PAYMENTS,"HOTELS, MOTELS, RESORTS",GPC
WALSALL COUNCIL,http://opendatacommunities.org/id/metropolitan-district-council/walsall ,30/09/2021,RESOURCES AND TRANSFORMATION,WP ENGINE,03/07/2021,H59620210706CPSIMJFMW-1,253.46,APPLICATIONS-COMPUTER EQUIPMENT,"COMPUTER PROGRAM, SYSTEM DESIGN",GPC
WALSALL COUNCIL,http://opendatacommunities.org/id/metropolitan-district-council/walsall ,30/09/2021,CHILDRENS SERVICES,METRO WALSALL,03/07/2021,H59620210706CSKQKQVZT-1,76.00,BED & BREAKFAST PAYMENTS-ACCOMMODATION AND RELATED COST,"HOTELS, MOTELS, RESORTS",GPC
WALSALL COUNCIL,http://opendatacommunities.org/id/metropolitan-district-council/walsall ,30/09/2021,ECONOMY & ENVIRONMENT,AMZNMKTPLACE,03/07/2021,H59620210706DQYLDVVXM-1,17.70,LIBRARY OPERATIONS - MOBILE SE-STATIONERY & GENERAL OFFICE SU,MISCELLANEOUS AND SPECIALTY RETAIL STORES,GPC
WALSALL COUNCIL,http://opendatacommunities.org/id/metropolitan-district-council/walsall ,30/09/2021,RESOURCES AND TRANSFORMATION,FACEBK CBLNC3T942,03/07/2021,H59620210706EWYJISVSY-1,20.00,YEI ESF FUNDING-PUBLICITY & ADVERTISING (NON S,ADVERTISING SERVICES,GPC
WALSALL COUNCIL,http://opendatacommunities.org/id/metropolitan-district-council/walsall ,30/09/2021,RESOURCES AND TRANSFORMATION,FACEBK CBLNC3T942,03/07/2021,H59620210706EWYJISVSY-2,20.00,YEI (IMPACT) PROGRAMME-PUBLICITY & ADVERTISING (NON S,ADVERTISING SERVICES,GPC
WALSALL COUNCIL,http://opendatacommunities.org/id/metropolitan-district-council/walsall ,30/09/2021,CHILDRENS SERVICES,WWW.THERANGE.CO.UK,03/07/2021,H59620210706IRCQQWRYO-1,-28.99,BUTTS PRIMARY SCHOOL-OPERATIONAL MAINTENANCE,"EQUIPMENT, FURNITURE, AND HOME FURNISHINGS STORES ",GPC
WALSALL COUNCIL,http://opendatacommunities.org/id/metropolitan-district-council/walsall ,30/09/2021,CHILDRENS SERVICES,HM PASSPORT OFFICE,03/07/2021,H59620210706SRJPGAJXE-1,117.00,LOOKED AFTER CHILDRENS SOCIAL -FEES & LICENCES,GOVERNMENT SERVICES,GPC
WALSALL COUNCIL,http://opendatacommunities.org/id/metropolitan-district-council/walsall ,30/09/2021,CHILDRENS SERVICES,AMZNMKTPLACE,04/07/2021,H59620210706DHBHNUVSC-1,29.97,E19-MATERIALS,MISCELLANEOUS AND SPECIALTY RETAIL STORES,GPC
WALSALL COUNCIL,http://opendatacommunities.org/id/metropolitan-district-council/walsall ,30/09/2021,RESOURCES AND TRANSFORMATION,AMAZON.CO.UK*2005A4A04,04/07/2021,H59620210706ENIEPERCG-1,97.99,LAW LIBRARY-STATIONERY & GENERAL OFFICE SU,OTHER DIRECT MARKETING-OTHER DIRECT MARKETERS,GPC
WALSALL COUNCIL,http://opendatacommunities.org/id/metropolitan-district-council/walsall ,30/09/2021,CHILDRENS SERVICES,ASDA STORES LTD 4225,04/07/2021,H59620210706ETZFWROFW-1,10.00,EDGE OF CARE TEAM-STATIONERY & GENERAL OFFICE SU,GROCERY STORES AND SUPERMARKETS,GPC
WALSALL COUNCIL,http://opendatacommunities.org/id/metropolitan-district-council/walsall ,30/09/2021,CHILDRENS SERVICES,ETSY,04/07/2021,H59620210706FTHFXPVFD-1,21.99,YEAR 3 / 4-MATERIALS,MISCELLANEOUS ACCESSORY AND APPAREL STORES,GPC
WALSALL COUNCIL,http://opendatacommunities.org/id/metropolitan-district-council/walsall ,30/09/2021,CHILDRENS SERVICES,AMZN MKTP UK*205WR6E74,04/07/2021,H59620210706GEQXOIACS-1,18.34,ADMIN-MATERIALS,BOOK STORES,GPC
WALSALL COUNCIL,http://opendatacommunities.org/id/metropolitan-district-council/walsall ,30/09/2021,CHILDRENS SERVICES,AMAZON.CO.UK*2088Y3AM4,04/07/2021,H59620210706IFFYQDFFB-1,15.66,FAMILY PLACEMENTS-PURCHASE OF FURNITURE & EQUIPM,OTHER DIRECT MARKETING-OTHER DIRECT MARKETERS,GPC
WALSALL COUNCIL,http://opendatacommunities.org/id/metropolitan-district-council/walsall ,30/09/2021,CHILDRENS SERVICES,AMZNMKTPLACE,04/07/2021,H59620210706NYTXBXSAJ-1,7.99,PUPIL AWARDS-MATERIALS,MISCELLANEOUS AND SPECIALTY RETAIL STORES,GPC
WALSALL COUNCIL,http://opendatacommunities.org/id/metropolitan-district-council/walsall ,30/09/2021,ECONOMY & ENVIRONMENT,AMZNMKTPLACE,04/07/2021,H59620210706POCMKYZQL-1,32.57,BLOXWICH LIBRARY-PURCHASE OF FURNITURE & EQUIPM,MISCELLANEOUS AND SPECIALTY RETAIL STORES,GPC
WALSALL COUNCIL,http://opendatacommunities.org/id/metropolitan-district-council/walsall ,30/09/2021,CHILDRENS SERVICES,BESTWAY WALSALL,04/07/2021,H59620210706QFTQPQXUH-1,101.63,GENERAL-MATERIALS,DAIRY PRODUCTS STORES,GPC
WALSALL COUNCIL,http://opendatacommunities.org/id/metropolitan-district-council/walsall ,30/09/2021,ECONOMY & ENVIRONMENT,AMZNMKTPLACE,04/07/2021,H59620210706QVSWIEZMX-1,16.38,WALSALL GALA SWIMMING AND FITN-PURCHASE OF FURNITURE & EQUIPM,MISCELLANEOUS AND SPECIALTY RETAIL STORES,GPC
WALSALL COUNCIL,http://opendatacommunities.org/id/metropolitan-district-council/walsall ,30/09/2021,CHILDRENS SERVICES,AMAZON.CO.UK*208VM2AU4,04/07/2021,H59620210706TWVZKUSTQ-1,23.10,BUSINESS MANAGER-MATERIALS,OTHER DIRECT MARKETING-OTHER DIRECT MARKETERS,GPC
WALSALL COUNCIL,http://opendatacommunities.org/id/metropolitan-district-council/walsall ,30/09/2021,CHILDRENS SERVICES,AMZNMKTPLACE,04/07/2021,H59620210706UDTBVOSTV-1,22.97,MUSIC-MATERIALS,MISCELLANEOUS AND SPECIALTY RETAIL STORES,GPC
WALSALL COUNCIL,http://opendatacommunities.org/id/metropolitan-district-council/walsall ,30/09/2021,ECONOMY & ENVIRONMENT,AMZNMKTPLACE,04/07/2021,H59620210706ULTZNZDNT-1,4.98,WALSALL GALA SWIMMING AND FITN-PURCHASE OF FURNITURE & EQUIPM,MISCELLANEOUS AND SPECIALTY RETAIL STORES,GPC
WALSALL COUNCIL,http://opendatacommunities.org/id/metropolitan-district-council/walsall ,30/09/2021,RESOURCES AND TRANSFORMATION,FOREIGN EXCHANGE FEE,05/07/2021,H59620210706QHKKXUKRX-1,6.97,APPLICATIONS-COMPUTER EQUIPMENT,,GPC
WALSALL COUNCIL,http://opendatacommunities.org/id/metropolitan-district-council/walsall ,30/09/2021,CHILDRENS SERVICES,FOREIGN EXCHANGE FEE,05/07/2021,H59620210706ZPNBSAMMP-1,0.99,ICT LEARNING RESOURCES-MATERIALS,,GPC
WALSALL COUNCIL,http://opendatacommunities.org/id/metropolitan-district-council/walsall ,30/09/2021,RESOURCES AND TRANSFORMATION,NOBISCO LIMITED,05/07/2021,H59620210707AGCHMFHVZ-1,105.28,CATERING - SCHOOLS-FOOD & DRINK SUPPLIES,OTHER INDUSTRIAL SUPPLIES,GPC
WALSALL COUNCIL,http://opendatacommunities.org/id/metropolitan-district-council/walsall ,30/09/2021,ECONOMY & ENVIRONMENT,EUROFFICE.CO.UK,05/07/2021,H59620210707AHIVSOXJA-1,223.73,WALSALL ARENA AND ARTS CENTRE-PURCHASE OF FURNITURE & EQUIPM,"OFFICE, SCHOOL SUPPLY, AND STATIONERY STORES",GPC
WALSALL COUNCIL,http://opendatacommunities.org/id/metropolitan-district-council/walsall ,30/09/2021,RESOURCES AND TRANSFORMATION,BLAKEMORE FOODSERVICE,05/07/2021,H59620210707AXEDSFLWR-1,342.15,CATERING - SCHOOLS-FOOD & DRINK SUPPLIES,CATERERS,GPC
WALSALL COUNCIL,http://opendatacommunities.org/id/metropolitan-district-council/walsall ,30/09/2021,RESOURCES AND TRANSFORMATION,BLAKEMORE FOODSERVICE,05/07/2021,H59620210707AXEDSFLWR-2,19.84,CATERING - SCHOOLS-FOOD & DRINK SUPPLIES,CATERERS,GPC
WALSALL COUNCIL,http://opendatacommunities.org/id/metropolitan-district-council/walsall ,30/09/2021,CHILDRENS SERVICES,AMZNMKTPLACE,05/07/2021,H59620210707BCBKYCNQK-1,17.82,E19-MATERIALS,MISCELLANEOUS AND SPECIALTY RETAIL STORES,GPC
WALSALL COUNCIL,http://opendatacommunities.org/id/metropolitan-district-council/walsall ,30/09/2021,CHILDRENS SERVICES,ARGOS LTD,05/07/2021,H59620210707BCZNCUZPE-1,260.99,TRANSITION AND LEAVING CARE PL-CARE LEAVERS MTCE PAYMENTS,DISCOUNT STORES,GPC
WALSALL COUNCIL,http://opendatacommunities.org/id/metropolitan-district-council/walsall ,30/09/2021,CHILDRENS SERVICES,ASDA GROCERIES ONLINE,05/07/2021,H59620210707BOEKJHWKL-1,64.04,BREAKFAST CLUB-FOOD & DRINK SUPPLIES,GROCERY STORES AND SUPERMARKETS,GPC
WALSALL COUNCIL,http://opendatacommunities.org/id/metropolitan-district-council/walsall ,30/09/2021,RESOURCES AND TRANSFORMATION,WWW.SANDWELL.GOV.UK,05/07/2021,H59620210707BSJKXZXLY-1,5.50,YEI ESF FUNDING-FEES & LICENCES,GOVERNMENT SERVICES,GPC
WALSALL COUNCIL,http://opendatacommunities.org/id/metropolitan-district-council/walsall ,30/09/2021,RESOURCES AND TRANSFORMATION,WWW.SANDWELL.GOV.UK,05/07/2021,H59620210707BSJKXZXLY-2,5.50,YEI (IMPACT) PROGRAMME-FEES & LICENCES,GOVERNMENT SERVICES,GPC
WALSALL COUNCIL,http://opendatacommunities.org/id/metropolitan-district-council/walsall ,30/09/2021,CHILDRENS SERVICES,ARGOS LTD,05/07/2021,H59620210707BTWGWYQEZ-1,24.99,HOUSING YEI/ESF MATCH-PURCHASE OF FURNITURE & EQUIPM,DISCOUNT STORES,GPC
WALSALL COUNCIL,http://opendatacommunities.org/id/metropolitan-district-council/walsall ,30/09/2021,RESOURCES AND TRANSFORMATION,BLAKEMORE FOODSERVICE,05/07/2021,H59620210707CBVTJLPAB-1,125.42,CATERING - SCHOOLS-FOOD & DRINK SUPPLIES,CATERERS,GPC
WALSALL COUNCIL,http://opendatacommunities.org/id/metropolitan-district-council/walsall ,30/09/2021,CHILDRENS SERVICES,ASDA SUPERSTORE,05/07/2021,H59620210707CJYHNEIGM-1,23.35,REDRUTH ROAD-FOOD & DRINK SUPPLIES,GROCERY STORES AND SUPERMARKETS,GPC
WALSALL COUNCIL,http://opendatacommunities.org/id/metropolitan-district-council/walsall ,30/09/2021,RESOURCES AND TRANSFORMATION,BLAKEMORE FOODSERVICE,05/07/2021,H59620210707CTYJLFQCG-1,356.05,CATERING - SCHOOLS-FOOD & DRINK SUPPLIES,CATERERS,GPC
WALSALL COUNCIL,http://opendatacommunities.org/id/metropolitan-district-council/walsall ,30/09/2021,RESOURCES AND TRANSFORMATION,BLAKEMORE FOODSERVICE,05/07/2021,H59620210707CTYJLFQCG-2,20.30,CATERING - SCHOOLS-FOOD & DRINK SUPPLIES,CATERERS,GPC
WALSALL COUNCIL,http://opendatacommunities.org/id/metropolitan-district-council/walsall ,30/09/2021,CHILDRENS SERVICES,JD SPORTS INTERNET,05/07/2021,H59620210707EXYNBOSWF-1,76.00,REDRUTH ROAD-RESIDENTS PERSONAL EXPENSES-AL,SPORTING GOODS STORES,GPC
WALSALL COUNCIL,http://opendatacommunities.org/id/metropolitan-district-council/walsall ,30/09/2021,CHILDRENS SERVICES,BEVERLEY HOTEL LTD - T,05/07/2021,H59620210707FCVFBQMSM-1,576.10,BED & BREAKFAST PAYMENTS-BED & BREAKFAST PAYMENTS,"HOTELS, MOTELS, RESORTS",GPC
WALSALL COUNCIL,http://opendatacommunities.org/id/metropolitan-district-council/walsall ,30/09/2021,RESOURCES AND TRANSFORMATION,ASDA SUPERSTORE,05/07/2021,H59620210707FFFLRQNGB-1,-22.00,CATERING - SCHOOLS-FOOD & DRINK SUPPLIES,GROCERY STORES AND SUPERMARKETS,GPC
WALSALL COUNCIL,http://opendatacommunities.org/id/metropolitan-district-council/walsall ,30/09/2021,RESOURCES AND TRANSFORMATION,POST OFFICE COUNTER,05/07/2021,H59620210707FSYNHSMEE-1,9.24,LAW LIBRARY-POSTAGES & COURIER SERVICES,POSTAL SERVICES - GOVERNMENT ONLY,GPC
WALSALL COUNCIL,http://opendatacommunities.org/id/metropolitan-district-council/walsall ,30/09/2021,ECONOMY & ENVIRONMENT,TIMPSON LTD,05/07/2021,H59620210707GGSPYWDGK-1,10.50,WALSALL GALA SWIMMING AND FITN-MATERIALS,MISCELLANEOUS AND SPECIALTY RETAIL STORES,GPC
WALSALL COUNCIL,http://opendatacommunities.org/id/metropolitan-district-council/walsall ,30/09/2021,CHILDRENS SERVICES,W M MORRISONS.COM,05/07/2021,H59620210707GRSDTJOYK-1,20.46,COMMUNITY FOCUSED EXTENDED SCH-MATERIALS,GROCERY STORES AND SUPERMARKETS,GPC
WALSALL COUNCIL,http://opendatacommunities.org/id/metropolitan-district-council/walsall ,30/09/2021,CHILDRENS SERVICES,W M MORRISONS.COM,05/07/2021,H59620210707GRSDTJOYK-2,62.26,COMMUNITY FOCUSED EXTENDED SCH-MATERIALS,GROCERY STORES AND SUPERMARKETS,GPC
WALSALL COUNCIL,http://opendatacommunities.org/id/metropolitan-district-council/walsall ,30/09/2021,CHILDRENS SERVICES,W M MORRISONS.COM,05/07/2021,H59620210707GRSDTJOYK-3,4.70,SEN - RD&SH-MATERIALS,GROCERY STORES AND SUPERMARKETS,GPC
WALSALL COUNCIL,http://opendatacommunities.org/id/metropolitan-district-council/walsall ,30/09/2021,CHILDRENS SERVICES,W M MORRISONS.COM,05/07/2021,H59620210707GRSDTJOYK-4,4.20,NURTURE GROUP-MATERIALS,GROCERY STORES AND SUPERMARKETS,GPC
WALSALL COUNCIL,http://opendatacommunities.org/id/metropolitan-district-council/walsall ,30/09/2021,CHILDRENS SERVICES,EDGY PRODUCTIONS LTD,05/07/2021,H59620210707GTNHQVXTW-1,36.00,E19-MATERIALS,BOOK STORES,GPC
WALSALL COUNCIL,http://opendatacommunities.org/id/metropolitan-district-council/walsall ,30/09/2021,CHILDRENS SERVICES,BLOXWICH HARDWARE,05/07/2021,H59620210707HLJLIEJBI-1,2.25,HOUSING YEI/ESF MATCH-CLEANING MATERIALS,HARDWARE STORES,GPC
WALSALL COUNCIL,http://opendatacommunities.org/id/metropolitan-district-council/walsall ,30/09/2021,ECONOMY & ENVIRONMENT,AMZNMKTPLACE,05/07/2021,H59620210707HQSNRHDVX-1,13.38,LIBRARY OPERATIONS - MOBILE SE-STATIONERY & GENERAL OFFICE SU,MISCELLANEOUS AND SPECIALTY RETAIL STORES,GPC
WALSALL COUNCIL,http://opendatacommunities.org/id/metropolitan-district-council/walsall ,30/09/2021,RESOURCES AND TRANSFORMATION,BLAKEMORE FOODSERVICE,05/07/2021,H59620210707IBGIXKHUL-1,320.05,CATERING - SCHOOLS-FOOD & DRINK SUPPLIES,CATERERS,GPC
WALSALL COUNCIL,http://opendatacommunities.org/id/metropolitan-district-council/walsall ,30/09/2021,RESOURCES AND TRANSFORMATION,BLAKEMORE FOODSERVICE,05/07/2021,H59620210707IBGIXKHUL-2,17.74,CATERING - SCHOOLS-FOOD & DRINK SUPPLIES,CATERERS,GPC
WALSALL COUNCIL,http://opendatacommunities.org/id/metropolitan-district-council/walsall ,30/09/2021,CHILDRENS SERVICES,IRISPAY,05/07/2021,H59620210707IBJLMBNSS-1,15.00,REDRUTH ROAD-FOOD & DRINK SUPPLIES,OTHER SCHOOLS AND EDUCATIONAL SERVICES,GPC
WALSALL COUNCIL,http://opendatacommunities.org/id/metropolitan-district-council/walsall ,30/09/2021,RESOURCES AND TRANSFORMATION,BLAKEMORE FOODSERVICE,05/07/2021,H59620210707IJTBXJRCU-1,403.29,CATERING - SCHOOLS-FOOD & DRINK SUPPLIES,CATERERS,GPC
WALSALL COUNCIL,http://opendatacommunities.org/id/metropolitan-district-council/walsall ,30/09/2021,RESOURCES AND TRANSFORMATION,BLAKEMORE FOODSERVICE,05/07/2021,H59620210707IJTBXJRCU-2,172.59,CATERING - SCHOOLS-FOOD & DRINK SUPPLIES,CATERERS,GPC
WALSALL COUNCIL,http://opendatacommunities.org/id/metropolitan-district-council/walsall ,30/09/2021,RESOURCES AND TRANSFORMATION,BLAKEMORE FOODSERVICE,05/07/2021,H59620210707IOHWBABQK-1,74.95,CATERING - SCHOOLS-FOOD & DRINK SUPPLIES,CATERERS,GPC
WALSALL COUNCIL,http://opendatacommunities.org/id/metropolitan-district-council/walsall ,30/09/2021,RESOURCES AND TRANSFORMATION,ASDA SUPERSTORE,05/07/2021,H59620210707IWIOYGWPP-1,78.98,CATERING - SCHOOLS-FOOD & DRINK SUPPLIES,GROCERY STORES AND SUPERMARKETS,GPC
WALSALL COUNCIL,http://opendatacommunities.org/id/metropolitan-district-council/walsall ,30/09/2021,RESOURCES AND TRANSFORMATION,ASDA SUPERSTORE,05/07/2021,H59620210707LEDNEWVPT-1,5.20,CATERING - SCHOOLS-FOOD & DRINK SUPPLIES,GROCERY STORES AND SUPERMARKETS,GPC
WALSALL COUNCIL,http://opendatacommunities.org/id/metropolitan-district-council/walsall ,30/09/2021,CHILDRENS SERVICES,W M MORRISONS.COM,05/07/2021,H59620210707LFSBRDWJJ-1,17.22,PELSALL VILLAGE SCHOOL-FOOD & DRINK SUPPLIES,GROCERY STORES AND SUPERMARKETS,GPC
WALSALL COUNCIL,http://opendatacommunities.org/id/metropolitan-district-council/walsall ,30/09/2021,CHILDRENS SERVICES,W M MORRISONS.COM,05/07/2021,H59620210707LFSBRDWJJ-2,58.96,PELSALL VILLAGE SCHOOL-FOOD & DRINK SUPPLIES,GROCERY STORES AND SUPERMARKETS,GPC
WALSALL COUNCIL,http://opendatacommunities.org/id/metropolitan-district-council/walsall ,30/09/2021,CHILDRENS SERVICES,AMZNMKTPLACE,05/07/2021,H59620210707LSYZPSMMW-1,11.49,ICT LEARNING RESOURCES-PURCHASE OF FURNITURE & EQUIPM,MISCELLANEOUS AND SPECIALTY RETAIL STORES,GPC
WALSALL COUNCIL,http://opendatacommunities.org/id/metropolitan-district-council/walsall ,30/09/2021,CHILDRENS SERVICES,TESCO STORES 6161,05/07/2021,H59620210707LUBJKEICF-1,143.00,WALSALL CRISIS SUPPORT SCHEME-FOOD & DRINK SUPPLIES,GROCERY STORES AND SUPERMARKETS,GPC
WALSALL COUNCIL,http://opendatacommunities.org/id/metropolitan-district-council/walsall ,30/09/2021,CHILDRENS SERVICES,G & B KENDALLS & SONS,05/07/2021,H59620210707LXFXPAEEQ-1,55.85,MARY ELLIOTT SCHOOL-FOOD & DRINK SUPPLIES,MISCELLANEOUS FOOD STORES & CONVENIENCE STORES,GPC
WALSALL COUNCIL,http://opendatacommunities.org/id/metropolitan-district-council/walsall ,30/09/2021,RESOURCES AND TRANSFORMATION,BLAKEMORE FOODSERVICE,05/07/2021,H59620210707LYVWRKHFX-1,233.83,CATERING - SCHOOLS-FOOD & DRINK SUPPLIES,CATERERS,GPC
WALSALL COUNCIL,http://opendatacommunities.org/id/metropolitan-district-council/walsall ,30/09/2021,RESOURCES AND TRANSFORMATION,BLAKEMORE FOODSERVICE,05/07/2021,H59620210707LYVWRKHFX-2,20.01,CATERING - SCHOOLS-FOOD & DRINK SUPPLIES,CATERERS,GPC
WALSALL COUNCIL,http://opendatacommunities.org/id/metropolitan-district-council/walsall ,30/09/2021,ECONOMY & ENVIRONMENT,J P LENNARD LTD,05/07/2021,H59620210707MCIHXJHKX-1,45.14,WALSALL GALA SWIMMING AND FITN-PURCHASE OF FURNITURE & EQUIPM,SPORTING GOODS STORES,GPC
WALSALL COUNCIL,http://opendatacommunities.org/id/metropolitan-district-council/walsall ,30/09/2021,CHILDRENS SERVICES,AMZNMKTPLACE,05/07/2021,H59620210707MQNSUPNUW-1,69.92,E19-MATERIALS,MISCELLANEOUS AND SPECIALTY RETAIL STORES,GPC
WALSALL COUNCIL,http://opendatacommunities.org/id/metropolitan-district-council/walsall ,30/09/2021,CHILDRENS SERVICES,TESCO STORES 6161,05/07/2021,H59620210707MYZVVHQBK-1,56.90,WALSALL CRISIS SUPPORT SCHEME-FOOD & DRINK SUPPLIES,GROCERY STORES AND SUPERMARKETS,GPC
WALSALL COUNCIL,http://opendatacommunities.org/id/metropolitan-district-council/walsall ,30/09/2021,CHILDRENS SERVICES,NEW HALL HOTEL,05/07/2021,H59620210707NWYNXFCPK-1,50.00,BENTLEY WEST PRIMARY SCHOOL-EXTERNAL TRAINING,"HOTELS, MOTELS, RESORTS",GPC
WALSALL COUNCIL,http://opendatacommunities.org/id/metropolitan-district-council/walsall ,30/09/2021,CHILDRENS SERVICES,NEW HALL HOTEL,05/07/2021,H59620210707NWYNXFCPK-2,50.00,KING CHARLES PRIMARY SCHOOL-EXTERNAL TRAINING,"HOTELS, MOTELS, RESORTS",GPC
WALSALL COUNCIL,http://opendatacommunities.org/id/metropolitan-district-council/walsall ,30/09/2021,RESOURCES AND TRANSFORMATION,BLAKEMORE FOODSERVICE,05/07/2021,H59620210707NXCPDDRSI-1,367.56,CATERING - SCHOOLS-FOOD & DRINK SUPPLIES,CATERERS,GPC
WALSALL COUNCIL,http://opendatacommunities.org/id/metropolitan-district-council/walsall ,30/09/2021,RESOURCES AND TRANSFORMATION,BLAKEMORE FOODSERVICE,05/07/2021,H59620210707NXCPDDRSI-2,19.84,CATERING - SCHOOLS-FOOD & DRINK SUPPLIES,CATERERS,GPC
WALSALL COUNCIL,http://opendatacommunities.org/id/metropolitan-district-council/walsall ,30/09/2021,RESOURCES AND TRANSFORMATION,NOBISCO LIMITED,05/07/2021,H59620210707OKRDGPOYL-1,58.62,CATERING - SCHOOLS-FOOD & DRINK SUPPLIES,OTHER INDUSTRIAL SUPPLIES,GPC
WALSALL COUNCIL,http://opendatacommunities.org/id/metropolitan-district-council/walsall ,30/09/2021,CHILDRENS SERVICES,ASDA GEORGE COM LEEDS,05/07/2021,H59620210707OPBWDHELZ-1,197.00,TRANSITION AND LEAVING CARE PL-CARE LEAVERS MTCE PAYMENTS,GROCERY STORES AND SUPERMARKETS,GPC
WALSALL COUNCIL,http://opendatacommunities.org/id/metropolitan-district-council/walsall ,30/09/2021,RESOURCES AND TRANSFORMATION,BLAKEMORE FOODSERVICE,05/07/2021,H59620210707OUJDTUSUR-1,561.44,CATERING - SCHOOLS-FOOD & DRINK SUPPLIES,CATERERS,GPC
WALSALL COUNCIL,http://opendatacommunities.org/id/metropolitan-district-council/walsall ,30/09/2021,RESOURCES AND TRANSFORMATION,BLAKEMORE FOODSERVICE,05/07/2021,H59620210707OUJDTUSUR-2,102.15,CATERING - SCHOOLS-FOOD & DRINK SUPPLIES,CATERERS,GPC
WALSALL COUNCIL,http://opendatacommunities.org/id/metropolitan-district-council/walsall ,30/09/2021,CHILDRENS SERVICES,TESCO STORES 6161,05/07/2021,H59620210707OVNNMGZRV-1,122.10,WALSALL CRISIS SUPPORT SCHEME-FOOD & DRINK SUPPLIES,GROCERY STORES AND SUPERMARKETS,GPC
WALSALL COUNCIL,http://opendatacommunities.org/id/metropolitan-district-council/walsall ,30/09/2021,ECONOMY & ENVIRONMENT,AMZNMKTPLACE,05/07/2021,H59620210707PFAXMCUZF-1,4.13,LIBRARY OPERATIONS - MOBILE SE-STATIONERY & GENERAL OFFICE SU,MISCELLANEOUS AND SPECIALTY RETAIL STORES,GPC
WALSALL COUNCIL,http://opendatacommunities.org/id/metropolitan-district-council/walsall ,30/09/2021,CHILDRENS SERVICES,JOHAL LUCKY STORES,05/07/2021,H59620210707PUVSSBUUB-1,10.00,WALSALL CRISIS SUPPORT SCHEME-CRISIS SUPPORT PAYMENTS,GROCERY STORES AND SUPERMARKETS,GPC
WALSALL COUNCIL,http://opendatacommunities.org/id/metropolitan-district-council/walsall ,30/09/2021,ECONOMY & ENVIRONMENT,OWEN BARRY LTD,05/07/2021,H59620210707PVTTQLZST-1,682.80,LEATHER MUSEUM SHOP STOCK-MATERIALS,LEATHER GOODS AND LUGGAGE STORES,GPC
WALSALL COUNCIL,http://opendatacommunities.org/id/metropolitan-district-council/walsall ,30/09/2021,ECONOMY & ENVIRONMENT,MIDLANDNEWS.COM,05/07/2021,H59620210707PVXIJVXIJ-1,69.00,DEVELOPMENT MANAGEMENT-SUBSCRIPTIONS,NEWS DEALERS AND NEWSSTANDS,GPC
WALSALL COUNCIL,http://opendatacommunities.org/id/metropolitan-district-council/walsall ,30/09/2021,RESOURCES AND TRANSFORMATION,BLAKEMORE FOODSERVICE,05/07/2021,H59620210707RAANSKHYF-1,441.91,CATERING - SCHOOLS-FOOD & DRINK SUPPLIES,CATERERS,GPC
WALSALL COUNCIL,http://opendatacommunities.org/id/metropolitan-district-council/walsall ,30/09/2021,RESOURCES AND TRANSFORMATION,BLAKEMORE FOODSERVICE,05/07/2021,H59620210707RAANSKHYF-2,19.84,CATERING - SCHOOLS-FOOD & DRINK SUPPLIES,CATERERS,GPC
WALSALL COUNCIL,http://opendatacommunities.org/id/metropolitan-district-council/walsall ,30/09/2021,RESOURCES AND TRANSFORMATION,NOBISCO LIMITED,05/07/2021,H59620210707RCNJEQIYB-1,17.93,CATERING - SCHOOLS-FOOD & DRINK SUPPLIES,OTHER INDUSTRIAL SUPPLIES,GPC
WALSALL COUNCIL,http://opendatacommunities.org/id/metropolitan-district-council/walsall ,30/09/2021,CHILDRENS SERVICES,SCHOOLGATEWA*BLUE COAT AC,05/07/2021,H59620210707RGUNWKQNU-1,15.00,REDRUTH ROAD-FOOD & DRINK SUPPLIES,"COLLEGES, UNIVERSITIES, PROFESSIONAL SCHOOLS",GPC
WALSALL COUNCIL,http://opendatacommunities.org/id/metropolitan-district-council/walsall ,30/09/2021,CHILDRENS SERVICES,AMAZON.CO.UK*2073K6024,05/07/2021,H59620210707SPJRZUCZE-1,88.44,CURRICULUM STOCK-MATERIALS,OTHER DIRECT MARKETING-OTHER DIRECT MARKETERS,GPC
WALSALL COUNCIL,http://opendatacommunities.org/id/metropolitan-district-council/walsall ,30/09/2021,RESOURCES AND TRANSFORMATION,B & Q 1276,05/07/2021,H59620210707TCBFLBBHX-1,141.00,CLEANING - MANAGEMENT-PURCHASE OF FURNITURE & EQUIPM,HOME SUPPLY WAREHOUSE STORES,GPC
WALSALL COUNCIL,http://opendatacommunities.org/id/metropolitan-district-council/walsall ,30/09/2021,RESOURCES AND TRANSFORMATION,BLAKEMORE FOODSERVICE,05/07/2021,H59620210707THSGEMITC-1,756.50,CATERING - SCHOOLS-FOOD & DRINK SUPPLIES,CATERERS,GPC
WALSALL COUNCIL,http://opendatacommunities.org/id/metropolitan-district-council/walsall ,30/09/2021,CHILDRENS SERVICES,PPOINT_*SPS RATE MARK LTD,05/07/2021,H59620210707UIIBOKKEU-1,10.00,TENANCY SERVICE-FOOD & DRINK SUPPLIES,MISCELLANEOUS FOOD STORES & CONVENIENCE STORES,GPC
WALSALL COUNCIL,http://opendatacommunities.org/id/metropolitan-district-council/walsall ,30/09/2021,RESOURCES AND TRANSFORMATION,ASDA SUPERSTORE,05/07/2021,H59620210707UPLOBUZEN-1,44.74,CATERING - SCHOOLS-FOOD & DRINK SUPPLIES,GROCERY STORES AND SUPERMARKETS,GPC
WALSALL COUNCIL,http://opendatacommunities.org/id/metropolitan-district-council/walsall ,30/09/2021,RESOURCES AND TRANSFORMATION,BLAKEMORE FOODSERVICE,05/07/2021,H59620210707UUXOFLKNE-1,-9.24,CATERING - SCHOOLS-FOOD & DRINK SUPPLIES,CATERERS,GPC
WALSALL COUNCIL,http://opendatacommunities.org/id/metropolitan-district-council/walsall ,30/09/2021,CHILDRENS SERVICES,POST OFFICE COUNTER,05/07/2021,H59620210707VDWITPNIE-1,7.65,SAFEGUARDING & FAMILY SUPPORT-POSTAGES & COURIER SERVICES,POSTAL SERVICES - GOVERNMENT ONLY,GPC
WALSALL COUNCIL,http://opendatacommunities.org/id/metropolitan-district-council/walsall ,30/09/2021,RESOURCES AND TRANSFORMATION,WM MORRISONS STORE,05/07/2021,H59620210707VIWZVHTWF-1,84.20,CATERING - SCHOOLS-FOOD & DRINK SUPPLIES,GROCERY STORES AND SUPERMARKETS,GPC
WALSALL COUNCIL,http://opendatacommunities.org/id/metropolitan-district-council/walsall ,30/09/2021,ECONOMY & ENVIRONMENT,MACHINE MART LTD,05/07/2021,H59620210707VLIIMSQHN-1,81.34,INFRASTRUCTURE MAINTENANCE-MATERIALS,HOUSEHOLD APPLIANCE STORES,GPC
WALSALL COUNCIL,http://opendatacommunities.org/id/metropolitan-district-council/walsall ,30/09/2021,RESOURCES AND TRANSFORMATION,WWW.BANNERUK.COM,05/07/2021,H59620210707VTYSLIAUD-1,91.11,CENTRALISED STATIONERY-STATIONERY & GENERAL OFFICE SU,"STATIONERY, OFFICE SUPPLIES AND WRITING PAPER",GPC
WALSALL COUNCIL,http://opendatacommunities.org/id/metropolitan-district-council/walsall ,30/09/2021,RESOURCES AND TRANSFORMATION,BLAKEMORE FOODSERVICE,05/07/2021,H59620210707VVGXSDRGQ-1,435.12,CATERING - SCHOOLS-FOOD & DRINK SUPPLIES,CATERERS,GPC
WALSALL COUNCIL,http://opendatacommunities.org/id/metropolitan-district-council/walsall ,30/09/2021,RESOURCES AND TRANSFORMATION,BLAKEMORE FOODSERVICE,05/07/2021,H59620210707VVGXSDRGQ-2,29.77,CATERING - SCHOOLS-FOOD & DRINK SUPPLIES,CATERERS,GPC
WALSALL COUNCIL,http://opendatacommunities.org/id/metropolitan-district-council/walsall ,30/09/2021,RESOURCES AND TRANSFORMATION,BLAKEMORE FOODSERVICE,05/07/2021,H59620210707WORIGQFKM-1,529.28,CATERING - SCHOOLS-FOOD & DRINK SUPPLIES,CATERERS,GPC
WALSALL COUNCIL,http://opendatacommunities.org/id/metropolitan-district-council/walsall ,30/09/2021,RESOURCES AND TRANSFORMATION,BLAKEMORE FOODSERVICE,05/07/2021,H59620210707WORIGQFKM-2,39.69,CATERING - SCHOOLS-FOOD & DRINK SUPPLIES,CATERERS,GPC
WALSALL COUNCIL,http://opendatacommunities.org/id/metropolitan-district-council/walsall ,30/09/2021,RESOURCES AND TRANSFORMATION,BLAKEMORE FOODSERVICE,05/07/2021,H59620210707WTIUQWHDW-1,184.71,CATERING - SCHOOLS-FOOD & DRINK SUPPLIES,CATERERS,GPC
WALSALL COUNCIL,http://opendatacommunities.org/id/metropolitan-district-council/walsall ,30/09/2021,RESOURCES AND TRANSFORMATION,BLAKEMORE FOODSERVICE,05/07/2021,H59620210707WTIUQWHDW-2,9.92,CATERING - SCHOOLS-FOOD & DRINK SUPPLIES,CATERERS,GPC
WALSALL COUNCIL,http://opendatacommunities.org/id/metropolitan-district-council/walsall ,30/09/2021,CHILDRENS SERVICES,AMZNMKTPLACE,05/07/2021,H59620210707WZSTHFBSC-1,6.99,ADMINISTRATIVE SUPPLIES-STATIONERY & GENERAL OFFICE SU,MISCELLANEOUS AND SPECIALTY RETAIL STORES,GPC
WALSALL COUNCIL,http://opendatacommunities.org/id/metropolitan-district-council/walsall ,30/09/2021,RESOURCES AND TRANSFORMATION,BLAKEMORE FOODSERVICE,05/07/2021,H59620210707XIOUNBQBZ-1,247.80,CATERING - SCHOOLS-FOOD & DRINK SUPPLIES,CATERERS,GPC
WALSALL COUNCIL,http://opendatacommunities.org/id/metropolitan-district-council/walsall ,30/09/2021,RESOURCES AND TRANSFORMATION,BLAKEMORE FOODSERVICE,05/07/2021,H59620210707XIOUNBQBZ-2,10.15,CATERING - SCHOOLS-FOOD & DRINK SUPPLIES,CATERERS,GPC
WALSALL COUNCIL,http://opendatacommunities.org/id/metropolitan-district-council/walsall ,30/09/2021,RESOURCES AND TRANSFORMATION,BLAKEMORE FOODSERVICE,05/07/2021,H59620210707YESDNACGV-1,387.13,CATERING - SCHOOLS-FOOD & DRINK SUPPLIES,CATERERS,GPC
WALSALL COUNCIL,http://opendatacommunities.org/id/metropolitan-district-council/walsall ,30/09/2021,RESOURCES AND TRANSFORMATION,BLAKEMORE FOODSERVICE,05/07/2021,H59620210707YESDNACGV-2,19.84,CATERING - SCHOOLS-FOOD & DRINK SUPPLIES,CATERERS,GPC
WALSALL COUNCIL,http://opendatacommunities.org/id/metropolitan-district-council/walsall ,30/09/2021,RESOURCES AND TRANSFORMATION,B & Q 1193,05/07/2021,H59620210707YOQUMWCQM-1,23.00,CLEANING - MANAGEMENT-PURCHASE OF FURNITURE & EQUIPM,HOME SUPPLY WAREHOUSE STORES,GPC
WALSALL COUNCIL,http://opendatacommunities.org/id/metropolitan-district-council/walsall ,30/09/2021,CHILDRENS SERVICES,CO-OPERATIVE FOOD,05/07/2021,H59620210707YUYYTLMHN-1,7.00,REDRUTH ROAD-FOOD & DRINK SUPPLIES,GROCERY STORES AND SUPERMARKETS,GPC
WALSALL COUNCIL,http://opendatacommunities.org/id/metropolitan-district-council/walsall ,30/09/2021,RESOURCES AND TRANSFORMATION,BLAKEMORE FOODSERVICE,05/07/2021,H59620210707ZDRCXFGEO-1,27.20,CATERING - SCHOOLS-FOOD & DRINK SUPPLIES,CATERERS,GPC
WALSALL COUNCIL,http://opendatacommunities.org/id/metropolitan-district-council/walsall ,30/09/2021,CHILDRENS SERVICES,BRITANNIA,05/07/2021,H59620210708FTGKTLPDM-1,87.00,BED & BREAKFAST PAYMENTS-BED & BREAKFAST PAYMENTS,"HOTELS, MOTELS, RESORTS",GPC
WALSALL COUNCIL,http://opendatacommunities.org/id/metropolitan-district-council/walsall ,30/09/2021,CHILDRENS SERVICES,WWW.MYPOSTSHOP.COM,05/07/2021,H59620210708TLMFQVCTU-1,582.00,SAFEGUARDING & FAMILY SUPPORT-STATIONERY & GENERAL OFFICE SU,"STATIONERY, OFFICE SUPPLIES AND WRITING PAPER",GPC
WALSALL COUNCIL,http://opendatacommunities.org/id/metropolitan-district-council/walsall ,30/09/2021,CHILDRENS SERVICES,WWW.MYPOSTSHOP.COM,05/07/2021,H59620210708TLMFQVCTU-2,3.49,CHILDREN'S COMMISSIONING-POSTAGES & COURIER SERVICES,"STATIONERY, OFFICE SUPPLIES AND WRITING PAPER",GPC
WALSALL COUNCIL,http://opendatacommunities.org/id/metropolitan-district-council/walsall ,30/09/2021,ECONOMY & ENVIRONMENT,WWW.PRESERVATIONEQUIPM,05/07/2021,H59620210709KUYUEVCGN-1,115.51,NAG - GARMAN RYAN/PERMANENT CO-STATIONERY & GENERAL OFFICE SU,"PUBLIC WAREHOUSING, FARM, & HOUSEHOLD GOODS",GPC
WALSALL COUNCIL,http://opendatacommunities.org/id/metropolitan-district-council/walsall ,30/09/2021,CHILDRENS SERVICES,HACHETTE UK DISTRIBUTI,05/07/2021,H59620210713KICARLAGL-1,386.23,PRACTICE DEVELOPMENT-STATIONERY & GENERAL OFFICE SU,DIRECT MARKETING COMBINATION CATALOG,GPC
WALSALL COUNCIL,http://opendatacommunities.org/id/metropolitan-district-council/walsall ,30/09/2021,CHILDRENS SERVICES,AMAZON.CO.UK*971TA4AM5,06/07/2021,H59620210707CPOLLFZKY-1,12.97,HOUSING YEI/ESF MATCH-STATIONERY & GENERAL OFFICE SU,OTHER DIRECT MARKETING-OTHER DIRECT MARKETERS,GPC
WALSALL COUNCIL,http://opendatacommunities.org/id/metropolitan-district-council/walsall ,30/09/2021,CHILDRENS SERVICES,AMZNMKTPLACE,06/07/2021,H59620210707DNMYKVEHV-1,53.12,E19-MATERIALS,MISCELLANEOUS AND SPECIALTY RETAIL STORES,GPC
WALSALL COUNCIL,http://opendatacommunities.org/id/metropolitan-district-council/walsall ,30/09/2021,CHILDRENS SERVICES,AMZNMKTPLACE,06/07/2021,H59620210707GIHDVFXUW-1,15.99,GENERAL-MATERIALS,MISCELLANEOUS AND SPECIALTY RETAIL STORES,GPC
WALSALL COUNCIL,http://opendatacommunities.org/id/metropolitan-district-council/walsall ,30/09/2021,CHILDRENS SERVICES,AMAZON.CO.UK*6U35H52Q5,06/07/2021,H59620210707HYBJQDMSB-1,32.68,WATLING STREET PRIMARY SCHOOL-PERSONAL REQUISITES-MATERIALS,OTHER DIRECT MARKETING-OTHER DIRECT MARKETERS,GPC
WALSALL COUNCIL,http://opendatacommunities.org/id/metropolitan-district-council/walsall ,30/09/2021,RESOURCES AND TRANSFORMATION,ARTHUR BRETT CATER,06/07/2021,H59620210708BDPNYJRHL-1,41.09,CATERING - SCHOOLS-FOOD & DRINK SUPPLIES,MISCELLANEOUS FOOD STORES & CONVENIENCE STORES,GPC
WALSALL COUNCIL,http://opendatacommunities.org/id/metropolitan-district-council/walsall ,30/09/2021,RESOURCES AND TRANSFORMATION,ARTHUR BRETT CATER,06/07/2021,H59620210708BEPFDMIRJ-1,45.21,CATERING - SCHOOLS-FOOD & DRINK SUPPLIES,MISCELLANEOUS FOOD STORES & CONVENIENCE STORES,GPC
WALSALL COUNCIL,http://opendatacommunities.org/id/metropolitan-district-council/walsall ,30/09/2021,ECONOMY & ENVIRONMENT,ZOOM.US 888-799-9666,06/07/2021,H59620210708BFEGGFMGV-1,30.97,AUDIENCE DEVELOPMENT-SUBSCRIPTIONS,TELECOMMUNICATION SERVICES,GPC
WALSALL COUNCIL,http://opendatacommunities.org/id/metropolitan-district-council/walsall ,30/09/2021,RESOURCES AND TRANSFORMATION,ARTHUR BRETT CATER,06/07/2021,H59620210708BKNMOPHUR-1,28.00,CATERING - SCHOOLS-FOOD & DRINK SUPPLIES,MISCELLANEOUS FOOD STORES & CONVENIENCE STORES,GPC
WALSALL COUNCIL,http://opendatacommunities.org/id/metropolitan-district-council/walsall ,30/09/2021,RESOURCES AND TRANSFORMATION,ARTHUR BRETT CATER,06/07/2021,H59620210708BUSOWXSKW-1,10.83,CATERING - SCHOOLS-FOOD & DRINK SUPPLIES,MISCELLANEOUS FOOD STORES & CONVENIENCE STORES,GPC
WALSALL COUNCIL,http://opendatacommunities.org/id/metropolitan-district-council/walsall ,30/09/2021,CHILDRENS SERVICES,TRAINLINE,06/07/2021,H59620210708BVIETIRLN-1,54.30,SAFEGUARDING & FAMILY SUPPORT-OFFICERS & STAFF PUBLIC TRANSP,PASSENGER RAILWAYS,GPC
WALSALL COUNCIL,http://opendatacommunities.org/id/metropolitan-district-council/walsall ,30/09/2021,RESOURCES AND TRANSFORMATION,JOHAL DAIRIES LTD,06/07/2021,H59620210708CENSZBUXV-1,61.20,CATERING - SCHOOLS-FOOD & DRINK SUPPLIES,OTHER NONDURABLE GOODS,GPC
WALSALL COUNCIL,http://opendatacommunities.org/id/metropolitan-district-council/walsall ,30/09/2021,RESOURCES AND TRANSFORMATION,ARTHUR BRETT CATER,06/07/2021,H59620210708CJSSDSDMY-1,24.40,CATERING - SCHOOLS-FOOD & DRINK SUPPLIES,MISCELLANEOUS FOOD STORES & CONVENIENCE STORES,GPC
WALSALL COUNCIL,http://opendatacommunities.org/id/metropolitan-district-council/walsall ,30/09/2021,RESOURCES AND TRANSFORMATION,JOHAL DAIRIES LTD,06/07/2021,H59620210708CJUKFUOYI-1,39.60,CATERING - MANAGEMENT-FOOD & DRINK SUPPLIES,OTHER NONDURABLE GOODS,GPC
WALSALL COUNCIL,http://opendatacommunities.org/id/metropolitan-district-council/walsall ,30/09/2021,RESOURCES AND TRANSFORMATION,JOHAL DAIRIES LTD,06/07/2021,H59620210708CXXKFRVVF-1,15.80,CATERING - SCHOOLS-FOOD & DRINK SUPPLIES,OTHER NONDURABLE GOODS,GPC
WALSALL COUNCIL,http://opendatacommunities.org/id/metropolitan-district-council/walsall ,30/09/2021,RESOURCES AND TRANSFORMATION,ARTHUR BRETT CATER,06/07/2021,H59620210708DCWDJBCMY-1,196.94,CATERING - SCHOOLS-FOOD & DRINK SUPPLIES,MISCELLANEOUS FOOD STORES & CONVENIENCE STORES,GPC
WALSALL COUNCIL,http://opendatacommunities.org/id/metropolitan-district-council/walsall ,30/09/2021,CHILDRENS SERVICES,AMZNMKTPLACE,06/07/2021,H59620210708DODWCRSOS-1,58.84,EYFS-MATERIALS,MISCELLANEOUS AND SPECIALTY RETAIL STORES,GPC
WALSALL COUNCIL,http://opendatacommunities.org/id/metropolitan-district-council/walsall ,30/09/2021,CHILDRENS SERVICES,WALSALL COUNCIL,06/07/2021,H59620210708DYAPMFLIU-1,42.22,ST FRANCIS OF ASSISI CATHOLIC -POLICE CHECKS,GOVERNMENT SERVICES,GPC
WALSALL COUNCIL,http://opendatacommunities.org/id/metropolitan-district-council/walsall ,30/09/2021,CHILDRENS SERVICES,HOTEL IBIS,06/07/2021,H59620210708EBGBWFXUD-1,314.00,BED & BREAKFAST PAYMENTS-BED & BREAKFAST PAYMENTS,HOTEL IBIS,GPC
WALSALL COUNCIL,http://opendatacommunities.org/id/metropolitan-district-council/walsall ,30/09/2021,CHILDRENS SERVICES,DOLPHIN COMPUTER ACCESS,06/07/2021,H59620210708EGLHBDCGZ-1,2107.20,SEN ASSESSMENT-COMPUTER EQUIPMENT,MISCELLANEOUS GENERAL MERCHANDISE,GPC
WALSALL COUNCIL,http://opendatacommunities.org/id/metropolitan-district-council/walsall ,30/09/2021,RESOURCES AND TRANSFORMATION,JOHAL DAIRIES LTD,06/07/2021,H59620210708EITKNLIFM-1,25.20,CATERING - SCHOOLS-FOOD & DRINK SUPPLIES,OTHER NONDURABLE GOODS,GPC
WALSALL COUNCIL,http://opendatacommunities.org/id/metropolitan-district-council/walsall ,30/09/2021,CHILDRENS SERVICES,LIDL GB WALSALL,06/07/2021,H59620210708EQJTUGSNC-1,103.69,REDRUTH ROAD-FOOD & DRINK SUPPLIES,GROCERY STORES AND SUPERMARKETS,GPC
WALSALL COUNCIL,http://opendatacommunities.org/id/metropolitan-district-council/walsall ,30/09/2021,RESOURCES AND TRANSFORMATION,ARTHUR BRETT CATER,06/07/2021,H59620210708EUCRDLVQN-1,10.26,CATERING - SCHOOLS-FOOD & DRINK SUPPLIES,MISCELLANEOUS FOOD STORES & CONVENIENCE STORES,GPC
WALSALL COUNCIL,http://opendatacommunities.org/id/metropolitan-district-council/walsall ,30/09/2021,RESOURCES AND TRANSFORMATION,NOBISCO LIMITED,06/07/2021,H59620210708EWEYVBXPA-1,28.10,CATERING - SCHOOLS-FOOD & DRINK SUPPLIES,OTHER INDUSTRIAL SUPPLIES,GPC
WALSALL COUNCIL,http://opendatacommunities.org/id/metropolitan-district-council/walsall ,30/09/2021,CHILDRENS SERVICES,PAYPAL *DRYTECH,06/07/2021,H59620210708FBCEIVRDR-1,88.12,VIRTUAL SCHOOL CENTRAL PUPIL P-CLOTHING & LAUNDRY,MENS AND BOYS CLOTHING AND FURNISHINGS STORE,GPC
WALSALL COUNCIL,http://opendatacommunities.org/id/metropolitan-district-council/walsall ,30/09/2021,CHILDRENS SERVICES,AO RETAIL LIMITED,06/07/2021,H59620210708FBHKQLVFB-1,159.00,TRANSITION AND LEAVING CARE PL-ACCOMMODATION AND RELATED COST,HOUSEHOLD APPLIANCE STORES,GPC
WALSALL COUNCIL,http://opendatacommunities.org/id/metropolitan-district-council/walsall ,30/09/2021,CHILDRENS SERVICES,AMZNMKTPLACE,06/07/2021,H59620210708FKYHVUOKF-1,26.00,GENERAL SUPPLIES LH-MATERIALS,MISCELLANEOUS AND SPECIALTY RETAIL STORES,GPC
WALSALL COUNCIL,http://opendatacommunities.org/id/metropolitan-district-council/walsall ,30/09/2021,CHILDRENS SERVICES,UTILITA ENERGY LIMITED,06/07/2021,H59620210708FQRKRIFYG-1,20.00,AFGHAN RELOCATION SCHEME-OTHER ENERGY COSTS,"UTILITIES - ELECTRIC, GAS, SANITARY & WATER",GPC
WALSALL COUNCIL,http://opendatacommunities.org/id/metropolitan-district-council/walsall ,30/09/2021,CHILDRENS SERVICES,BEVERLEY HOTEL LTD - T,06/07/2021,H59620210708FZLLUIZJF-1,38.00,BED & BREAKFAST PAYMENTS-BED & BREAKFAST PAYMENTS,"HOTELS, MOTELS, RESORTS",GPC
WALSALL COUNCIL,http://opendatacommunities.org/id/metropolitan-district-council/walsall ,30/09/2021,CHILDRENS SERVICES,AMAZON.CO.UK*HY2VQ5US5,06/07/2021,H59620210708GAFVACAVE-1,38.98,ST FRANCIS OF ASSISI CATHOLIC -OPERATIONAL MAINTENANCE,OTHER DIRECT MARKETING-OTHER DIRECT MARKETERS,GPC
WALSALL COUNCIL,http://opendatacommunities.org/id/metropolitan-district-council/walsall ,30/09/2021,RESOURCES AND TRANSFORMATION,ARTHUR BRETT CATER,06/07/2021,H59620210708HGLFIPVPU-1,79.77,CATERING - SCHOOLS-FOOD & DRINK SUPPLIES,MISCELLANEOUS FOOD STORES & CONVENIENCE STORES,GPC
WALSALL COUNCIL,http://opendatacommunities.org/id/metropolitan-district-council/walsall ,30/09/2021,CHILDRENS SERVICES,WWW.E.ORG,06/07/2021,H59620210708HSKQAQQVA-1,10.00,TENANCY SERVICE-OTHER ENERGY COSTS,"UTILITIES - ELECTRIC, GAS, SANITARY & WATER",GPC
WALSALL COUNCIL,http://opendatacommunities.org/id/metropolitan-district-council/walsall ,30/09/2021,CHILDRENS SERVICES,AMZNMKTPLACE,06/07/2021,H59620210708IVMCDRNDX-1,15.82,AWARDS/ ATTEND / PRIZES-STATIONERY & GENERAL OFFICE SU,MISCELLANEOUS AND SPECIALTY RETAIL STORES,GPC
WALSALL COUNCIL,http://opendatacommunities.org/id/metropolitan-district-council/walsall ,30/09/2021,RESOURCES AND TRANSFORMATION,JOHAL DAIRIES LTD,06/07/2021,H59620210708IXUYLDFAV-1,50.45,CATERING - SCHOOLS-FOOD & DRINK SUPPLIES,OTHER NONDURABLE GOODS,GPC
WALSALL COUNCIL,http://opendatacommunities.org/id/metropolitan-district-council/walsall ,30/09/2021,RESOURCES AND TRANSFORMATION,JOHAL DAIRIES LTD,06/07/2021,H59620210708IXWSWJRDB-1,16.70,CATERING - SCHOOLS-FOOD & DRINK SUPPLIES,OTHER NONDURABLE GOODS,GPC
WALSALL COUNCIL,http://opendatacommunities.org/id/metropolitan-district-council/walsall ,30/09/2021,ADULT SOCIAL CARE,AMZNMKTPLACE,06/07/2021,H59620210708IZPYOXXRZ-1,119.99,LEARNING DISABILITY TEAM-PURCHASE OF FURNITURE & EQUIPM,MISCELLANEOUS AND SPECIALTY RETAIL STORES,GPC
WALSALL COUNCIL,http://opendatacommunities.org/id/metropolitan-district-council/walsall ,30/09/2021,RESOURCES AND TRANSFORMATION,ARTHUR BRETT CATER,06/07/2021,H59620210708JCCVYBTFS-1,26.02,CATERING - SCHOOLS-FOOD & DRINK SUPPLIES,MISCELLANEOUS FOOD STORES & CONVENIENCE STORES,GPC
WALSALL COUNCIL,http://opendatacommunities.org/id/metropolitan-district-council/walsall ,30/09/2021,RESOURCES AND TRANSFORMATION,JOHAL DAIRIES LTD,06/07/2021,H59620210708JDJQCMXIM-1,51.75,CATERING - SCHOOLS-FOOD & DRINK SUPPLIES,OTHER NONDURABLE GOODS,GPC
WALSALL COUNCIL,http://opendatacommunities.org/id/metropolitan-district-council/walsall ,30/09/2021,RESOURCES AND TRANSFORMATION,JOHAL DAIRIES LTD,06/07/2021,H59620210708JLDNHUNKH-1,77.27,CATERING - SCHOOLS-FOOD & DRINK SUPPLIES,OTHER NONDURABLE GOODS,GPC
WALSALL COUNCIL,http://opendatacommunities.org/id/metropolitan-district-council/walsall ,30/09/2021,RESOURCES AND TRANSFORMATION,ARTHUR BRETT CATER,06/07/2021,H59620210708KCHNMRPGM-1,65.62,CATERING - SCHOOLS-FOOD & DRINK SUPPLIES,MISCELLANEOUS FOOD STORES & CONVENIENCE STORES,GPC
WALSALL COUNCIL,http://opendatacommunities.org/id/metropolitan-district-council/walsall ,30/09/2021,RESOURCES AND TRANSFORMATION,JOHAL DAIRIES LTD,06/07/2021,H59620210708KCSXDBMOH-1,113.52,CATERING - SCHOOLS-FOOD & DRINK SUPPLIES,OTHER NONDURABLE GOODS,GPC
WALSALL COUNCIL,http://opendatacommunities.org/id/metropolitan-district-council/walsall ,30/09/2021,RESOURCES AND TRANSFORMATION,ASDA SUPERSTORE,06/07/2021,H59620210708KDLQHFTQJ-1,6.80,CATERING - SCHOOLS-FOOD & DRINK SUPPLIES,GROCERY STORES AND SUPERMARKETS,GPC
WALSALL COUNCIL,http://opendatacommunities.org/id/metropolitan-district-council/walsall ,30/09/2021,ECONOMY & ENVIRONMENT,AMAZON.CO.UK*OQ0DM6AF5,06/07/2021,H59620210708KFDGIYIMO-1,125.99,OAK PARK ACTIVE LIVING CENTRE-MATERIALS,OTHER DIRECT MARKETING-OTHER DIRECT MARKETERS,GPC
WALSALL COUNCIL,http://opendatacommunities.org/id/metropolitan-district-council/walsall ,30/09/2021,RESOURCES AND TRANSFORMATION,JOHAL DAIRIES LTD,06/07/2021,H59620210708KGBTKMITD-1,8.55,CATERING - SCHOOLS-FOOD & DRINK SUPPLIES,OTHER NONDURABLE GOODS,GPC
WALSALL COUNCIL,http://opendatacommunities.org/id/metropolitan-district-council/walsall ,30/09/2021,RESOURCES AND TRANSFORMATION,JOHAL DAIRIES LTD,06/07/2021,H59620210708KMMJYKFVU-1,22.95,CATERING - SCHOOLS-FOOD & DRINK SUPPLIES,OTHER NONDURABLE GOODS,GPC
WALSALL COUNCIL,http://opendatacommunities.org/id/metropolitan-district-council/walsall ,30/09/2021,CHILDRENS SERVICES,AMZNMKTPLACE,06/07/2021,H59620210708KWRNDTLGY-1,2.99,EYFS-MATERIALS,MISCELLANEOUS AND SPECIALTY RETAIL STORES,GPC
WALSALL COUNCIL,http://opendatacommunities.org/id/metropolitan-district-council/walsall ,30/09/2021,CHILDRENS SERVICES,AMZNMKTPLACE,06/07/2021,H59620210708KWZTCDIQV-1,35.85,EYFS-MATERIALS,MISCELLANEOUS AND SPECIALTY RETAIL STORES,GPC
WALSALL COUNCIL,http://opendatacommunities.org/id/metropolitan-district-council/walsall ,30/09/2021,RESOURCES AND TRANSFORMATION,ARTHUR BRETT CATER,06/07/2021,H59620210708LEARJEDYF-1,28.36,CATERING - SCHOOLS-FOOD & DRINK SUPPLIES,MISCELLANEOUS FOOD STORES & CONVENIENCE STORES,GPC
WALSALL COUNCIL,http://opendatacommunities.org/id/metropolitan-district-council/walsall ,30/09/2021,RESOURCES AND TRANSFORMATION,ARTHUR BRETT CATER,06/07/2021,H59620210708MGJWNPMHN-1,53.50,CATERING - SCHOOLS-FOOD & DRINK SUPPLIES,MISCELLANEOUS FOOD STORES & CONVENIENCE STORES,GPC
WALSALL COUNCIL,http://opendatacommunities.org/id/metropolitan-district-council/walsall ,30/09/2021,CHILDRENS SERVICES,MR P ICT LTD,06/07/2021,H59620210708MPPBJGYBJ-1,239.99,ICT LEARNING RESOURCES-MATERIALS,"SCHOOLS, ELEMENTARY AND SECONDARY",GPC
WALSALL COUNCIL,http://opendatacommunities.org/id/metropolitan-district-council/walsall ,30/09/2021,CHILDRENS SERVICES,JOHAL LUCKY STORES,06/07/2021,H59620210708MRDLFJPGY-1,25.00,WALSALL CRISIS SUPPORT SCHEME-CRISIS SUPPORT PAYMENTS,GROCERY STORES AND SUPERMARKETS,GPC
WALSALL COUNCIL,http://opendatacommunities.org/id/metropolitan-district-council/walsall ,30/09/2021,RESOURCES AND TRANSFORMATION,JOHAL DAIRIES LTD,06/07/2021,H59620210708MTXHUCRXE-1,40.88,CATERING - SCHOOLS-FOOD & DRINK SUPPLIES,OTHER NONDURABLE GOODS,GPC
WALSALL COUNCIL,http://opendatacommunities.org/id/metropolitan-district-council/walsall ,30/09/2021,ECONOMY & ENVIRONMENT,WWW.STA.CO.UK,06/07/2021,H59620210708MUXQMJIBU-1,5.50,DARLASTON SWIMMING AND FITNESS-FEES & LICENCES,OTHER RECREATION SERVICES,GPC
WALSALL COUNCIL,http://opendatacommunities.org/id/metropolitan-district-council/walsall ,30/09/2021,ECONOMY & ENVIRONMENT,WWW.STA.CO.UK,06/07/2021,H59620210708MUXQMJIBU-2,5.50,OAK PARK ACTIVE LIVING CENTRE-FEES & LICENCES,OTHER RECREATION SERVICES,GPC
WALSALL COUNCIL,http://opendatacommunities.org/id/metropolitan-district-council/walsall ,30/09/2021,ECONOMY & ENVIRONMENT,WWW.STA.CO.UK,06/07/2021,H59620210708MUXQMJIBU-3,5.50,BLOXWICH ACTIVE LIVING CENTRE-FEES & LICENCES,OTHER RECREATION SERVICES,GPC
WALSALL COUNCIL,http://opendatacommunities.org/id/metropolitan-district-council/walsall ,30/09/2021,ECONOMY & ENVIRONMENT,WWW.STA.CO.UK,06/07/2021,H59620210708MUXQMJIBU-4,5.50,WALSALL GALA SWIMMING AND FITN-FEES & LICENCES,OTHER RECREATION SERVICES,GPC
WALSALL COUNCIL,http://opendatacommunities.org/id/metropolitan-district-council/walsall ,30/09/2021,RESOURCES AND TRANSFORMATION,JOHAL DAIRIES LTD,06/07/2021,H59620210708MVTGVGXAE-1,19.80,CATERING - SCHOOLS-FOOD & DRINK SUPPLIES,OTHER NONDURABLE GOODS,GPC
WALSALL COUNCIL,http://opendatacommunities.org/id/metropolitan-district-council/walsall ,30/09/2021,CHILDRENS SERVICES,AMZNMKTPLACE,06/07/2021,H59620210708MWWKQYFBM-1,2.99,EYFS-MATERIALS,MISCELLANEOUS AND SPECIALTY RETAIL STORES,GPC
WALSALL COUNCIL,http://opendatacommunities.org/id/metropolitan-district-council/walsall ,30/09/2021,CHILDRENS SERVICES,AMZNMKTPLACE,06/07/2021,H59620210708MXGDHWTOS-1,16.11,GENERAL-MATERIALS,MISCELLANEOUS AND SPECIALTY RETAIL STORES,GPC
WALSALL COUNCIL,http://opendatacommunities.org/id/metropolitan-district-council/walsall ,30/09/2021,ECONOMY & ENVIRONMENT,AMZNMKTPLACE,06/07/2021,H59620210708NAQIWMXLP-1,5.99,LIBRARY OPERATIONS - MOBILE SE-STATIONERY & GENERAL OFFICE SU,MISCELLANEOUS AND SPECIALTY RETAIL STORES,GPC
WALSALL COUNCIL,http://opendatacommunities.org/id/metropolitan-district-council/walsall ,30/09/2021,RESOURCES AND TRANSFORMATION,WWW.MICROLINKPC.CO,06/07/2021,H59620210708NCKJKQXRY-1,1584.00,YEI IMPACT OVERHEADS-COMPUTER EQUIPMENT,"COMPUTERS, COMPUTER PERIPHERAL EQUIPMENT, SOFTWARE",GPC
WALSALL COUNCIL,http://opendatacommunities.org/id/metropolitan-district-council/walsall ,30/09/2021,CHILDRENS SERVICES,DOLPHIN COMPUTER ACCESS,06/07/2021,H59620210708NEUHBCPVE-1,1939.20,SEN ASSESSMENT-COMPUTER EQUIPMENT,MISCELLANEOUS GENERAL MERCHANDISE,GPC
WALSALL COUNCIL,http://opendatacommunities.org/id/metropolitan-district-council/walsall ,30/09/2021,RESOURCES AND TRANSFORMATION,JOHAL DAIRIES LTD,06/07/2021,H59620210708NKOEVHCDB-1,51.60,CATERING - SCHOOLS-FOOD & DRINK SUPPLIES,OTHER NONDURABLE GOODS,GPC
WALSALL COUNCIL,http://opendatacommunities.org/id/metropolitan-district-council/walsall ,30/09/2021,RESOURCES AND TRANSFORMATION,JOHAL DAIRIES LTD,06/07/2021,H59620210708NLHPIYYLW-1,18.29,CATERING - SCHOOLS-FOOD & DRINK SUPPLIES,OTHER NONDURABLE GOODS,GPC
WALSALL COUNCIL,http://opendatacommunities.org/id/metropolitan-district-council/walsall ,30/09/2021,RESOURCES AND TRANSFORMATION,ARTHUR BRETT CATER,06/07/2021,H59620210708NNHTUFHAI-1,37.75,CATERING - SCHOOLS-FOOD & DRINK SUPPLIES,MISCELLANEOUS FOOD STORES & CONVENIENCE STORES,GPC
WALSALL COUNCIL,http://opendatacommunities.org/id/metropolitan-district-council/walsall ,30/09/2021,RESOURCES AND TRANSFORMATION,JOHAL DAIRIES LTD,06/07/2021,H59620210708NUVNCAEKV-1,34.65,CATERING - SCHOOLS-FOOD & DRINK SUPPLIES,OTHER NONDURABLE GOODS,GPC
WALSALL COUNCIL,http://opendatacommunities.org/id/metropolitan-district-council/walsall ,30/09/2021,RESOURCES AND TRANSFORMATION,ARTHUR BRETT CATER,06/07/2021,H59620210708OCJHSIGBR-1,103.04,CATERING - SCHOOLS-FOOD & DRINK SUPPLIES,MISCELLANEOUS FOOD STORES & CONVENIENCE STORES,GPC
WALSALL COUNCIL,http://opendatacommunities.org/id/metropolitan-district-council/walsall ,30/09/2021,RESOURCES AND TRANSFORMATION,ARTHUR BRETT CATER,06/07/2021,H59620210708OCXNIWOYZ-1,46.05,CATERING - SCHOOLS-FOOD & DRINK SUPPLIES,MISCELLANEOUS FOOD STORES & CONVENIENCE STORES,GPC
WALSALL COUNCIL,http://opendatacommunities.org/id/metropolitan-district-council/walsall ,30/09/2021,RESOURCES AND TRANSFORMATION,ARTHUR BRETT CATER,06/07/2021,H59620210708OXLUDRFTH-1,24.16,CATERING - SCHOOLS-FOOD & DRINK SUPPLIES,MISCELLANEOUS FOOD STORES & CONVENIENCE STORES,GPC
WALSALL COUNCIL,http://opendatacommunities.org/id/metropolitan-district-council/walsall ,30/09/2021,ADULT SOCIAL CARE,FACEBK *K2WEA5KUX2,06/07/2021,H59620210708PFLZHUPEF-1,23.00,PUBLIC HEALTH BUSINESS SUPPORT-PUBLICITY & ADVERTISING (NON S,ADVERTISING SERVICES,GPC
WALSALL COUNCIL,http://opendatacommunities.org/id/metropolitan-district-council/walsall ,30/09/2021,RESOURCES AND TRANSFORMATION,JOHAL DAIRIES LTD,06/07/2021,H59620210708PXUHOCSPD-1,10.85,CATERING - SCHOOLS-FOOD & DRINK SUPPLIES,OTHER NONDURABLE GOODS,GPC
WALSALL COUNCIL,http://opendatacommunities.org/id/metropolitan-district-council/walsall ,30/09/2021,CHILDRENS SERVICES,AMZNMKTPLACE,06/07/2021,H59620210708QDFOGCCBM-1,17.73,EARLY HELP HUB-OTHER EXPENSES,MISCELLANEOUS AND SPECIALTY RETAIL STORES,GPC
WALSALL COUNCIL,http://opendatacommunities.org/id/metropolitan-district-council/walsall ,30/09/2021,CHILDRENS SERVICES,WILKO RETAIL LIMITED,06/07/2021,H59620210708QFVQXCVSG-1,11.75,"43A HILTON ROAD, WILLENHALL-CLEANING MATERIALS",MISCELLANEOUS GENERAL MERCHANDISE,GPC
WALSALL COUNCIL,http://opendatacommunities.org/id/metropolitan-district-council/walsall ,30/09/2021,RESOURCES AND TRANSFORMATION,JOHAL DAIRIES LTD,06/07/2021,H59620210708QNUUDZSFC-1,41.59,CATERING - SCHOOLS-FOOD & DRINK SUPPLIES,OTHER NONDURABLE GOODS,GPC
WALSALL COUNCIL,http://opendatacommunities.org/id/metropolitan-district-council/walsall ,30/09/2021,RESOURCES AND TRANSFORMATION,JOHAL DAIRIES LTD,06/07/2021,H59620210708QSNMSEWPR-1,6.45,CATERING - SCHOOLS-FOOD & DRINK SUPPLIES,OTHER NONDURABLE GOODS,GPC
WALSALL COUNCIL,http://opendatacommunities.org/id/metropolitan-district-council/walsall ,30/09/2021,CHILDRENS SERVICES,UTILITA ENERGY LIMITED,06/07/2021,H59620210708QWXXVYSNB-1,30.00,AFGHAN RELOCATION SCHEME-OTHER ENERGY COSTS,"UTILITIES - ELECTRIC, GAS, SANITARY & WATER",GPC
WALSALL COUNCIL,http://opendatacommunities.org/id/metropolitan-district-council/walsall ,30/09/2021,CHILDRENS SERVICES,AMZNMKTPLACE,06/07/2021,H59620210708REWRFMNNZ-1,15.96,TENANCY SERVICE-STATIONERY & GENERAL OFFICE SU,MISCELLANEOUS AND SPECIALTY RETAIL STORES,GPC
WALSALL COUNCIL,http://opendatacommunities.org/id/metropolitan-district-council/walsall ,30/09/2021,CHILDRENS SERVICES,HOLLYWOOD BOWL,06/07/2021,H59620210708RMLXXIXUA-1,21.50,NEW LEAF PUPIL REFERAL UNIT-STATIONERY & GENERAL OFFICE SU,"CLUBS COUNTRY CLUBS, MEMBERSHIP",GPC
WALSALL COUNCIL,http://opendatacommunities.org/id/metropolitan-district-council/walsall ,30/09/2021,ECONOMY & ENVIRONMENT,ZOOM.US 888-799-9666,06/07/2021,H59620210708RNKVRGQLS-1,64.00,AUDIENCE DEVELOPMENT-SUBSCRIPTIONS,TELECOMMUNICATION SERVICES,GPC
WALSALL COUNCIL,http://opendatacommunities.org/id/metropolitan-district-council/walsall ,30/09/2021,CHILDRENS SERVICES,PAYPAL *RAPIDONLINE,06/07/2021,H59620210708RUCMNJRIE-1,47.76,DT-MATERIALS,HARDWARE STORES,GPC
WALSALL COUNCIL,http://opendatacommunities.org/id/metropolitan-district-council/walsall ,30/09/2021,CHILDRENS SERVICES,SPAR STORE BEDDAU,06/07/2021,H59620210708SCMMJVBNU-1,223.23,MARY ELLIOTT SCHOOL-FOOD & DRINK SUPPLIES,GROCERY STORES AND SUPERMARKETS,GPC
WALSALL COUNCIL,http://opendatacommunities.org/id/metropolitan-district-council/walsall ,30/09/2021,RESOURCES AND TRANSFORMATION,FACEBK *F5RTT2BW82,06/07/2021,H59620210708SEQXUCPWE-1,24.99,RES-WALSALL WORKS-PUBLICITY & ADVERTISING (NON S,ADVERTISING SERVICES,GPC
WALSALL COUNCIL,http://opendatacommunities.org/id/metropolitan-district-council/walsall ,30/09/2021,CHILDRENS SERVICES,AMZNMKTPLACE,06/07/2021,H59620210708SLLVYMIYJ-1,24.99,E19-MATERIALS,MISCELLANEOUS AND SPECIALTY RETAIL STORES,GPC
WALSALL COUNCIL,http://opendatacommunities.org/id/metropolitan-district-council/walsall ,30/09/2021,CHILDRENS SERVICES,AMAZON.CO.UK*XF9I00PB5,06/07/2021,H59620210708SSJMJIUXI-1,20.99,CURRICULUM CONSUMABLES-PURCHASE OF FURNITURE & EQUIPM,OTHER DIRECT MARKETING-OTHER DIRECT MARKETERS,GPC
WALSALL COUNCIL,http://opendatacommunities.org/id/metropolitan-district-council/walsall ,30/09/2021,CHILDRENS SERVICES,JOHAL LUCKY STORES,06/07/2021,H59620210708TGYTQPHHF-1,25.00,WALSALL CRISIS SUPPORT SCHEME-CRISIS SUPPORT PAYMENTS,GROCERY STORES AND SUPERMARKETS,GPC
WALSALL COUNCIL,http://opendatacommunities.org/id/metropolitan-district-council/walsall ,30/09/2021,CHILDRENS SERVICES,ROYS MATERIAL WORLD,06/07/2021,H59620210708TIOOUNEFY-1,450.00,ART & CRAFT/DT/DISPLAY-MATERIALS,MISCELLANEOUS ACCESSORY AND APPAREL STORES,GPC
WALSALL COUNCIL,http://opendatacommunities.org/id/metropolitan-district-council/walsall ,30/09/2021,CHILDRENS SERVICES,ROYS MATERIAL WORLD,06/07/2021,H59620210708TIOOUNEFY-2,450.00,ART & CRAFT/DISPLAY & DT-MATERIALS,MISCELLANEOUS ACCESSORY AND APPAREL STORES,GPC
WALSALL COUNCIL,http://opendatacommunities.org/id/metropolitan-district-council/walsall ,30/09/2021,RESOURCES AND TRANSFORMATION,ARTHUR BRETT CATER,06/07/2021,H59620210708TQJZNEVBS-1,110.33,CATERING - SCHOOLS-FOOD & DRINK SUPPLIES,MISCELLANEOUS FOOD STORES & CONVENIENCE STORES,GPC
WALSALL COUNCIL,http://opendatacommunities.org/id/metropolitan-district-council/walsall ,30/09/2021,RESOURCES AND TRANSFORMATION,ARTHUR BRETT CATER,06/07/2021,H59620210708TXQVUPZOG-1,33.37,CATERING - SCHOOLS-FOOD & DRINK SUPPLIES,MISCELLANEOUS FOOD STORES & CONVENIENCE STORES,GPC
WALSALL COUNCIL,http://opendatacommunities.org/id/metropolitan-district-council/walsall ,30/09/2021,RESOURCES AND TRANSFORMATION,JOHAL DAIRIES LTD,06/07/2021,H59620210708TXYMWVZYR-1,55.95,CATERING - SCHOOLS-FOOD & DRINK SUPPLIES,OTHER NONDURABLE GOODS,GPC
WALSALL COUNCIL,http://opendatacommunities.org/id/metropolitan-district-council/walsall ,30/09/2021,RESOURCES AND TRANSFORMATION,ARTHUR BRETT CATER,06/07/2021,H59620210708UBOLIHBNG-1,109.33,CATERING - SCHOOLS-FOOD & DRINK SUPPLIES,MISCELLANEOUS FOOD STORES & CONVENIENCE STORES,GPC
WALSALL COUNCIL,http://opendatacommunities.org/id/metropolitan-district-council/walsall ,30/09/2021,RESOURCES AND TRANSFORMATION,ARTHUR BRETT CATER,06/07/2021,H59620210708UFSLYCWEP-1,55.76,CATERING - SCHOOLS-FOOD & DRINK SUPPLIES,MISCELLANEOUS FOOD STORES & CONVENIENCE STORES,GPC
WALSALL COUNCIL,http://opendatacommunities.org/id/metropolitan-district-council/walsall ,30/09/2021,CHILDRENS SERVICES,AMZNMKTPLACE,06/07/2021,H59620210708UMMSOVQVE-1,8.95,EYFS-MATERIALS,MISCELLANEOUS AND SPECIALTY RETAIL STORES,GPC
WALSALL COUNCIL,http://opendatacommunities.org/id/metropolitan-district-council/walsall ,30/09/2021,CHILDRENS SERVICES,UTILITA ENERGY LIMITED,06/07/2021,H59620210708UVFBHNBXO-1,20.00,AFGHAN RELOCATION SCHEME-OTHER ENERGY COSTS,"UTILITIES - ELECTRIC, GAS, SANITARY & WATER",GPC
WALSALL COUNCIL,http://opendatacommunities.org/id/metropolitan-district-council/walsall ,30/09/2021,CHILDRENS SERVICES,AMZNMKTPLACE,06/07/2021,H59620210708VEXTMUSCX-1,7.49,CHUCKERY PRIMARY SCHOOL-FIRE FIGHTING EQUIPMENT MAINTE,MISCELLANEOUS AND SPECIALTY RETAIL STORES,GPC
WALSALL COUNCIL,http://opendatacommunities.org/id/metropolitan-district-council/walsall ,30/09/2021,CHILDRENS SERVICES,DOLPHIN COMPUTER ACCESS,06/07/2021,H59620210708VIPRVDBPP-1,1939.20,SEN ASSESSMENT-COMPUTER EQUIPMENT,MISCELLANEOUS GENERAL MERCHANDISE,GPC
WALSALL COUNCIL,http://opendatacommunities.org/id/metropolitan-district-council/walsall ,30/09/2021,RESOURCES AND TRANSFORMATION,WM MORRISONS STORE,06/07/2021,H59620210708VKOPIBKOQ-1,144.84,CATERING - SCHOOLS-FOOD & DRINK SUPPLIES,GROCERY STORES AND SUPERMARKETS,GPC
WALSALL COUNCIL,http://opendatacommunities.org/id/metropolitan-district-council/walsall ,30/09/2021,CHILDRENS SERVICES,AMZNMKTPLACE,06/07/2021,H59620210708VLVFQXXCM-1,131.89,GENERAL SUPPLIES SH-MATERIALS,MISCELLANEOUS AND SPECIALTY RETAIL STORES,GPC
WALSALL COUNCIL,http://opendatacommunities.org/id/metropolitan-district-council/walsall ,30/09/2021,RESOURCES AND TRANSFORMATION,ARTHUR BRETT CATER,06/07/2021,H59620210708VLYEHNOMM-1,14.64,CATERING - SCHOOLS-FOOD & DRINK SUPPLIES,MISCELLANEOUS FOOD STORES & CONVENIENCE STORES,GPC
WALSALL COUNCIL,http://opendatacommunities.org/id/metropolitan-district-council/walsall ,30/09/2021,ECONOMY & ENVIRONMENT,ZOOM.US 888-799-9666,06/07/2021,H59620210708VXOVJVYZL-1,40.00,AUDIENCE DEVELOPMENT-SUBSCRIPTIONS,TELECOMMUNICATION SERVICES,GPC
WALSALL COUNCIL,http://opendatacommunities.org/id/metropolitan-district-council/walsall ,30/09/2021,RESOURCES AND TRANSFORMATION,JOHAL DAIRIES LTD,06/07/2021,H59620210708VZLOGEICG-1,2.85,CATERING - SCHOOLS-FOOD & DRINK SUPPLIES,OTHER NONDURABLE GOODS,GPC
WALSALL COUNCIL,http://opendatacommunities.org/id/metropolitan-district-council/walsall ,30/09/2021,RESOURCES AND TRANSFORMATION,ARTHUR BRETT CATER,06/07/2021,H59620210708WCQOQPFDB-1,22.04,CATERING - SCHOOLS-FOOD & DRINK SUPPLIES,MISCELLANEOUS FOOD STORES & CONVENIENCE STORES,GPC
WALSALL COUNCIL,http://opendatacommunities.org/id/metropolitan-district-council/walsall ,30/09/2021,RESOURCES AND TRANSFORMATION,ARTHUR BRETT CATER,06/07/2021,H59620210708WFSTEZJDH-1,49.39,CATERING - SCHOOLS-FOOD & DRINK SUPPLIES,MISCELLANEOUS FOOD STORES & CONVENIENCE STORES,GPC
WALSALL COUNCIL,http://opendatacommunities.org/id/metropolitan-district-council/walsall ,30/09/2021,RESOURCES AND TRANSFORMATION,ARTHUR BRETT CATER,06/07/2021,H59620210708WGLFHPQND-1,72.18,CATERING - SCHOOLS-FOOD & DRINK SUPPLIES,MISCELLANEOUS FOOD STORES & CONVENIENCE STORES,GPC
WALSALL COUNCIL,http://opendatacommunities.org/id/metropolitan-district-council/walsall ,30/09/2021,RESOURCES AND TRANSFORMATION,ARTHUR BRETT CATER,06/07/2021,H59620210708WRVTWGPQB-1,28.04,CATERING - SCHOOLS-FOOD & DRINK SUPPLIES,MISCELLANEOUS FOOD STORES & CONVENIENCE STORES,GPC
WALSALL COUNCIL,http://opendatacommunities.org/id/metropolitan-district-council/walsall ,30/09/2021,CHILDRENS SERVICES,HOTEL IBIS,06/07/2021,H59620210708WRWMFBMCK-1,314.00,BED & BREAKFAST PAYMENTS-BED & BREAKFAST PAYMENTS,HOTEL IBIS,GPC
WALSALL COUNCIL,http://opendatacommunities.org/id/metropolitan-district-council/walsall ,30/09/2021,RESOURCES AND TRANSFORMATION,JOHAL DAIRIES LTD,06/07/2021,H59620210708WRXTNOMHZ-1,38.40,CATERING - SCHOOLS-FOOD & DRINK SUPPLIES,OTHER NONDURABLE GOODS,GPC
WALSALL COUNCIL,http://opendatacommunities.org/id/metropolitan-district-council/walsall ,30/09/2021,CHILDRENS SERVICES,AMZNMKTPLACE,06/07/2021,H59620210708WSUUDKUHW-1,35.65,AWARDS/ ATTEND / PRIZES-STATIONERY & GENERAL OFFICE SU,MISCELLANEOUS AND SPECIALTY RETAIL STORES,GPC
WALSALL COUNCIL,http://opendatacommunities.org/id/metropolitan-district-council/walsall ,30/09/2021,RESOURCES AND TRANSFORMATION,JOHAL DAIRIES LTD,06/07/2021,H59620210708WXBDZSFRK-1,27.90,CATERING - SCHOOLS-FOOD & DRINK SUPPLIES,OTHER NONDURABLE GOODS,GPC
WALSALL COUNCIL,http://opendatacommunities.org/id/metropolitan-district-council/walsall ,30/09/2021,ECONOMY & ENVIRONMENT,WM MORRISONS STORE,06/07/2021,H59620210708WXBPRASIC-1,6.00,BLOXWICH LIBRARY-PURCHASE OF FURNITURE & EQUIPM,GROCERY STORES AND SUPERMARKETS,GPC
WALSALL COUNCIL,http://opendatacommunities.org/id/metropolitan-district-council/walsall ,30/09/2021,RESOURCES AND TRANSFORMATION,JOHAL DAIRIES LTD,06/07/2021,H59620210708WXCKEBGMN-1,31.50,CATERING - SCHOOLS-FOOD & DRINK SUPPLIES,OTHER NONDURABLE GOODS,GPC
WALSALL COUNCIL,http://opendatacommunities.org/id/metropolitan-district-council/walsall ,30/09/2021,RESOURCES AND TRANSFORMATION,JOHAL DAIRIES LTD,06/07/2021,H59620210708WXLPRUQQU-1,34.20,CATERING - SCHOOLS-FOOD & DRINK SUPPLIES,OTHER NONDURABLE GOODS,GPC
WALSALL COUNCIL,http://opendatacommunities.org/id/metropolitan-district-council/walsall ,30/09/2021,CHILDRENS SERVICES,ALDI 772 129,06/07/2021,H59620210708WXXILJTXR-1,64.07,"43A HILTON ROAD, WILLENHALL-FOOD & DRINK SUPPLIES",GROCERY STORES AND SUPERMARKETS,GPC
WALSALL COUNCIL,http://opendatacommunities.org/id/metropolitan-district-council/walsall ,30/09/2021,CHILDRENS SERVICES,ALDI 772 129,06/07/2021,H59620210708WXXILJTXR-2,8.89,"43A HILTON ROAD, WILLENHALL-FOOD & DRINK SUPPLIES",GROCERY STORES AND SUPERMARKETS,GPC
WALSALL COUNCIL,http://opendatacommunities.org/id/metropolitan-district-council/walsall ,30/09/2021,RESOURCES AND TRANSFORMATION,JOHAL DAIRIES LTD,06/07/2021,H59620210708XAKYFVCSB-1,11.16,CATERING - SCHOOLS-FOOD & DRINK SUPPLIES,OTHER NONDURABLE GOODS,GPC
WALSALL COUNCIL,http://opendatacommunities.org/id/metropolitan-district-council/walsall ,30/09/2021,CHILDRENS SERVICES,THE CONSORTIUM/WMS,06/07/2021,H59620210708XDFRRWHUW-1,254.71,LEARNING ENVIRONMENT-MATERIALS,DIRECT MARKETING CONTINUITY SUBSCRIPTION MERCHANTS,GPC
WALSALL COUNCIL,http://opendatacommunities.org/id/metropolitan-district-council/walsall ,30/09/2021,CHILDRENS SERVICES,JOHAL LUCKY STORES,06/07/2021,H59620210708XDGBLPDRH-1,25.00,WALSALL CRISIS SUPPORT SCHEME-CRISIS SUPPORT PAYMENTS,GROCERY STORES AND SUPERMARKETS,GPC
WALSALL COUNCIL,http://opendatacommunities.org/id/metropolitan-district-council/walsall ,30/09/2021,RESOURCES AND TRANSFORMATION,JOHAL DAIRIES LTD,06/07/2021,H59620210708XIMEUZUNQ-1,70.89,CATERING - SCHOOLS-FOOD & DRINK SUPPLIES,OTHER NONDURABLE GOODS,GPC
WALSALL COUNCIL,http://opendatacommunities.org/id/metropolitan-district-council/walsall ,30/09/2021,RESOURCES AND TRANSFORMATION,JOHAL DAIRIES LTD,06/07/2021,H59620210708XPGGIJDIE-1,36.88,CATERING - SCHOOLS-FOOD & DRINK SUPPLIES,OTHER NONDURABLE GOODS,GPC
WALSALL COUNCIL,http://opendatacommunities.org/id/metropolitan-district-council/walsall ,30/09/2021,RESOURCES AND TRANSFORMATION,JOHAL DAIRIES LTD,06/07/2021,H59620210708XURNUXHQI-1,106.38,CATERING - SCHOOLS-FOOD & DRINK SUPPLIES,OTHER NONDURABLE GOODS,GPC
WALSALL COUNCIL,http://opendatacommunities.org/id/metropolitan-district-council/walsall ,30/09/2021,RESOURCES AND TRANSFORMATION,JOHAL DAIRIES LTD,06/07/2021,H59620210708XVCOHSXGD-1,29.70,CATERING - SCHOOLS-FOOD & DRINK SUPPLIES,OTHER NONDURABLE GOODS,GPC
WALSALL COUNCIL,http://opendatacommunities.org/id/metropolitan-district-council/walsall ,30/09/2021,CHILDRENS SERVICES,MCDONALDS,06/07/2021,H59620210708XWSWAMAHU-1,2.97,EDGE OF CARE TEAM-FOOD & DRINK SUPPLIES,QUICK PAYMENT SERVICE-FAST-FOOD RESTAURANTS,GPC
WALSALL COUNCIL,http://opendatacommunities.org/id/metropolitan-district-council/walsall ,30/09/2021,ECONOMY & ENVIRONMENT,BAR CODE DATA LTD,06/07/2021,H59620210708XXTSWEBHT-1,165.00,BLOXWICH LIBRARY-PURCHASE OF FURNITURE & EQUIPM,MISCELLANEOUS AND SPECIALTY RETAIL STORES,GPC
WALSALL COUNCIL,http://opendatacommunities.org/id/metropolitan-district-council/walsall ,30/09/2021,CHILDRENS SERVICES,AMZNMKTPLACE,06/07/2021,H59620210708YHCRMYYMO-1,118.96,EYFS-MATERIALS,MISCELLANEOUS AND SPECIALTY RETAIL STORES,GPC
WALSALL COUNCIL,http://opendatacommunities.org/id/metropolitan-district-council/walsall ,30/09/2021,RESOURCES AND TRANSFORMATION,JOHAL DAIRIES LTD,06/07/2021,H59620210708YISWJMFZN-1,73.45,CATERING - SCHOOLS-FOOD & DRINK SUPPLIES,OTHER NONDURABLE GOODS,GPC
WALSALL COUNCIL,http://opendatacommunities.org/id/metropolitan-district-council/walsall ,30/09/2021,RESOURCES AND TRANSFORMATION,ARTHUR BRETT CATER,06/07/2021,H59620210708YJCHGHQEV-1,48.00,CATERING - SCHOOLS-FOOD & DRINK SUPPLIES,MISCELLANEOUS FOOD STORES & CONVENIENCE STORES,GPC
WALSALL COUNCIL,http://opendatacommunities.org/id/metropolitan-district-council/walsall ,30/09/2021,RESOURCES AND TRANSFORMATION,ARTHUR BRETT CATER,06/07/2021,H59620210708YKFFUPSZQ-1,116.81,CATERING - SCHOOLS-FOOD & DRINK SUPPLIES,MISCELLANEOUS FOOD STORES & CONVENIENCE STORES,GPC
WALSALL COUNCIL,http://opendatacommunities.org/id/metropolitan-district-council/walsall ,30/09/2021,CHILDRENS SERVICES,JUST MY LOOK,06/07/2021,H59620210708YKOKTACAL-1,29.87,E19-MATERIALS,COSMETIC STORES,GPC
WALSALL COUNCIL,http://opendatacommunities.org/id/metropolitan-district-council/walsall ,30/09/2021,RESOURCES AND TRANSFORMATION,ARTHUR BRETT CATER,06/07/2021,H59620210708YSUNRLTEK-1,35.11,CATERING - SCHOOLS-FOOD & DRINK SUPPLIES,MISCELLANEOUS FOOD STORES & CONVENIENCE STORES,GPC
WALSALL COUNCIL,http://opendatacommunities.org/id/metropolitan-district-council/walsall ,30/09/2021,RESOURCES AND TRANSFORMATION,JOHAL DAIRIES LTD,06/07/2021,H59620210708YUJXQFVEF-1,4.82,CATERING - SCHOOLS-FOOD & DRINK SUPPLIES,OTHER NONDURABLE GOODS,GPC
WALSALL COUNCIL,http://opendatacommunities.org/id/metropolitan-district-council/walsall ,30/09/2021,RESOURCES AND TRANSFORMATION,JOHAL DAIRIES LTD,06/07/2021,H59620210708YYSDFHAQU-1,36.24,CATERING - SCHOOLS-FOOD & DRINK SUPPLIES,OTHER NONDURABLE GOODS,GPC
WALSALL COUNCIL,http://opendatacommunities.org/id/metropolitan-district-council/walsall ,30/09/2021,RESOURCES AND TRANSFORMATION,ARTHUR BRETT CATER,06/07/2021,H59620210708YZSPRJCNV-1,34.27,CATERING - SCHOOLS-FOOD & DRINK SUPPLIES,MISCELLANEOUS FOOD STORES & CONVENIENCE STORES,GPC
WALSALL COUNCIL,http://opendatacommunities.org/id/metropolitan-district-council/walsall ,30/09/2021,RESOURCES AND TRANSFORMATION,ARTHUR BRETT CATER,06/07/2021,H59620210708ZOKRMRPHC-1,23.24,CATERING - SCHOOLS-FOOD & DRINK SUPPLIES,MISCELLANEOUS FOOD STORES & CONVENIENCE STORES,GPC
WALSALL COUNCIL,http://opendatacommunities.org/id/metropolitan-district-council/walsall ,30/09/2021,RESOURCES AND TRANSFORMATION,JOHAL DAIRIES LTD,06/07/2021,H59620210708ZRTMBYNJI-1,28.80,CATERING - SCHOOLS-FOOD & DRINK SUPPLIES,OTHER NONDURABLE GOODS,GPC
WALSALL COUNCIL,http://opendatacommunities.org/id/metropolitan-district-council/walsall ,30/09/2021,CHILDRENS SERVICES,NWT SUPPLIES LIMITED,06/07/2021,H59620210708ZYNLROFCE-1,225.55,CHUCKERY PRIMARY SCHOOL-GROUNDS MAINTENANCE,"NURSERIES, LAWN AND GARDEN SUPPLY STORES",GPC
WALSALL COUNCIL,http://opendatacommunities.org/id/metropolitan-district-council/walsall ,30/09/2021,CHILDRENS SERVICES,BT PLC BUSINESS MOTO BPAY,06/07/2021,H59620210709RUSOHOTKO-1,110.64,ADMINISTRATIVE SUPPLIES-LANDLINE PHONES,TELECOMMUNICATION SERVICES,GPC
WALSALL COUNCIL,http://opendatacommunities.org/id/metropolitan-district-council/walsall ,30/09/2021,ECONOMY & ENVIRONMENT,PULSE FITNESS,06/07/2021,H59620210709WTCMKWMJJ-1,314.86,BLOXWICH ACTIVE LIVING CENTRE-PURCHASE OF FURNITURE & EQUIPM,SPORTING GOODS STORES,GPC
WALSALL COUNCIL,http://opendatacommunities.org/id/metropolitan-district-council/walsall ,30/09/2021,CHILDRENS SERVICES,SNAPFISH UK *,06/07/2021,H59620210710RRYTIGIKE-1,2.48,ADMINISTRATIVE SUPPLIES-MATERIALS,"PHOTO DEVELOPING, PHOTOFINISHING LABORATORIES",GPC
WALSALL COUNCIL,http://opendatacommunities.org/id/metropolitan-district-council/walsall ,30/09/2021,RESOURCES AND TRANSFORMATION,ARTHUR BRETT CATER,06/07/2021,H59620210716CKHDWYTKN-1,-0.58,CATERING - SCHOOLS-FOOD & DRINK SUPPLIES,MISCELLANEOUS FOOD STORES & CONVENIENCE STORES,GPC
WALSALL COUNCIL,http://opendatacommunities.org/id/metropolitan-district-council/walsall ,30/09/2021,RESOURCES AND TRANSFORMATION,AMZNMKTPLACE,07/07/2021,H59620210708GEUPKSFGQ-1,22.97,PROGRAMME DELIVERY TEAM-COMPUTER EQUIPMENT,MISCELLANEOUS AND SPECIALTY RETAIL STORES,GPC
WALSALL COUNCIL,http://opendatacommunities.org/id/metropolitan-district-council/walsall ,30/09/2021,CHILDRENS SERVICES,AMZNMKTPLACE,07/07/2021,H59620210708GHDYMNCLL-1,33.46,AWARDS/ ATTEND / PRIZES-STATIONERY & GENERAL OFFICE SU,MISCELLANEOUS AND SPECIALTY RETAIL STORES,GPC
WALSALL COUNCIL,http://opendatacommunities.org/id/metropolitan-district-council/walsall ,30/09/2021,RESOURCES AND TRANSFORMATION,AMZNMKTPLACE,07/07/2021,H59620210708NVUQXDSDE-1,29.98,SIT-INFRASTRUCTURE-STATIONERY & GENERAL OFFICE SU,MISCELLANEOUS AND SPECIALTY RETAIL STORES,GPC
WALSALL COUNCIL,http://opendatacommunities.org/id/metropolitan-district-council/walsall ,30/09/2021,CHILDRENS SERVICES,AMZNMKTPLACE,07/07/2021,H59620210708TAVOLBRVX-1,3.98,EARLY HELP HUB-MATERIALS,MISCELLANEOUS AND SPECIALTY RETAIL STORES,GPC
WALSALL COUNCIL,http://opendatacommunities.org/id/metropolitan-district-council/walsall ,30/09/2021,CHILDRENS SERVICES,AMZNMKTPLACE,07/07/2021,H59620210709ACEBIQOKP-1,182.06,OUTDOOR RESOURCES-STATIONERY & GENERAL OFFICE SU,MISCELLANEOUS AND SPECIALTY RETAIL STORES,GPC
WALSALL COUNCIL,http://opendatacommunities.org/id/metropolitan-district-council/walsall ,30/09/2021,ECONOMY & ENVIRONMENT,STRIKE ELECTRICAL DIST,07/07/2021,H59620210709AMZIXRFIL-1,108.00,LEATHER MUSEUM-PURCHASE OF FURNITURE & EQUIPM,HOUSEHOLD APPLIANCE STORES,GPC
WALSALL COUNCIL,http://opendatacommunities.org/id/metropolitan-district-council/walsall ,30/09/2021,ECONOMY & ENVIRONMENT,WWW.BANNERUK.COM,07/07/2021,H59620210709ANBWRMFOQ-1,20.40,LEATHER MUSEUM-STATIONERY & GENERAL OFFICE SU,"STATIONERY, OFFICE SUPPLIES AND WRITING PAPER",GPC
WALSALL COUNCIL,http://opendatacommunities.org/id/metropolitan-district-council/walsall ,30/09/2021,ECONOMY & ENVIRONMENT,AMZNMKTPLACE,07/07/2021,H59620210709BCMEIWKJO-1,111.65,BLOXWICH ACTIVE LIVING CENTRE-MATERIALS,MISCELLANEOUS AND SPECIALTY RETAIL STORES,GPC
WALSALL COUNCIL,http://opendatacommunities.org/id/metropolitan-district-council/walsall ,30/09/2021,CHILDRENS SERVICES,AMZNMKTPLACE,07/07/2021,H59620210709BPSHFWEOD-1,20.50,GENERAL SUPPLIES LH-MATERIALS,MISCELLANEOUS AND SPECIALTY RETAIL STORES,GPC
WALSALL COUNCIL,http://opendatacommunities.org/id/metropolitan-district-council/walsall ,30/09/2021,CHILDRENS SERVICES,MR T DOES HISTORY,07/07/2021,H59620210709BVHTKYYHP-1,20.00,E19-MATERIALS,"COMPUTER PROGRAM, SYSTEM DESIGN",GPC
WALSALL COUNCIL,http://opendatacommunities.org/id/metropolitan-district-council/walsall ,30/09/2021,CHILDRENS SERVICES,WWW.PRINTERLAND.CO,07/07/2021,H59620210709CEMTKHEEN-1,441.24,ADMINISTRATIVE SUPPLIES-COMPUTER EQUIPMENT,"COMPUTER PROGRAM, SYSTEM DESIGN",GPC
WALSALL COUNCIL,http://opendatacommunities.org/id/metropolitan-district-council/walsall ,30/09/2021,RESOURCES AND TRANSFORMATION,JOHAL DAIRIES LTD,07/07/2021,H59620210709CENUDWYUG-1,9.90,CATERING - SCHOOLS-FOOD & DRINK SUPPLIES,OTHER NONDURABLE GOODS,GPC
WALSALL COUNCIL,http://opendatacommunities.org/id/metropolitan-district-council/walsall ,30/09/2021,RESOURCES AND TRANSFORMATION,JOHAL DAIRIES LTD,07/07/2021,H59620210709CKYAMJZYP-1,31.60,CATERING - SCHOOLS-FOOD & DRINK SUPPLIES,OTHER NONDURABLE GOODS,GPC
WALSALL COUNCIL,http://opendatacommunities.org/id/metropolitan-district-council/walsall ,30/09/2021,CHILDRENS SERVICES,AMZNMKTPLACE AMAZON.CO.UK,07/07/2021,H59620210709CMMUVKITY-1,65.97,OAKWOOD SCHOOL-PERSONAL REQUISITES-MATERIALS,MISCELLANEOUS AND SPECIALTY RETAIL STORES,GPC
WALSALL COUNCIL,http://opendatacommunities.org/id/metropolitan-district-council/walsall ,30/09/2021,CHILDRENS SERVICES,AMZNMKTPLACE,07/07/2021,H59620210709CNSTSSJYV-1,6.99,COGNITION & LEARNING-STATIONERY & GENERAL OFFICE SU,MISCELLANEOUS AND SPECIALTY RETAIL STORES,GPC
WALSALL COUNCIL,http://opendatacommunities.org/id/metropolitan-district-council/walsall ,30/09/2021,ECONOMY & ENVIRONMENT,THE BEST FUN LIMIT,07/07/2021,H59620210709CWXVFPMQS-1,144.00,OAK PARK ACTIVE LIVING CENTRE-FEES & LICENCES,OTHER RECREATION SERVICES,GPC
WALSALL COUNCIL,http://opendatacommunities.org/id/metropolitan-district-council/walsall ,30/09/2021,CHILDRENS SERVICES,AMZNMKTPLACE,07/07/2021,H59620210709CYIVKMQNM-1,23.96,DT & ART-MATERIALS,MISCELLANEOUS AND SPECIALTY RETAIL STORES,GPC
WALSALL COUNCIL,http://opendatacommunities.org/id/metropolitan-district-council/walsall ,30/09/2021,CHILDRENS SERVICES,JOHAL LUCKY STORES,07/07/2021,H59620210709CZPLHQEPP-1,20.00,WALSALL CRISIS SUPPORT SCHEME-FOOD & DRINK SUPPLIES,GROCERY STORES AND SUPERMARKETS,GPC
WALSALL COUNCIL,http://opendatacommunities.org/id/metropolitan-district-council/walsall ,30/09/2021,RESOURCES AND TRANSFORMATION,JOHAL DAIRIES LTD,07/07/2021,H59620210709DKYXFRXJT-1,2.93,CATERING - SCHOOLS-FOOD & DRINK SUPPLIES,OTHER NONDURABLE GOODS,GPC
WALSALL COUNCIL,http://opendatacommunities.org/id/metropolitan-district-council/walsall ,30/09/2021,CHILDRENS SERVICES,AMZNMKTPLACE,07/07/2021,H59620210709DRNHUSTXX-1,79.90,CONSUMABLES-MATERIALS,MISCELLANEOUS AND SPECIALTY RETAIL STORES,GPC
WALSALL COUNCIL,http://opendatacommunities.org/id/metropolitan-district-council/walsall ,30/09/2021,RESOURCES AND TRANSFORMATION,BLAKEMORE FOODSERVICE,07/07/2021,H59620210709DYJDTSVAV-1,697.48,CATERING - SCHOOLS-FOOD & DRINK SUPPLIES,CATERERS,GPC
WALSALL COUNCIL,http://opendatacommunities.org/id/metropolitan-district-council/walsall ,30/09/2021,ECONOMY & ENVIRONMENT,TRAINLINE,07/07/2021,H59620210709EYDAJNUKT-1,62.55,NAG - TEMPORARY EXHIBITIONS-VOLUNTEERS & OTHERS PUBLIC TRA,PASSENGER RAILWAYS,GPC
WALSALL COUNCIL,http://opendatacommunities.org/id/metropolitan-district-council/walsall ,30/09/2021,CHILDRENS SERVICES,AMZNMKTPLACE,07/07/2021,H59620210709FBZHJYDVI-1,11.40,AWARDS/ ATTEND / PRIZES-MATERIALS,MISCELLANEOUS AND SPECIALTY RETAIL STORES,GPC
WALSALL COUNCIL,http://opendatacommunities.org/id/metropolitan-district-council/walsall ,30/09/2021,CHILDRENS SERVICES,EDSHED,07/07/2021,H59620210709FILKFMOKU-1,280.80,LITERACY-SUBSCRIPTIONS,COMPUTER SOFTWARE STORES,GPC
WALSALL COUNCIL,http://opendatacommunities.org/id/metropolitan-district-council/walsall ,30/09/2021,RESOURCES AND TRANSFORMATION,ASDA SUPERSTORE,07/07/2021,H59620210709FISFLUCOF-1,115.20,CATERING - SCHOOLS-FOOD & DRINK SUPPLIES,GROCERY STORES AND SUPERMARKETS,GPC
WALSALL COUNCIL,http://opendatacommunities.org/id/metropolitan-district-council/walsall ,30/09/2021,CHILDRENS SERVICES,AMZNMKTPLACE,07/07/2021,H59620210709FXCZOAHIV-1,12.97,ADMINISTRATIVE SUPPLIES-MATERIALS,MISCELLANEOUS AND SPECIALTY RETAIL STORES,GPC
WALSALL COUNCIL,http://opendatacommunities.org/id/metropolitan-district-council/walsall ,30/09/2021,CHILDRENS SERVICES,AMZNMKTPLACE,07/07/2021,H59620210709GGMGANONR-1,17.87,ST FRANCIS OF ASSISI CATHOLIC -OPERATIONAL MAINTENANCE,MISCELLANEOUS AND SPECIALTY RETAIL STORES,GPC
WALSALL COUNCIL,http://opendatacommunities.org/id/metropolitan-district-council/walsall ,30/09/2021,ECONOMY & ENVIRONMENT,SAINSBURYS S/MKT,07/07/2021,H59620210709GTJNKEGFQ-1,7.50,LIBRARY OPERATIONS - MOBILE SE-FOOD & DRINK SUPPLIES,GROCERY STORES AND SUPERMARKETS,GPC
WALSALL COUNCIL,http://opendatacommunities.org/id/metropolitan-district-council/walsall ,30/09/2021,RESOURCES AND TRANSFORMATION,BLAKEMORE FOODSERVICE,07/07/2021,H59620210709HCZYKVPTO-1,359.04,CATERING - SCHOOLS-FOOD & DRINK SUPPLIES,CATERERS,GPC
WALSALL COUNCIL,http://opendatacommunities.org/id/metropolitan-district-council/walsall ,30/09/2021,RESOURCES AND TRANSFORMATION,BLAKEMORE FOODSERVICE,07/07/2021,H59620210709HCZYKVPTO-2,20.07,CATERING - SCHOOLS-FOOD & DRINK SUPPLIES,CATERERS,GPC
WALSALL COUNCIL,http://opendatacommunities.org/id/metropolitan-district-council/walsall ,30/09/2021,RESOURCES AND TRANSFORMATION,BLAKEMORE FOODSERVICE,07/07/2021,H59620210709HHDSHSVKJ-1,89.83,CATERING - SCHOOLS-FOOD & DRINK SUPPLIES,CATERERS,GPC
WALSALL COUNCIL,http://opendatacommunities.org/id/metropolitan-district-council/walsall ,30/09/2021,RESOURCES AND TRANSFORMATION,BLAKEMORE FOODSERVICE,07/07/2021,H59620210709HHDSHSVKJ-2,34.26,CATERING - SCHOOLS-FOOD & DRINK SUPPLIES,CATERERS,GPC
WALSALL COUNCIL,http://opendatacommunities.org/id/metropolitan-district-council/walsall ,30/09/2021,RESOURCES AND TRANSFORMATION,BLAKEMORE FOODSERVICE,07/07/2021,H59620210709HIUMNSVOM-1,242.94,CATERING - SCHOOLS-FOOD & DRINK SUPPLIES,CATERERS,GPC
WALSALL COUNCIL,http://opendatacommunities.org/id/metropolitan-district-council/walsall ,30/09/2021,RESOURCES AND TRANSFORMATION,BLAKEMORE FOODSERVICE,07/07/2021,H59620210709HIUMNSVOM-2,9.92,CATERING - SCHOOLS-FOOD & DRINK SUPPLIES,CATERERS,GPC
WALSALL COUNCIL,http://opendatacommunities.org/id/metropolitan-district-council/walsall ,30/09/2021,CHILDRENS SERVICES,JOHAL LUCKY STORES,07/07/2021,H59620210709HKSMBSDJG-1,20.00,WALSALL CRISIS SUPPORT SCHEME-FOOD & DRINK SUPPLIES,GROCERY STORES AND SUPERMARKETS,GPC
WALSALL COUNCIL,http://opendatacommunities.org/id/metropolitan-district-council/walsall ,30/09/2021,CHILDRENS SERVICES,JOHAL LUCKY STORES,07/07/2021,H59620210709HWEBUMHOM-1,25.00,WALSALL CRISIS SUPPORT SCHEME-FOOD & DRINK SUPPLIES,GROCERY STORES AND SUPERMARKETS,GPC
WALSALL COUNCIL,http://opendatacommunities.org/id/metropolitan-district-council/walsall ,30/09/2021,RESOURCES AND TRANSFORMATION,ASDA SUPERSTORE,07/07/2021,H59620210709IKPHOXUSC-1,39.90,CATERING - SCHOOLS-FOOD & DRINK SUPPLIES,GROCERY STORES AND SUPERMARKETS,GPC
WALSALL COUNCIL,http://opendatacommunities.org/id/metropolitan-district-council/walsall ,30/09/2021,CHILDRENS SERVICES,BUZZ NETWORKS TA VIRTUAL,07/07/2021,H59620210709IMLXEDGDO-1,12.96,ADMINISTRATIVE SUPPLIES-LANDLINE PHONES,TELECOMMUNICATION SERVICES,GPC
WALSALL COUNCIL,http://opendatacommunities.org/id/metropolitan-district-council/walsall ,30/09/2021,CHILDRENS SERVICES,TRAINLINE,07/07/2021,H59620210709JBRVPBBAT-1,-42.80,SAFEGUARDING & FAMILY SUPPORT-OFFICERS & STAFF PUBLIC TRANSP,PASSENGER RAILWAYS,GPC
WALSALL COUNCIL,http://opendatacommunities.org/id/metropolitan-district-council/walsall ,30/09/2021,RESOURCES AND TRANSFORMATION,JENFLOW SYSTEMS LTD,07/07/2021,H59620210709JGEXAGZGO-1,120.00,YEI ESF FUNDING-MATERIALS,"PAINTS, VARNISHES, AND SUPPLIES",GPC
WALSALL COUNCIL,http://opendatacommunities.org/id/metropolitan-district-council/walsall ,30/09/2021,RESOURCES AND TRANSFORMATION,JENFLOW SYSTEMS LTD,07/07/2021,H59620210709JGEXAGZGO-2,120.00,YEI (IMPACT) PROGRAMME-MATERIALS,"PAINTS, VARNISHES, AND SUPPLIES",GPC
WALSALL COUNCIL,http://opendatacommunities.org/id/metropolitan-district-council/walsall ,30/09/2021,ECONOMY & ENVIRONMENT,AMZNMKTPLACE,07/07/2021,H59620210709JMLJLYSOU-1,2.75,OAK PARK ACTIVE LIVING CENTRE-STATIONERY & GENERAL OFFICE SU,MISCELLANEOUS AND SPECIALTY RETAIL STORES,GPC
WALSALL COUNCIL,http://opendatacommunities.org/id/metropolitan-district-council/walsall ,30/09/2021,CHILDRENS SERVICES,AMAZON.CO.UK*FC1Q25QR5,07/07/2021,H59620210709JTWNEDMCQ-1,15.99,ADMINISTRATIVE SUPPLIES-MATERIALS,OTHER DIRECT MARKETING-OTHER DIRECT MARKETERS,GPC
WALSALL COUNCIL,http://opendatacommunities.org/id/metropolitan-district-council/walsall ,30/09/2021,RESOURCES AND TRANSFORMATION,BLAKEMORE FOODSERVICE,07/07/2021,H59620210709JWTFNMVDF-1,13.73,CATERING - SCHOOLS-FOOD & DRINK SUPPLIES,CATERERS,GPC
WALSALL COUNCIL,http://opendatacommunities.org/id/metropolitan-district-council/walsall ,30/09/2021,CHILDRENS SERVICES,FOUR SQUARE HEALTHCARE,07/07/2021,H59620210709JYVENSMVK-1,77.21,ADMINISTRATIVE SUPPLIES-MATERIALS,DENTAL/LABORATORY/MEDICAL EQUIPMENT & SUPPLIES,GPC
WALSALL COUNCIL,http://opendatacommunities.org/id/metropolitan-district-council/walsall ,30/09/2021,CHILDRENS SERVICES,POST OFFICE COUNTER,07/07/2021,H59620210709KFFVPXYMI-1,20.57,LOOKED AFTER CHILDRENS SOCIAL -POSTAGES & COURIER SERVICES,POSTAL SERVICES - GOVERNMENT ONLY,GPC
WALSALL COUNCIL,http://opendatacommunities.org/id/metropolitan-district-council/walsall ,30/09/2021,CHILDRENS SERVICES,AMAZON.CO.UK*WN0BK2MF5,07/07/2021,H59620210709KMQPRPVXF-1,38.98,ST FRANCIS OF ASSISI CATHOLIC -OPERATIONAL MAINTENANCE,OTHER DIRECT MARKETING-OTHER DIRECT MARKETERS,GPC
WALSALL COUNCIL,http://opendatacommunities.org/id/metropolitan-district-council/walsall ,30/09/2021,CHILDRENS SERVICES,AMZNMKTPLACE,07/07/2021,H59620210709LEUSJIXSK-1,9.45,DT-MATERIALS,MISCELLANEOUS AND SPECIALTY RETAIL STORES,GPC
WALSALL COUNCIL,http://opendatacommunities.org/id/metropolitan-district-council/walsall ,30/09/2021,RESOURCES AND TRANSFORMATION,BLAKEMORE FOODSERVICE,07/07/2021,H59620210709LHIKZSIXL-1,23.95,CATERING - SCHOOLS-FOOD & DRINK SUPPLIES,CATERERS,GPC
WALSALL COUNCIL,http://opendatacommunities.org/id/metropolitan-district-council/walsall ,30/09/2021,CHILDRENS SERVICES,O HEAP & SON (DERBY) L,07/07/2021,H59620210709LKDCCDLTO-1,228.80,ADMINISTRATIVE SUPPLIES-MATERIALS,OTHER BUSINESS SERVICES,GPC
WALSALL COUNCIL,http://opendatacommunities.org/id/metropolitan-district-council/walsall ,30/09/2021,RESOURCES AND TRANSFORMATION,BLAKEMORE FOODSERVICE,07/07/2021,H59620210709LSOYSGRUB-1,1676.42,CATERING - SCHOOLS-FOOD & DRINK SUPPLIES,CATERERS,GPC
WALSALL COUNCIL,http://opendatacommunities.org/id/metropolitan-district-council/walsall ,30/09/2021,RESOURCES AND TRANSFORMATION,BLAKEMORE FOODSERVICE,07/07/2021,H59620210709LSOYSGRUB-2,99.92,CATERING - SCHOOLS-FOOD & DRINK SUPPLIES,CATERERS,GPC
WALSALL COUNCIL,http://opendatacommunities.org/id/metropolitan-district-council/walsall ,30/09/2021,CHILDRENS SERVICES,AMZNMKTPLACE,07/07/2021,H59620210709LXPTFCOIK-1,1.89,CREATIVE CURRICULUM-MATERIALS,MISCELLANEOUS AND SPECIALTY RETAIL STORES,GPC
WALSALL COUNCIL,http://opendatacommunities.org/id/metropolitan-district-council/walsall ,30/09/2021,RESOURCES AND TRANSFORMATION,BLAKEMORE FOODSERVICE,07/07/2021,H59620210709MDIEOSMBT-1,34.76,CATERING - SCHOOLS-FOOD & DRINK SUPPLIES,CATERERS,GPC
WALSALL COUNCIL,http://opendatacommunities.org/id/metropolitan-district-council/walsall ,30/09/2021,CHILDRENS SERVICES,AMAZON PRIME,07/07/2021,H59620210709MUCJMRSLT-1,-9.38,"43A HILTON ROAD, WILLENHALL-PURCHASE OF FURNITURE & EQUIPM",DIRECT MARKETING CONTINUITY SUBSCRIPTION MERCHANTS,GPC
WALSALL COUNCIL,http://opendatacommunities.org/id/metropolitan-district-council/walsall ,30/09/2021,CHILDRENS SERVICES,WILKO RETAIL LIMITED,07/07/2021,H59620210709NCMAILLLX-1,4.00,"43A HILTON ROAD, WILLENHALL-RESIDENTS PERSONAL EXPENSES-AL",MISCELLANEOUS GENERAL MERCHANDISE,GPC
WALSALL COUNCIL,http://opendatacommunities.org/id/metropolitan-district-council/walsall ,30/09/2021,CHILDRENS SERVICES,AMAZON.CO.UK*H78AR37A5,07/07/2021,H59620210709NGGYNGBYW-1,81.74,ADMINISTRATIVE SUPPLIES-STATIONERY & GENERAL OFFICE SU,OTHER DIRECT MARKETING-OTHER DIRECT MARKETERS,GPC
WALSALL COUNCIL,http://opendatacommunities.org/id/metropolitan-district-council/walsall ,30/09/2021,RESOURCES AND TRANSFORMATION,JOHAL DAIRIES LTD,07/07/2021,H59620210709NUUHISLLK-1,12.83,CATERING - SCHOOLS-FOOD & DRINK SUPPLIES,OTHER NONDURABLE GOODS,GPC
WALSALL COUNCIL,http://opendatacommunities.org/id/metropolitan-district-council/walsall ,30/09/2021,RESOURCES AND TRANSFORMATION,BLAKEMORE FOODSERVICE,07/07/2021,H59620210709NVMPOBKQT-1,9.48,CATERING - MANAGEMENT-FOOD & DRINK SUPPLIES,CATERERS,GPC
WALSALL COUNCIL,http://opendatacommunities.org/id/metropolitan-district-council/walsall ,30/09/2021,RESOURCES AND TRANSFORMATION,BLAKEMORE FOODSERVICE,07/07/2021,H59620210709NVYBSMNLH-1,645.06,CATERING - SCHOOLS-FOOD & DRINK SUPPLIES,CATERERS,GPC
WALSALL COUNCIL,http://opendatacommunities.org/id/metropolitan-district-council/walsall ,30/09/2021,RESOURCES AND TRANSFORMATION,BLAKEMORE FOODSERVICE,07/07/2021,H59620210709NVYBSMNLH-2,33.46,CATERING - SCHOOLS-FOOD & DRINK SUPPLIES,CATERERS,GPC
WALSALL COUNCIL,http://opendatacommunities.org/id/metropolitan-district-council/walsall ,30/09/2021,RESOURCES AND TRANSFORMATION,JOHAL DAIRIES LTD,07/07/2021,H59620210709OATURRIOC-1,34.65,CATERING - SCHOOLS-FOOD & DRINK SUPPLIES,OTHER NONDURABLE GOODS,GPC
WALSALL COUNCIL,http://opendatacommunities.org/id/metropolitan-district-council/walsall ,30/09/2021,RESOURCES AND TRANSFORMATION,BLAKEMORE FOODSERVICE,07/07/2021,H59620210709OHIFDFUEP-1,212.97,CATERING - SCHOOLS-FOOD & DRINK SUPPLIES,CATERERS,GPC
WALSALL COUNCIL,http://opendatacommunities.org/id/metropolitan-district-council/walsall ,30/09/2021,RESOURCES AND TRANSFORMATION,BLAKEMORE FOODSERVICE,07/07/2021,H59620210709OHIFDFUEP-2,19.84,CATERING - SCHOOLS-FOOD & DRINK SUPPLIES,CATERERS,GPC
WALSALL COUNCIL,http://opendatacommunities.org/id/metropolitan-district-council/walsall ,30/09/2021,RESOURCES AND TRANSFORMATION,JOHAL DAIRIES LTD,07/07/2021,H59620210709OSODZQBNR-1,1.90,CATERING - SCHOOLS-FOOD & DRINK SUPPLIES,OTHER NONDURABLE GOODS,GPC
WALSALL COUNCIL,http://opendatacommunities.org/id/metropolitan-district-council/walsall ,30/09/2021,CHILDRENS SERVICES,HOTEL AT BOOKING.COM,07/07/2021,H59620210709PLEPULIQF-1,271.50,BED & BREAKFAST PAYMENTS-BED & BREAKFAST PAYMENTS,"HOTELS, MOTELS, RESORTS",GPC
WALSALL COUNCIL,http://opendatacommunities.org/id/metropolitan-district-council/walsall ,30/09/2021,RESOURCES AND TRANSFORMATION,CITIZENCARD,07/07/2021,H59620210709QAQVEYJEL-1,15.00,YEI ESF FUNDING-FEES & LICENCES,"ORGANIZATIONS, MEMBERSHIP",GPC
WALSALL COUNCIL,http://opendatacommunities.org/id/metropolitan-district-council/walsall ,30/09/2021,RESOURCES AND TRANSFORMATION,CITIZENCARD,07/07/2021,H59620210709QAQVEYJEL-2,15.00,YEI (IMPACT) PROGRAMME-FEES & LICENCES,"ORGANIZATIONS, MEMBERSHIP",GPC
WALSALL COUNCIL,http://opendatacommunities.org/id/metropolitan-district-council/walsall ,30/09/2021,RESOURCES AND TRANSFORMATION,JOHAL DAIRIES LTD,07/07/2021,H59620210709QIXNLAPWG-1,71.19,CATERING - SCHOOLS-FOOD & DRINK SUPPLIES,OTHER NONDURABLE GOODS,GPC
WALSALL COUNCIL,http://opendatacommunities.org/id/metropolitan-district-council/walsall ,30/09/2021,RESOURCES AND TRANSFORMATION,BLAKEMORE FOODSERVICE,07/07/2021,H59620210709QNSBVUCTZ-1,202.51,CATERING - MANAGEMENT-FOOD & DRINK SUPPLIES,CATERERS,GPC
WALSALL COUNCIL,http://opendatacommunities.org/id/metropolitan-district-council/walsall ,30/09/2021,CHILDRENS SERVICES,WWW.DRUGS-CABINETS.CO.,07/07/2021,H59620210709RNYFGAYKY-1,504.00,ADMINISTRATIVE SUPPLIES-MATERIALS,"ARCHITECTURAL, ENGINEERING, AND SURVEYING SERVICES",GPC
WALSALL COUNCIL,http://opendatacommunities.org/id/metropolitan-district-council/walsall ,30/09/2021,CHILDRENS SERVICES,WALSALL COUNCIL,07/07/2021,H59620210709RQQTCFQJP-1,42.22,ST FRANCIS OF ASSISI CATHOLIC -POLICE CHECKS,GOVERNMENT SERVICES,GPC
WALSALL COUNCIL,http://opendatacommunities.org/id/metropolitan-district-council/walsall ,30/09/2021,CHILDRENS SERVICES,WWW.BANNERUK.COM,07/07/2021,H59620210709RVCCVWRYM-1,8.59,FAMILY PLACEMENTS-STATIONERY & GENERAL OFFICE SU,"STATIONERY, OFFICE SUPPLIES AND WRITING PAPER",GPC
WALSALL COUNCIL,http://opendatacommunities.org/id/metropolitan-district-council/walsall ,30/09/2021,RESOURCES AND TRANSFORMATION,JOHAL DAIRIES LTD,07/07/2021,H59620210709RWLMSELYD-1,25.92,CATERING - SCHOOLS-FOOD & DRINK SUPPLIES,OTHER NONDURABLE GOODS,GPC
WALSALL COUNCIL,http://opendatacommunities.org/id/metropolitan-district-council/walsall ,30/09/2021,ECONOMY & ENVIRONMENT,AMZNMKTPLACE,07/07/2021,H59620210709SJFSEXIQB-1,6.85,OAK PARK ACTIVE LIVING CENTRE-STATIONERY & GENERAL OFFICE SU,MISCELLANEOUS AND SPECIALTY RETAIL STORES,GPC
WALSALL COUNCIL,http://opendatacommunities.org/id/metropolitan-district-council/walsall ,30/09/2021,CHILDRENS SERVICES,JOHAL LUCKY STORES,07/07/2021,H59620210709SLVHKITRP-1,20.00,WALSALL CRISIS SUPPORT SCHEME-FOOD & DRINK SUPPLIES,GROCERY STORES AND SUPERMARKETS,GPC
WALSALL COUNCIL,http://opendatacommunities.org/id/metropolitan-district-council/walsall ,30/09/2021,RESOURCES AND TRANSFORMATION,BLAKEMORE FOODSERVICE,07/07/2021,H59620210709SMSRRSQXU-1,599.96,CATERING - SCHOOLS-FOOD & DRINK SUPPLIES,CATERERS,GPC
WALSALL COUNCIL,http://opendatacommunities.org/id/metropolitan-district-council/walsall ,30/09/2021,RESOURCES AND TRANSFORMATION,BLAKEMORE FOODSERVICE,07/07/2021,H59620210709SMSRRSQXU-2,7.77,CATERING - SCHOOLS-FOOD & DRINK SUPPLIES,CATERERS,GPC
WALSALL COUNCIL,http://opendatacommunities.org/id/metropolitan-district-council/walsall ,30/09/2021,RESOURCES AND TRANSFORMATION,JOHAL DAIRIES LTD,07/07/2021,H59620210709TCNJWJCMV-1,12.51,CATERING - SCHOOLS-FOOD & DRINK SUPPLIES,OTHER NONDURABLE GOODS,GPC
WALSALL COUNCIL,http://opendatacommunities.org/id/metropolitan-district-council/walsall ,30/09/2021,RESOURCES AND TRANSFORMATION,BLAKEMORE FOODSERVICE,07/07/2021,H59620210709TEBJXATMY-1,482.89,CATERING - SCHOOLS-FOOD & DRINK SUPPLIES,CATERERS,GPC
WALSALL COUNCIL,http://opendatacommunities.org/id/metropolitan-district-council/walsall ,30/09/2021,RESOURCES AND TRANSFORMATION,BLAKEMORE FOODSERVICE,07/07/2021,H59620210709TEBJXATMY-2,20.07,CATERING - SCHOOLS-FOOD & DRINK SUPPLIES,CATERERS,GPC
WALSALL COUNCIL,http://opendatacommunities.org/id/metropolitan-district-council/walsall ,30/09/2021,RESOURCES AND TRANSFORMATION,BLAKEMORE FOODSERVICE,07/07/2021,H59620210709TNAIQAVDN-1,24.36,CATERING - SCHOOLS-FOOD & DRINK SUPPLIES,CATERERS,GPC
WALSALL COUNCIL,http://opendatacommunities.org/id/metropolitan-district-council/walsall ,30/09/2021,CHILDRENS SERVICES,AMAZON.CO.UK*695BZ69A5,07/07/2021,H59620210709TNBXLLKEV-1,38.98,ST FRANCIS OF ASSISI CATHOLIC -OPERATIONAL MAINTENANCE,OTHER DIRECT MARKETING-OTHER DIRECT MARKETERS,GPC
WALSALL COUNCIL,http://opendatacommunities.org/id/metropolitan-district-council/walsall ,30/09/2021,RESOURCES AND TRANSFORMATION,BLAKEMORE FOODSERVICE,07/07/2021,H59620210709TODWOUCYW-1,59.45,CATERING - SCHOOLS-FOOD & DRINK SUPPLIES,CATERERS,GPC
WALSALL COUNCIL,http://opendatacommunities.org/id/metropolitan-district-council/walsall ,30/09/2021,RESOURCES AND TRANSFORMATION,ASDA SUPERSTORE,07/07/2021,H59620210709TWIVHDPBM-1,39.57,CATERING - SCHOOLS-FOOD & DRINK SUPPLIES,GROCERY STORES AND SUPERMARKETS,GPC
WALSALL COUNCIL,http://opendatacommunities.org/id/metropolitan-district-council/walsall ,30/09/2021,RESOURCES AND TRANSFORMATION,BLAKEMORE FOODSERVICE,07/07/2021,H59620210709UMDXRRIHA-1,69.61,CATERING - SCHOOLS-FOOD & DRINK SUPPLIES,CATERERS,GPC
WALSALL COUNCIL,http://opendatacommunities.org/id/metropolitan-district-council/walsall ,30/09/2021,CHILDRENS SERVICES,HOME BARGAINS,07/07/2021,H59620210709UWWEHGWAN-1,8.99,REDRUTH ROAD-CLEANING MATERIALS,HARDWARE STORES,GPC
WALSALL COUNCIL,http://opendatacommunities.org/id/metropolitan-district-council/walsall ,30/09/2021,CHILDRENS SERVICES,AMZNMKTPLACE,07/07/2021,H59620210709UXPQHOQXX-1,7.43,EARLY HELP HUB-MATERIALS,MISCELLANEOUS AND SPECIALTY RETAIL STORES,GPC
WALSALL COUNCIL,http://opendatacommunities.org/id/metropolitan-district-council/walsall ,30/09/2021,CHILDRENS SERVICES,WM MORRISONS STORE,07/07/2021,H59620210709VDHNMQYQE-1,16.19,CONSUMABLES-MATERIALS,GROCERY STORES AND SUPERMARKETS,GPC
WALSALL COUNCIL,http://opendatacommunities.org/id/metropolitan-district-council/walsall ,30/09/2021,CHILDRENS SERVICES,WM MORRISONS STORE,07/07/2021,H59620210709VDHNMQYQE-2,24.04,CONSUMABLES-MATERIALS,GROCERY STORES AND SUPERMARKETS,GPC
WALSALL COUNCIL,http://opendatacommunities.org/id/metropolitan-district-council/walsall ,30/09/2021,CHILDRENS SERVICES,HOME BARGAINS,07/07/2021,H59620210709VPVNRIVNE-1,2.99,REDRUTH ROAD-PURCHASE OF FURNITURE & EQUIPM,HARDWARE STORES,GPC
WALSALL COUNCIL,http://opendatacommunities.org/id/metropolitan-district-council/walsall ,30/09/2021,RESOURCES AND TRANSFORMATION,WALSALL COUNCIL,07/07/2021,H59620210709WQORQTGJV-1,8.50,YEI ESF FUNDING-FEES & LICENCES,GOVERNMENT SERVICES,GPC
WALSALL COUNCIL,http://opendatacommunities.org/id/metropolitan-district-council/walsall ,30/09/2021,RESOURCES AND TRANSFORMATION,WALSALL COUNCIL,07/07/2021,H59620210709WQORQTGJV-2,8.50,YEI (IMPACT) PROGRAMME-FEES & LICENCES,GOVERNMENT SERVICES,GPC
WALSALL COUNCIL,http://opendatacommunities.org/id/metropolitan-district-council/walsall ,30/09/2021,CHILDRENS SERVICES,UTILITA ENERGY LIMITED,07/07/2021,H59620210709XGFCHTTZB-1,25.00,AFGHAN RELOCATION SCHEME-OTHER ENERGY COSTS,"UTILITIES - ELECTRIC, GAS, SANITARY & WATER",GPC
WALSALL COUNCIL,http://opendatacommunities.org/id/metropolitan-district-council/walsall ,30/09/2021,RESOURCES AND TRANSFORMATION,WALSALL COUNCIL,07/07/2021,H59620210709XICHXKLYI-1,-20.50,YEI ESF FUNDING-FEES & LICENCES,GOVERNMENT SERVICES,GPC
WALSALL COUNCIL,http://opendatacommunities.org/id/metropolitan-district-council/walsall ,30/09/2021,RESOURCES AND TRANSFORMATION,WALSALL COUNCIL,07/07/2021,H59620210709XICHXKLYI-2,-20.50,YEI (IMPACT) PROGRAMME-FEES & LICENCES,GOVERNMENT SERVICES,GPC
WALSALL COUNCIL,http://opendatacommunities.org/id/metropolitan-district-council/walsall ,30/09/2021,CHILDRENS SERVICES,AMZNMKTPLACE,07/07/2021,H59620210709XILTGNSSA-1,15.50,E19-MATERIALS,MISCELLANEOUS AND SPECIALTY RETAIL STORES,GPC
WALSALL COUNCIL,http://opendatacommunities.org/id/metropolitan-district-council/walsall ,30/09/2021,RESOURCES AND TRANSFORMATION,BLAKEMORE FOODSERVICE,07/07/2021,H59620210709XXSLPHMEI-1,242.57,CATERING - SCHOOLS-FOOD & DRINK SUPPLIES,CATERERS,GPC
WALSALL COUNCIL,http://opendatacommunities.org/id/metropolitan-district-council/walsall ,30/09/2021,RESOURCES AND TRANSFORMATION,BLAKEMORE FOODSERVICE,07/07/2021,H59620210709XXSLPHMEI-2,10.15,CATERING - SCHOOLS-FOOD & DRINK SUPPLIES,CATERERS,GPC
WALSALL COUNCIL,http://opendatacommunities.org/id/metropolitan-district-council/walsall ,30/09/2021,CHILDRENS SERVICES,AMAZON.CO.UK*GH12R4NQ5,07/07/2021,H59620210709YAFFXFTTI-1,38.98,ST FRANCIS OF ASSISI CATHOLIC -OPERATIONAL MAINTENANCE,OTHER DIRECT MARKETING-OTHER DIRECT MARKETERS,GPC
WALSALL COUNCIL,http://opendatacommunities.org/id/metropolitan-district-council/walsall ,30/09/2021,RESOURCES AND TRANSFORMATION,NOBISCO LIMITED,07/07/2021,H59620210709ZGBBCPYTF-1,25.61,CATERING - SCHOOLS-FOOD & DRINK SUPPLIES,OTHER INDUSTRIAL SUPPLIES,GPC
WALSALL COUNCIL,http://opendatacommunities.org/id/metropolitan-district-council/walsall ,30/09/2021,CHILDRENS SERVICES,ARGOS LTD,07/07/2021,H59620210710BQLUHYMHB-1,296.94,TRANSITION AND LEAVING CARE PL-CARE LEAVERS MTCE PAYMENTS,DISCOUNT STORES,GPC
WALSALL COUNCIL,http://opendatacommunities.org/id/metropolitan-district-council/walsall ,30/09/2021,CHILDRENS SERVICES,247 CARS WILLENHALL LTD,07/07/2021,H59620210710HFSWIHXNT-1,14.80,INITIAL RESPONSE SERVICE-TAXI FARES,TAXI SERVICES,GPC
WALSALL COUNCIL,http://opendatacommunities.org/id/metropolitan-district-council/walsall ,30/09/2021,CHILDRENS SERVICES,247 CARS WILLENHALL LTD,07/07/2021,H59620210710MBGPQPKKU-1,16.90,INITIAL RESPONSE SERVICE-TAXI FARES,TAXI SERVICES,GPC
WALSALL COUNCIL,http://opendatacommunities.org/id/metropolitan-district-council/walsall ,30/09/2021,RESOURCES AND TRANSFORMATION,WWW.SCC.COM,07/07/2021,H59620210710NOXOUSVYH-1,114.90,RECHARGEABLE EQUIPMENT-COMPUTER EQUIPMENT,"COMPUTERS, COMPUTER PERIPHERAL EQUIPMENT, SOFTWARE",GPC
WALSALL COUNCIL,http://opendatacommunities.org/id/metropolitan-district-council/walsall ,30/09/2021,CHILDRENS SERVICES,247 CARS WILLENHALL LTD,07/07/2021,H59620210710OMNXBRQVG-1,16.90,INITIAL RESPONSE SERVICE-TAXI FARES,TAXI SERVICES,GPC
WALSALL COUNCIL,http://opendatacommunities.org/id/metropolitan-district-council/walsall ,30/09/2021,RESOURCES AND TRANSFORMATION,WWW.SCC.COM,07/07/2021,H59620210710QGPKOXCLI-1,154.75,RECHARGEABLE EQUIPMENT-COMPUTER EQUIPMENT,"COMPUTERS, COMPUTER PERIPHERAL EQUIPMENT, SOFTWARE",GPC
WALSALL COUNCIL,http://opendatacommunities.org/id/metropolitan-district-council/walsall ,30/09/2021,CHILDRENS SERVICES,AMZNMKTPLACE AMAZON.CO.UK,07/07/2021,H59620210710QMVHHTGQM-1,18.99,ICT-PURCHASE OF FURNITURE & EQUIPM,MISCELLANEOUS AND SPECIALTY RETAIL STORES,GPC
WALSALL COUNCIL,http://opendatacommunities.org/id/metropolitan-district-council/walsall ,30/09/2021,CHILDRENS SERVICES,AMZNMKTPLACE AMAZON.CO.UK,07/07/2021,H59620210710QMVHHTGQM-2,13.34,ADMIN-STATIONERY & GENERAL OFFICE SU,MISCELLANEOUS AND SPECIALTY RETAIL STORES,GPC
WALSALL COUNCIL,http://opendatacommunities.org/id/metropolitan-district-council/walsall ,30/09/2021,CHILDRENS SERVICES,ARGOS LTD,07/07/2021,H59620210710TOJFNMEFH-1,238.94,TRANSITION AND LEAVING CARE PL-CARE LEAVERS MTCE PAYMENTS,DISCOUNT STORES,GPC
WALSALL COUNCIL,http://opendatacommunities.org/id/metropolitan-district-council/walsall ,30/09/2021,CHILDRENS SERVICES,BRITANNIA,07/07/2021,H59620210710XPNSSTSKT-1,108.00,INITIAL RESPONSE SERVICE-SECTION 1/17CHILD CARE ACT 198,"HOTELS, MOTELS, RESORTS",GPC
WALSALL COUNCIL,http://opendatacommunities.org/id/metropolitan-district-council/walsall ,30/09/2021,CHILDRENS SERVICES,FOREIGN EXCHANGE FEE,08/07/2021,H59620210709UQKYRTSDW-1,-0.26,"43A HILTON ROAD, WILLENHALL-PURCHASE OF FURNITURE & EQUIPM",,GPC
WALSALL COUNCIL,http://opendatacommunities.org/id/metropolitan-district-council/walsall ,30/09/2021,CHILDRENS SERVICES,AMAZON.CO.UK*3T4K97J85,08/07/2021,H59620210710ALMBPSHVP-1,5.99,E19-MATERIALS,OTHER DIRECT MARKETING-OTHER DIRECT MARKETERS,GPC
WALSALL COUNCIL,http://opendatacommunities.org/id/metropolitan-district-council/walsall ,30/09/2021,CHILDRENS SERVICES,AMAZON.CO.UK*3T4K97J85,08/07/2021,H59620210710ALMBPSHVP-2,4.99,E19-POSTAGES & COURIER SERVICES,OTHER DIRECT MARKETING-OTHER DIRECT MARKETERS,GPC
WALSALL COUNCIL,http://opendatacommunities.org/id/metropolitan-district-council/walsall ,30/09/2021,RESOURCES AND TRANSFORMATION,CITY AND GUILDS OF LON,08/07/2021,H59620210710BIBDFIEDF-1,22.00,YEI ESF FUNDING-SUBSCRIPTIONS,"ORGANIZATIONS, CHARITABLE AND SOCIAL SERVICE",GPC
WALSALL COUNCIL,http://opendatacommunities.org/id/metropolitan-district-council/walsall ,30/09/2021,RESOURCES AND TRANSFORMATION,CITY AND GUILDS OF LON,08/07/2021,H59620210710BIBDFIEDF-2,22.00,YEI ESF FUNDING-SUBSCRIPTIONS,"ORGANIZATIONS, CHARITABLE AND SOCIAL SERVICE",GPC
WALSALL COUNCIL,http://opendatacommunities.org/id/metropolitan-district-council/walsall ,30/09/2021,CHILDRENS SERVICES,MCDONALDS1544,08/07/2021,H59620210710BXOYELXLG-1,4.97,EDGE OF CARE TEAM-FOOD & DRINK SUPPLIES,QUICK PAYMENT SERVICE-FAST-FOOD RESTAURANTS,GPC
WALSALL COUNCIL,http://opendatacommunities.org/id/metropolitan-district-council/walsall ,30/09/2021,CHILDRENS SERVICES,ALDI 28 772,08/07/2021,H59620210710CDSXIWCLY-1,4.23,REDRUTH ROAD-FOOD & DRINK SUPPLIES,GROCERY STORES AND SUPERMARKETS,GPC
WALSALL COUNCIL,http://opendatacommunities.org/id/metropolitan-district-council/walsall ,30/09/2021,CHILDRENS SERVICES,ALDI 28 772,08/07/2021,H59620210710CDSXIWCLY-2,36.38,REDRUTH ROAD-FOOD & DRINK SUPPLIES,GROCERY STORES AND SUPERMARKETS,GPC
WALSALL COUNCIL,http://opendatacommunities.org/id/metropolitan-district-council/walsall ,30/09/2021,ECONOMY & ENVIRONMENT,WWW.STA.CO.UK,08/07/2021,H59620210710CYZMHEEEE-1,30.00,BLOXWICH ACTIVE LIVING CENTRE-FEES & LICENCES,OTHER RECREATION SERVICES,GPC
WALSALL COUNCIL,http://opendatacommunities.org/id/metropolitan-district-council/walsall ,30/09/2021,ECONOMY & ENVIRONMENT,WWW.STA.CO.UK,08/07/2021,H59620210710CYZMHEEEE-2,30.00,DARLASTON SWIMMING AND FITNESS-FEES & LICENCES,OTHER RECREATION SERVICES,GPC
WALSALL COUNCIL,http://opendatacommunities.org/id/metropolitan-district-council/walsall ,30/09/2021,ECONOMY & ENVIRONMENT,WWW.STA.CO.UK,08/07/2021,H59620210710CYZMHEEEE-3,30.00,OAK PARK ACTIVE LIVING CENTRE-FEES & LICENCES,OTHER RECREATION SERVICES,GPC
WALSALL COUNCIL,http://opendatacommunities.org/id/metropolitan-district-council/walsall ,30/09/2021,ECONOMY & ENVIRONMENT,WWW.STA.CO.UK,08/07/2021,H59620210710CYZMHEEEE-4,30.00,WALSALL GALA SWIMMING AND FITN-FEES & LICENCES,OTHER RECREATION SERVICES,GPC
WALSALL COUNCIL,http://opendatacommunities.org/id/metropolitan-district-council/walsall ,30/09/2021,RESOURCES AND TRANSFORMATION,AMZNMKTPLACE,08/07/2021,H59620210710EFRDPVAEI-1,19.98,CLEANING - MANAGEMENT-PURCHASE OF FURNITURE & EQUIPM,MISCELLANEOUS AND SPECIALTY RETAIL STORES,GPC
WALSALL COUNCIL,http://opendatacommunities.org/id/metropolitan-district-council/walsall ,30/09/2021,CHILDRENS SERVICES,AMZNMKTPLACE,08/07/2021,H59620210710EGTQLWYQX-1,79.40,ST FRANCIS OF ASSISI CATHOLIC -MATERIALS,MISCELLANEOUS AND SPECIALTY RETAIL STORES,GPC
WALSALL COUNCIL,http://opendatacommunities.org/id/metropolitan-district-council/walsall ,30/09/2021,CHILDRENS SERVICES,WM MORRISONS STORE,08/07/2021,H59620210710EMRHAMCIH-1,1.30,EARLY HELP HUB-PROFESSIONAL SERVICES-PRIV CON,GROCERY STORES AND SUPERMARKETS,GPC
WALSALL COUNCIL,http://opendatacommunities.org/id/metropolitan-district-council/walsall ,30/09/2021,CHILDRENS SERVICES,WM MORRISONS STORE,08/07/2021,H59620210710EMRHAMCIH-2,19.95,EARLY HELP HUB-PROFESSIONAL SERVICES-PRIV CON,GROCERY STORES AND SUPERMARKETS,GPC
WALSALL COUNCIL,http://opendatacommunities.org/id/metropolitan-district-council/walsall ,30/09/2021,ECONOMY & ENVIRONMENT,WWW.SIMONTHEBEEKEEPER.,08/07/2021,H59620210710ENPQCPCNT-1,199.99,ARBORETUM-PURCHASE OF FURNITURE & EQUIPM,PET SHOPS-PET FOOD AND SUPPLIES,GPC
WALSALL COUNCIL,http://opendatacommunities.org/id/metropolitan-district-council/walsall ,30/09/2021,CHILDRENS SERVICES,AMZNMKTPLACE,08/07/2021,H59620210710EXDKEHKGE-1,10.26,TARGETED YOUTH WORK-OTHER EXPENSES,MISCELLANEOUS AND SPECIALTY RETAIL STORES,GPC
WALSALL COUNCIL,http://opendatacommunities.org/id/metropolitan-district-council/walsall ,30/09/2021,CHILDRENS SERVICES,AQUAID WATERCOOLERS,08/07/2021,H59620210710FMBQQHRKC-1,273.60,PELSALL EDC-FOOD & DRINK SUPPLIES,MISCELLANEOUS GENERAL MERCHANDISE,GPC
WALSALL COUNCIL,http://opendatacommunities.org/id/metropolitan-district-council/walsall ,30/09/2021,ECONOMY & ENVIRONMENT,WWW.STA.CO.UK,08/07/2021,H59620210710FWODNMWYD-1,20.00,BLOXWICH ACTIVE LIVING CENTRE-FEES & LICENCES,OTHER RECREATION SERVICES,GPC
WALSALL COUNCIL,http://opendatacommunities.org/id/metropolitan-district-council/walsall ,30/09/2021,ECONOMY & ENVIRONMENT,WWW.STA.CO.UK,08/07/2021,H59620210710FWODNMWYD-2,20.00,DARLASTON SWIMMING AND FITNESS-FEES & LICENCES,OTHER RECREATION SERVICES,GPC
WALSALL COUNCIL,http://opendatacommunities.org/id/metropolitan-district-council/walsall ,30/09/2021,ECONOMY & ENVIRONMENT,WWW.STA.CO.UK,08/07/2021,H59620210710FWODNMWYD-3,20.00,OAK PARK ACTIVE LIVING CENTRE-FEES & LICENCES,OTHER RECREATION SERVICES,GPC
WALSALL COUNCIL,http://opendatacommunities.org/id/metropolitan-district-council/walsall ,30/09/2021,ECONOMY & ENVIRONMENT,WWW.STA.CO.UK,08/07/2021,H59620210710FWODNMWYD-4,20.00,WALSALL GALA SWIMMING AND FITN-FEES & LICENCES,OTHER RECREATION SERVICES,GPC
WALSALL COUNCIL,http://opendatacommunities.org/id/metropolitan-district-council/walsall ,30/09/2021,CHILDRENS SERVICES,WHSMITH.CO.UK,08/07/2021,H59620210710GCKTRXQAC-1,32.75,E19-MATERIALS,"OFFICE, SCHOOL SUPPLY, AND STATIONERY STORES",GPC
WALSALL COUNCIL,http://opendatacommunities.org/id/metropolitan-district-council/walsall ,30/09/2021,CHILDRENS SERVICES,WM MORRISONS STORE,08/07/2021,H59620210710GHLOXYLOE-1,4.20,EARLY HELP HUB-MATERIALS,GROCERY STORES AND SUPERMARKETS,GPC
WALSALL COUNCIL,http://opendatacommunities.org/id/metropolitan-district-council/walsall ,30/09/2021,RESOURCES AND TRANSFORMATION,SHEFFIELD CITY CNC,08/07/2021,H59620210710GQTSTPIQN-1,12.00,RES-WALSALL WORKS-FEES & LICENCES,GOVERNMENT SERVICES,GPC
WALSALL COUNCIL,http://opendatacommunities.org/id/metropolitan-district-council/walsall ,30/09/2021,CHILDRENS SERVICES,TRAINLINE,08/07/2021,H59620210710GUXBEEZWT-1,41.80,LOOKED AFTER CHILDRENS SOCIAL -SECTION 34 (CONTACT),PASSENGER RAILWAYS,GPC
WALSALL COUNCIL,http://opendatacommunities.org/id/metropolitan-district-council/walsall ,30/09/2021,CHILDRENS SERVICES,AMZNMKTPLACE,08/07/2021,H59620210710HJKYPOFAI-1,49.99,LOCALITY FAMILY SUPPORT-WEST-CLEANING MATERIALS,MISCELLANEOUS AND SPECIALTY RETAIL STORES,GPC
WALSALL COUNCIL,http://opendatacommunities.org/id/metropolitan-district-council/walsall ,30/09/2021,RESOURCES AND TRANSFORMATION,WWW.BANNERUK.COM,08/07/2021,H59620210710HTKMPRYGH-1,63.84,CENTRALISED STATIONERY-STATIONERY & GENERAL OFFICE SU,"STATIONERY, OFFICE SUPPLIES AND WRITING PAPER",GPC
WALSALL COUNCIL,http://opendatacommunities.org/id/metropolitan-district-council/walsall ,30/09/2021,CHILDRENS SERVICES,AMZNMKTPLACE AMAZON.CO.UK,08/07/2021,H59620210710IBLEOOCRJ-1,153.94,ICT LEARNING RESOURCES-MATERIALS,MISCELLANEOUS AND SPECIALTY RETAIL STORES,GPC
WALSALL COUNCIL,http://opendatacommunities.org/id/metropolitan-district-council/walsall ,30/09/2021,RESOURCES AND TRANSFORMATION,ASDA SUPERSTORE,08/07/2021,H59620210710IIBFTARBE-1,20.85,CATERING - SCHOOLS-FOOD & DRINK SUPPLIES,GROCERY STORES AND SUPERMARKETS,GPC
WALSALL COUNCIL,http://opendatacommunities.org/id/metropolitan-district-council/walsall ,30/09/2021,RESOURCES AND TRANSFORMATION,AMZNMKTPLACE,08/07/2021,H59620210710IYVWKWCLS-1,9.99,CLEANING - MANAGEMENT-PURCHASE OF FURNITURE & EQUIPM,MISCELLANEOUS AND SPECIALTY RETAIL STORES,GPC
WALSALL COUNCIL,http://opendatacommunities.org/id/metropolitan-district-council/walsall ,30/09/2021,CHILDRENS SERVICES,AMZNMKTPLACE,08/07/2021,H59620210710JCLQUIITE-1,34.99,LEARNING ENVIRONMENT-MATERIALS,MISCELLANEOUS AND SPECIALTY RETAIL STORES,GPC
WALSALL COUNCIL,http://opendatacommunities.org/id/metropolitan-district-council/walsall ,30/09/2021,CHILDRENS SERVICES,WM MORRISONS STORE,08/07/2021,H59620210710JEIPWUASW-1,4.00,TARGETED YOUTH WORK-OTHER EXPENSES,GROCERY STORES AND SUPERMARKETS,GPC
WALSALL COUNCIL,http://opendatacommunities.org/id/metropolitan-district-council/walsall ,30/09/2021,CHILDRENS SERVICES,WM MORRISONS STORE,08/07/2021,H59620210710JEIPWUASW-2,3.15,TARGETED YOUTH WORK-OTHER EXPENSES,GROCERY STORES AND SUPERMARKETS,GPC
WALSALL COUNCIL,http://opendatacommunities.org/id/metropolitan-district-council/walsall ,30/09/2021,CHILDRENS SERVICES,AMZNMKTPLACE,08/07/2021,H59620210710JJRQIDVCW-1,15.98,EYFS-MATERIALS,MISCELLANEOUS AND SPECIALTY RETAIL STORES,GPC
WALSALL COUNCIL,http://opendatacommunities.org/id/metropolitan-district-council/walsall ,30/09/2021,CHILDRENS SERVICES,AMZNMKTPLACE,08/07/2021,H59620210710JVNYIKJKY-1,6.98,NEW LEAF PUPIL REFERAL UNIT-STATIONERY & GENERAL OFFICE SU,MISCELLANEOUS AND SPECIALTY RETAIL STORES,GPC
WALSALL COUNCIL,http://opendatacommunities.org/id/metropolitan-district-council/walsall ,30/09/2021,CHILDRENS SERVICES,GEN REGISTER OFFICE,08/07/2021,H59620210710KAEXLFHBM-1,14.00,LOOKED AFTER CHILDRENS SOCIAL -FEES & LICENCES,GOVERNMENT SERVICES,GPC
WALSALL COUNCIL,http://opendatacommunities.org/id/metropolitan-district-council/walsall ,30/09/2021,CHILDRENS SERVICES,WWW.TTS-GROUPS.CO.UK,08/07/2021,H59620210710KBBYYSSCQ-1,629.82,PELSALL VILLAGE SCHOOL-PURCHASE OF FURNITURE & EQUIPM,"OFFICE, SCHOOL SUPPLY, AND STATIONERY STORES",GPC
WALSALL COUNCIL,http://opendatacommunities.org/id/metropolitan-district-council/walsall ,30/09/2021,CHILDRENS SERVICES,AMAZON.CO.UK*CR71T7O05,08/07/2021,H59620210710KOYJHZDDO-1,45.69,VIRTUAL SCHOOL CENTRAL PUPIL P-OTHER EXPENSES,OTHER DIRECT MARKETING-OTHER DIRECT MARKETERS,GPC
WALSALL COUNCIL,http://opendatacommunities.org/id/metropolitan-district-council/walsall ,30/09/2021,CHILDRENS SERVICES,OAKLAND,08/07/2021,H59620210710LCKBURKXL-1,125.00,BED & BREAKFAST PAYMENTS-BED & BREAKFAST PAYMENTS,"HOTELS, MOTELS, RESORTS",GPC
WALSALL COUNCIL,http://opendatacommunities.org/id/metropolitan-district-council/walsall ,30/09/2021,CHILDRENS SERVICES,JD SPORTS INTERNET,08/07/2021,H59620210710LCKUFAWLS-1,38.40,REDRUTH ROAD-RESIDENTS PERSONAL EXPENSES-AL,SPORTING GOODS STORES,GPC
WALSALL COUNCIL,http://opendatacommunities.org/id/metropolitan-district-council/walsall ,30/09/2021,CHILDRENS SERVICES,RNIB CHARITY,08/07/2021,H59620210710LWFKXOGTQ-1,62.00,E19-MATERIALS,DENTAL/LABORATORY/MEDICAL EQUIPMENT & SUPPLIES,GPC
WALSALL COUNCIL,http://opendatacommunities.org/id/metropolitan-district-council/walsall ,30/09/2021,ECONOMY & ENVIRONMENT,WILKO RETAIL LIMITED,08/07/2021,H59620210710NSXSLUCKU-1,8.00,STREETLY LIBRARY-MATERIALS,MISCELLANEOUS GENERAL MERCHANDISE,GPC
WALSALL COUNCIL,http://opendatacommunities.org/id/metropolitan-district-council/walsall ,30/09/2021,ADULT SOCIAL CARE,B&M 419 - HS REEDSWOOD,08/07/2021,H59620210710OJFFUOOLS-1,6.99,COVID-19 OUTBREAK MANAGEMENT G-PURCHASE OF FURNITURE & EQUIPM,MISCELLANEOUS GENERAL MERCHANDISE,GPC
WALSALL COUNCIL,http://opendatacommunities.org/id/metropolitan-district-council/walsall ,30/09/2021,CHILDRENS SERVICES,AMZNMKTPLACE AMAZON.CO.UK,08/07/2021,H59620210710OTPNFJCNR-1,66.99,GENERAL-MATERIALS,MISCELLANEOUS AND SPECIALTY RETAIL STORES,GPC
WALSALL COUNCIL,http://opendatacommunities.org/id/metropolitan-district-council/walsall ,30/09/2021,CHILDRENS SERVICES,AMZNMKTPLACE AMAZON.CO.UK,08/07/2021,H59620210710OTPNFJCNR-2,98.88,GENERAL-MATERIALS,MISCELLANEOUS AND SPECIALTY RETAIL STORES,GPC
WALSALL COUNCIL,http://opendatacommunities.org/id/metropolitan-district-council/walsall ,30/09/2021,CHILDRENS SERVICES,SCREWFIX DIRECT,08/07/2021,H59620210710PBXGGETBF-1,119.99,CHUCKERY PRIMARY SCHOOL-OPERATIONAL MAINTENANCE,LUMBER & BUILDING MATERIALS STORES,GPC
WALSALL COUNCIL,http://opendatacommunities.org/id/metropolitan-district-council/walsall ,30/09/2021,CHILDRENS SERVICES,ASDA SUPERSTORE,08/07/2021,H59620210710PELTSDNKU-1,6.00,BASIC STATIONERY-MATERIALS,GROCERY STORES AND SUPERMARKETS,GPC
WALSALL COUNCIL,http://opendatacommunities.org/id/metropolitan-district-council/walsall ,30/09/2021,CHILDRENS SERVICES,AMZNMKTPLACE AMAZON.CO.UK,08/07/2021,H59620210710PQQTKTAOK-1,15.99,ADMINISTRATIVE SUPPLIES-MATERIALS,MISCELLANEOUS AND SPECIALTY RETAIL STORES,GPC
WALSALL COUNCIL,http://opendatacommunities.org/id/metropolitan-district-council/walsall ,30/09/2021,CHILDRENS SERVICES,AQUAID WATERCOOLERS,08/07/2021,H59620210710RNUMTFSCO-1,273.60,PELSALL EDC-FOOD & DRINK SUPPLIES,MISCELLANEOUS GENERAL MERCHANDISE,GPC
WALSALL COUNCIL,http://opendatacommunities.org/id/metropolitan-district-council/walsall ,30/09/2021,CHILDRENS SERVICES,O2,08/07/2021,H59620210710RTZPTMSSU-1,17.40,ADMIN-MOBILE PHONES,TELECOMMUNICATION SERVICES,GPC
WALSALL COUNCIL,http://opendatacommunities.org/id/metropolitan-district-council/walsall ,30/09/2021,ECONOMY & ENVIRONMENT,IOMA CLOTHING CO LTD,08/07/2021,H59620210710RYODJHOZN-1,-7.80,WALSALL GALA SWIMMING AND FITN-CLOTHING & LAUNDRY,MENS AND WOMENS CLOTHING STORES,GPC
WALSALL COUNCIL,http://opendatacommunities.org/id/metropolitan-district-council/walsall ,30/09/2021,RESOURCES AND TRANSFORMATION,CITY AND GUILDS OF LON,08/07/2021,H59620210710SXMMGOHNM-1,22.00,YEI ESF FUNDING-SUBSCRIPTIONS,"ORGANIZATIONS, CHARITABLE AND SOCIAL SERVICE",GPC
WALSALL COUNCIL,http://opendatacommunities.org/id/metropolitan-district-council/walsall ,30/09/2021,RESOURCES AND TRANSFORMATION,CITY AND GUILDS OF LON,08/07/2021,H59620210710SXMMGOHNM-2,22.00,YEI (IMPACT) PROGRAMME-SUBSCRIPTIONS,"ORGANIZATIONS, CHARITABLE AND SOCIAL SERVICE",GPC
WALSALL COUNCIL,http://opendatacommunities.org/id/metropolitan-district-council/walsall ,30/09/2021,ADULT SOCIAL CARE,WWW.BANNERUK.COM,08/07/2021,H59620210710TMHRVFUKV-1,2.45,PRINTING SERVICES-STATIONERY & GENERAL OFFICE SU,"STATIONERY, OFFICE SUPPLIES AND WRITING PAPER",GPC
WALSALL COUNCIL,http://opendatacommunities.org/id/metropolitan-district-council/walsall ,30/09/2021,CHILDRENS SERVICES,DUDLEY ZOOLOGICAL GARDENS,08/07/2021,H59620210710TSUPTUMDX-1,42.00,ENRICHMENT-MATERIALS,"AQUARIUMS, DOLPHINARIUMS, AND SEAQUARIUMS",GPC
WALSALL COUNCIL,http://opendatacommunities.org/id/metropolitan-district-council/walsall ,30/09/2021,CHILDRENS SERVICES,HOME BARGAINS,08/07/2021,H59620210710TTLKJFXPO-1,80.92,TRANSITION AND LEAVING CARE PL-PURCHASE OF FURNITURE & EQUIPM,HARDWARE STORES,GPC
WALSALL COUNCIL,http://opendatacommunities.org/id/metropolitan-district-council/walsall ,30/09/2021,CHILDRENS SERVICES,VIRTUAL COLLEGE LIMITE,08/07/2021,H59620210710TVIFVBYZL-1,24.00,BLUEBELLS-EXTERNAL TRAINING,OTHER SCHOOLS AND EDUCATIONAL SERVICES,GPC
WALSALL COUNCIL,http://opendatacommunities.org/id/metropolitan-district-council/walsall ,30/09/2021,RESOURCES AND TRANSFORMATION,BANKING,08/07/2021,H59620210710UYDFBBYFK-1,39.75,NATIONAL LOTTERY HERITAGE FUND-MATERIALS,GOVERNMENT SERVICES,GPC
WALSALL COUNCIL,http://opendatacommunities.org/id/metropolitan-district-council/walsall ,30/09/2021,ECONOMY & ENVIRONMENT,SCREWFIX DIR LTD,08/07/2021,H59620210710VBNKZRJBQ-1,29.44,INFRASTRUCTURE MAINTENANCE-MATERIALS,LUMBER & BUILDING MATERIALS STORES,GPC
WALSALL COUNCIL,http://opendatacommunities.org/id/metropolitan-district-council/walsall ,30/09/2021,CHILDRENS SERVICES,WWW.TTS-GROUPS.CO.UK,08/07/2021,H59620210710VOCWUUUQW-1,209.94,PELSALL VILLAGE SCHOOL-PURCHASE OF FURNITURE & EQUIPM,"OFFICE, SCHOOL SUPPLY, AND STATIONERY STORES",GPC
WALSALL COUNCIL,http://opendatacommunities.org/id/metropolitan-district-council/walsall ,30/09/2021,ECONOMY & ENVIRONMENT,POST OFFICE COUNTER,08/07/2021,H59620210710VZXOYASIN-1,3.20,DARLASTON SWIMMING AND FITNESS-POSTAGES & COURIER SERVICES,POSTAL SERVICES - GOVERNMENT ONLY,GPC
WALSALL COUNCIL,http://opendatacommunities.org/id/metropolitan-district-council/walsall ,30/09/2021,CHILDRENS SERVICES,WWW.BANNERUK.COM,08/07/2021,H59620210710WFLSUWJHN-1,3.06,SAFEGUARDING & FAMILY SUPPORT-STATIONERY & GENERAL OFFICE SU,"STATIONERY, OFFICE SUPPLIES AND WRITING PAPER",GPC
WALSALL COUNCIL,http://opendatacommunities.org/id/metropolitan-district-council/walsall ,30/09/2021,CHILDRENS SERVICES,ROYAL MAIL GROUP LTD,08/07/2021,H59620210710XBXMJRSOP-1,3.39,POOL HAYES PRIMARY SCHOOL-POSTAGES & COURIER SERVICES,POSTAL SERVICES - GOVERNMENT ONLY,GPC
WALSALL COUNCIL,http://opendatacommunities.org/id/metropolitan-district-council/walsall ,30/09/2021,CHILDRENS SERVICES,WILKO RETAIL LIMITED,08/07/2021,H59620210710XVVGUIKGL-1,111.20,TRANSITION AND LEAVING CARE PL-PURCHASE OF FURNITURE & EQUIPM,MISCELLANEOUS GENERAL MERCHANDISE,GPC
WALSALL COUNCIL,http://opendatacommunities.org/id/metropolitan-district-council/walsall ,30/09/2021,CHILDRENS SERVICES,AMAZON.CO.UK*EF0GK91Z5,08/07/2021,H59620210710YMJRDFBNL-1,19.13,HOUSING YEI/ESF MATCH-PURCHASE OF FURNITURE & EQUIPM,OTHER DIRECT MARKETING-OTHER DIRECT MARKETERS,GPC
WALSALL COUNCIL,http://opendatacommunities.org/id/metropolitan-district-council/walsall ,30/09/2021,CHILDRENS SERVICES,TRAINLINE,08/07/2021,H59620210710YNIRWSEHI-1,292.90,LOOKED AFTER CHILDRENS SOCIAL -SECTION 34 (CONTACT),PASSENGER RAILWAYS,GPC
WALSALL COUNCIL,http://opendatacommunities.org/id/metropolitan-district-council/walsall ,30/09/2021,CHILDRENS SERVICES,AMZNMKTPLACE,08/07/2021,H59620210710YPVFNDPYP-1,9.98,ADMINISTRATIVE SUPPLIES-MATERIALS,MISCELLANEOUS AND SPECIALTY RETAIL STORES,GPC
WALSALL COUNCIL,http://opendatacommunities.org/id/metropolitan-district-council/walsall ,30/09/2021,CHILDRENS SERVICES,ROYAL MAIL GROUP LTD,08/07/2021,H59620210710ZCOGOROFX-1,12.92,POOL HAYES PRIMARY SCHOOL-POSTAGES & COURIER SERVICES,POSTAL SERVICES - GOVERNMENT ONLY,GPC
WALSALL COUNCIL,http://opendatacommunities.org/id/metropolitan-district-council/walsall ,30/09/2021,CHILDRENS SERVICES,AMAZON.CO.UK*CJ1850AB5,08/07/2021,H59620210710ZLEXZGARX-1,13.00,ADMINISTRATIVE SUPPLIES-MATERIALS,OTHER DIRECT MARKETING-OTHER DIRECT MARKETERS,GPC
WALSALL COUNCIL,http://opendatacommunities.org/id/metropolitan-district-council/walsall ,30/09/2021,CHILDRENS SERVICES,PREMIER INN44513065,08/07/2021,H59620210713KUNJMYQDP-1,98.00,LOOKED AFTER CHILDRENS SOCIAL -SECTION 34 (CONTACT),PREMIER INN,GPC
WALSALL COUNCIL,http://opendatacommunities.org/id/metropolitan-district-council/walsall ,30/09/2021,CHILDRENS SERVICES,247 CARS WILLENHALL LTD,08/07/2021,H59620210713LFQCBKYSD-1,6.70,SAFEGUARDING & FAMILY SUPPORT-TAXI FARES,TAXI SERVICES,GPC
WALSALL COUNCIL,http://opendatacommunities.org/id/metropolitan-district-council/walsall ,30/09/2021,CHILDRENS SERVICES,247 CARS WILLENHALL LTD,08/07/2021,H59620210713MHQDEKXUF-1,6.70,SAFEGUARDING & FAMILY SUPPORT-TAXI FARES,TAXI SERVICES,GPC
WALSALL COUNCIL,http://opendatacommunities.org/id/metropolitan-district-council/walsall ,30/09/2021,RESOURCES AND TRANSFORMATION,WWW.SCC.COM,08/07/2021,H59620210714DUTPPNICE-1,16718.49,RECHARGEABLE EQUIPMENT-COMPUTER EQUIPMENT,"COMPUTERS, COMPUTER PERIPHERAL EQUIPMENT, SOFTWARE",GPC
WALSALL COUNCIL,http://opendatacommunities.org/id/metropolitan-district-council/walsall ,30/09/2021,RESOURCES AND TRANSFORMATION,WWW.SCC.COM,08/07/2021,H59620210729WFIYFLKPY-1,956.06,RECHARGEABLE EQUIPMENT-COMPUTER EQUIPMENT,"COMPUTERS, COMPUTER PERIPHERAL EQUIPMENT, SOFTWARE",GPC
WALSALL COUNCIL,http://opendatacommunities.org/id/metropolitan-district-council/walsall ,30/09/2021,RESOURCES AND TRANSFORMATION,WWW.SCC.COM,08/07/2021,H59620210824WNPQETTTL-1,25.39,RECHARGEABLE EQUIPMENT-COMPUTER EQUIPMENT,"COMPUTERS, COMPUTER PERIPHERAL EQUIPMENT, SOFTWARE",GPC
WALSALL COUNCIL,http://opendatacommunities.org/id/metropolitan-district-council/walsall ,30/09/2021,CHILDRENS SERVICES,AMAZON.CO.UK*BP7CM2G95,09/07/2021,H59620210713BKMKFBUTF-1,6.99,ENGLISH-MATERIALS,OTHER DIRECT MARKETING-OTHER DIRECT MARKETERS,GPC
WALSALL COUNCIL,http://opendatacommunities.org/id/metropolitan-district-council/walsall ,30/09/2021,RESOURCES AND TRANSFORMATION,ARTHUR BRETT CATER,09/07/2021,H59620210713BPKJNEVWU-1,22.20,CATERING - SCHOOLS-FOOD & DRINK SUPPLIES,MISCELLANEOUS FOOD STORES & CONVENIENCE STORES,GPC
WALSALL COUNCIL,http://opendatacommunities.org/id/metropolitan-district-council/walsall ,30/09/2021,CHILDRENS SERVICES,AMZNMKTPLACE,09/07/2021,H59620210713CSXVMDLMX-1,9.90,NEW LEAF PUPIL REFERAL UNIT-STATIONERY & GENERAL OFFICE SU,MISCELLANEOUS AND SPECIALTY RETAIL STORES,GPC
WALSALL COUNCIL,http://opendatacommunities.org/id/metropolitan-district-council/walsall ,30/09/2021,ECONOMY & ENVIRONMENT,DTR HYGIENE LTD,09/07/2021,H59620210713CWTUVHHLA-1,724.56,BLOXWICH LIBRARY-PURCHASE OF FURNITURE & EQUIPM,"SPECIALTY CLEANING, POLISHING, AND SANITATION",GPC
WALSALL COUNCIL,http://opendatacommunities.org/id/metropolitan-district-council/walsall ,30/09/2021,CHILDRENS SERVICES,ASDA GROCERIES ONLINE,09/07/2021,H59620210713DFWPVGLSW-1,53.31,AWARDS/ ATTEND / PRIZES-FOOD & DRINK SUPPLIES,GROCERY STORES AND SUPERMARKETS,GPC
WALSALL COUNCIL,http://opendatacommunities.org/id/metropolitan-district-council/walsall ,30/09/2021,CHILDRENS SERVICES,HOTEL AT BOOKING.COM,09/07/2021,H59620210713FOYWUNCMN-1,123.97,BED & BREAKFAST PAYMENTS-BED & BREAKFAST PAYMENTS,"HOTELS, MOTELS, RESORTS",GPC
WALSALL COUNCIL,http://opendatacommunities.org/id/metropolitan-district-council/walsall ,30/09/2021,CHILDRENS SERVICES,WWW.ICELAND.CO.UK,09/07/2021,H59620210713FVXKUEJYO-1,-21.00,AWARDS/ ATTEND / PRIZES-FOOD & DRINK SUPPLIES,GROCERY STORES AND SUPERMARKETS,GPC
WALSALL COUNCIL,http://opendatacommunities.org/id/metropolitan-district-council/walsall ,30/09/2021,CHILDRENS SERVICES,GEN REGISTER OFFICE,09/07/2021,H59620210713GCITETLEY-1,11.00,LOOKED AFTER CHILDRENS SOCIAL -FEES & LICENCES,GOVERNMENT SERVICES,GPC
WALSALL COUNCIL,http://opendatacommunities.org/id/metropolitan-district-council/walsall ,30/09/2021,RESOURCES AND TRANSFORMATION,ONE STOP 5038,09/07/2021,H59620210713GIQTJXQTD-1,1.95,CATERING - SCHOOLS-FOOD & DRINK SUPPLIES,GROCERY STORES AND SUPERMARKETS,GPC
WALSALL COUNCIL,http://opendatacommunities.org/id/metropolitan-district-council/walsall ,30/09/2021,CHILDRENS SERVICES,ASDA GROCERIES ONLINE,09/07/2021,H59620210713GNSJIHBPU-1,-0.01,AWARDS/ ATTEND / PRIZES-FOOD & DRINK SUPPLIES,GROCERY STORES AND SUPERMARKETS,GPC
WALSALL COUNCIL,http://opendatacommunities.org/id/metropolitan-district-council/walsall ,30/09/2021,RESOURCES AND TRANSFORMATION,NOBISCO LIMITED,09/07/2021,H59620210713GZNUCFQSK-1,72.04,CATERING - SCHOOLS-FOOD & DRINK SUPPLIES,OTHER INDUSTRIAL SUPPLIES,GPC
WALSALL COUNCIL,http://opendatacommunities.org/id/metropolitan-district-council/walsall ,30/09/2021,CHILDRENS SERVICES,WWW.ICELAND.CO.UK,09/07/2021,H59620210713HGILWKVPS-1,46.50,AWARDS/ ATTEND / PRIZES-FOOD & DRINK SUPPLIES,GROCERY STORES AND SUPERMARKETS,GPC
WALSALL COUNCIL,http://opendatacommunities.org/id/metropolitan-district-council/walsall ,30/09/2021,CHILDRENS SERVICES,SM ROOFING SUPPLIES,09/07/2021,H59620210713IDDTMGYRW-1,176.88,PELSALL VILLAGE SCHOOL-OPERATIONAL MAINTENANCE,OTHER INDUSTRIAL SUPPLIES,GPC
WALSALL COUNCIL,http://opendatacommunities.org/id/metropolitan-district-council/walsall ,30/09/2021,CHILDRENS SERVICES,AMZNMKTPLACE,09/07/2021,H59620210713IXNEBXSOY-1,59.99,E19-MATERIALS,MISCELLANEOUS AND SPECIALTY RETAIL STORES,GPC
WALSALL COUNCIL,http://opendatacommunities.org/id/metropolitan-district-council/walsall ,30/09/2021,CHILDRENS SERVICES,AMZNMKTPLACE,09/07/2021,H59620210713JBJYJDCVW-1,9.99,E19-MATERIALS,MISCELLANEOUS AND SPECIALTY RETAIL STORES,GPC
WALSALL COUNCIL,http://opendatacommunities.org/id/metropolitan-district-council/walsall ,30/09/2021,CHILDRENS SERVICES,AMZNMKTPLACE,09/07/2021,H59620210713JBJYJDCVW-2,17.88,E19-MATERIALS,MISCELLANEOUS AND SPECIALTY RETAIL STORES,GPC
WALSALL COUNCIL,http://opendatacommunities.org/id/metropolitan-district-council/walsall ,30/09/2021,CHILDRENS SERVICES,PAYPAL *VIRTUALCOLL,09/07/2021,H59620210713KCRELVALU-1,24.00,ELMWOOD SCHOOL-EXTERNAL TRAINING,"COLLEGES, UNIVERSITIES, PROFESSIONAL SCHOOLS",GPC
WALSALL COUNCIL,http://opendatacommunities.org/id/metropolitan-district-council/walsall ,30/09/2021,RESOURCES AND TRANSFORMATION,NOBISCO LIMITED,09/07/2021,H59620210713KPHXBKWIX-1,250.34,CATERING - SCHOOLS-FOOD & DRINK SUPPLIES,OTHER INDUSTRIAL SUPPLIES,GPC
WALSALL COUNCIL,http://opendatacommunities.org/id/metropolitan-district-council/walsall ,30/09/2021,RESOURCES AND TRANSFORMATION,ARTHUR BRETT CATER,09/07/2021,H59620210713LHQSYJHKX-1,30.53,CATERING - SCHOOLS-FOOD & DRINK SUPPLIES,MISCELLANEOUS FOOD STORES & CONVENIENCE STORES,GPC
WALSALL COUNCIL,http://opendatacommunities.org/id/metropolitan-district-council/walsall ,30/09/2021,CHILDRENS SERVICES,CANNON RACEWAY ECOM,09/07/2021,H59620210713LJLWVBYVB-1,50.00,NURTURE-MATERIALS,OTHER RECREATION SERVICES,GPC
WALSALL COUNCIL,http://opendatacommunities.org/id/metropolitan-district-council/walsall ,30/09/2021,RESOURCES AND TRANSFORMATION,AMZNMKTPLACE,09/07/2021,H59620210713LRPYCZMUM-1,17.95,PROGRAMME DELIVERY TEAM-COMPUTER EQUIPMENT,MISCELLANEOUS AND SPECIALTY RETAIL STORES,GPC
WALSALL COUNCIL,http://opendatacommunities.org/id/metropolitan-district-council/walsall ,30/09/2021,ECONOMY & ENVIRONMENT,TOOLSTATION LTD ALDRIDGE,09/07/2021,H59620210713MDUKPIRGW-1,18.98,DEPOT-MATERIALS,LUMBER & BUILDING MATERIALS STORES,GPC
WALSALL COUNCIL,http://opendatacommunities.org/id/metropolitan-district-council/walsall ,30/09/2021,CHILDRENS SERVICES,VIRTUAL COLLEGE LIMITE,09/07/2021,H59620210713MFODIFNSS-1,72.00,BLUEBELLS-EXTERNAL TRAINING,OTHER SCHOOLS AND EDUCATIONAL SERVICES,GPC
WALSALL COUNCIL,http://opendatacommunities.org/id/metropolitan-district-council/walsall ,30/09/2021,ECONOMY & ENVIRONMENT,SMART TRADE SHOP L,09/07/2021,H59620210713MHOHILLQQ-1,63.39,COMMUNITY LIAISON-GROUNDS MAINTENANCE,MENS AND BOYS CLOTHING AND FURNISHINGS STORE,GPC
WALSALL COUNCIL,http://opendatacommunities.org/id/metropolitan-district-council/walsall ,30/09/2021,RESOURCES AND TRANSFORMATION,ARTHUR BRETT CATER,09/07/2021,H59620210713MHWFXWWUV-1,94.66,CATERING - SCHOOLS-FOOD & DRINK SUPPLIES,MISCELLANEOUS FOOD STORES & CONVENIENCE STORES,GPC
WALSALL COUNCIL,http://opendatacommunities.org/id/metropolitan-district-council/walsall ,30/09/2021,RESOURCES AND TRANSFORMATION,ASDA SUPERSTORE,09/07/2021,H59620210713MLPBYDIMW-1,0.85,CATERING - SCHOOLS-FOOD & DRINK SUPPLIES,GROCERY STORES AND SUPERMARKETS,GPC
WALSALL COUNCIL,http://opendatacommunities.org/id/metropolitan-district-council/walsall ,30/09/2021,CHILDRENS SERVICES,AMZNMKTPLACE,09/07/2021,H59620210713NLBYOCOQI-1,20.00,ST FRANCIS OF ASSISI CATHOLIC -OPERATIONAL MAINTENANCE,MISCELLANEOUS AND SPECIALTY RETAIL STORES,GPC
WALSALL COUNCIL,http://opendatacommunities.org/id/metropolitan-district-council/walsall ,30/09/2021,CHILDRENS SERVICES,AMAZON.CO.UK*L13E51C85,09/07/2021,H59620210713NRZOWGMFA-1,177.49,HOUSING YEI/ESF MATCH-PURCHASE OF FURNITURE & EQUIPM,OTHER DIRECT MARKETING-OTHER DIRECT MARKETERS,GPC
WALSALL COUNCIL,http://opendatacommunities.org/id/metropolitan-district-council/walsall ,30/09/2021,CHILDRENS SERVICES,BAKER ROSS,09/07/2021,H59620210713OPRVOPBUM-1,47.86,E19-MATERIALS,"ARTIST SUPPLY STORES, CRAFT SHOPS",GPC
WALSALL COUNCIL,http://opendatacommunities.org/id/metropolitan-district-council/walsall ,30/09/2021,CHILDRENS SERVICES,TRAINLINE,09/07/2021,H59620210713OQIIWJXFQ-1,81.72,LOOKED AFTER CHILDRENS SOCIAL -SECTION 34 (CONTACT),PASSENGER RAILWAYS,GPC
WALSALL COUNCIL,http://opendatacommunities.org/id/metropolitan-district-council/walsall ,30/09/2021,RESOURCES AND TRANSFORMATION,WWW.BANNERUK.COM,09/07/2021,H59620210713PHRDMFZJG-1,1.08,CENTRALISED STATIONERY-STATIONERY & GENERAL OFFICE SU,"STATIONERY, OFFICE SUPPLIES AND WRITING PAPER",GPC
WALSALL COUNCIL,http://opendatacommunities.org/id/metropolitan-district-council/walsall ,30/09/2021,CHILDRENS SERVICES,POST OFFICE COUNTER,09/07/2021,H59620210713PRQVDJHOQ-1,6.85,LOOKED AFTER CHILDRENS SOCIAL -POSTAGES & COURIER SERVICES,POSTAL SERVICES - GOVERNMENT ONLY,GPC
WALSALL COUNCIL,http://opendatacommunities.org/id/metropolitan-district-council/walsall ,30/09/2021,RESOURCES AND TRANSFORMATION,ARTHUR BRETT CATER,09/07/2021,H59620210713QAOHEBDCJ-1,84.37,CATERING - SCHOOLS-FOOD & DRINK SUPPLIES,MISCELLANEOUS FOOD STORES & CONVENIENCE STORES,GPC
WALSALL COUNCIL,http://opendatacommunities.org/id/metropolitan-district-council/walsall ,30/09/2021,RESOURCES AND TRANSFORMATION,ARTHUR BRETT CATER,09/07/2021,H59620210713QAOHEBDCJ-2,4.91,CATERING - MANAGEMENT-FOOD & DRINK SUPPLIES,MISCELLANEOUS FOOD STORES & CONVENIENCE STORES,GPC
WALSALL COUNCIL,http://opendatacommunities.org/id/metropolitan-district-council/walsall ,30/09/2021,CHILDRENS SERVICES,PAYPAL *OFFICEDEPOT,09/07/2021,H59620210713QKETDTTPK-1,40.79,HEALTH & SOCIAL CARE-PROFESSIONAL FEES & SERVICES,OTHER BUSINESS SERVICES,GPC
WALSALL COUNCIL,http://opendatacommunities.org/id/metropolitan-district-council/walsall ,30/09/2021,CHILDRENS SERVICES,HOLE IN THE WALL,09/07/2021,H59620210713QQKRSBHCK-1,164.50,PALFREY JUNIOR SCHOOL-DECORATING,"FURNITURE-REUPHOLSTERY AND REPAIR, REFINISHING",GPC
WALSALL COUNCIL,http://opendatacommunities.org/id/metropolitan-district-council/walsall ,30/09/2021,CHILDRENS SERVICES,247 CARS WILLENHALL LTD,09/07/2021,H59620210713QQXJJXNQK-1,-6.70,SAFEGUARDING & FAMILY SUPPORT-TAXI FARES,TAXI SERVICES,GPC
WALSALL COUNCIL,http://opendatacommunities.org/id/metropolitan-district-council/walsall ,30/09/2021,RESOURCES AND TRANSFORMATION,ARTHUR BRETT CATER,09/07/2021,H59620210713QRCORGIBU-1,11.80,CATERING - SCHOOLS-FOOD & DRINK SUPPLIES,MISCELLANEOUS FOOD STORES & CONVENIENCE STORES,GPC
WALSALL COUNCIL,http://opendatacommunities.org/id/metropolitan-district-council/walsall ,30/09/2021,CHILDRENS SERVICES,247 CARS WILLENHALL LTD,09/07/2021,H59620210713RBMEUSIXT-1,-4.10,INITIAL RESPONSE SERVICE-TAXI FARES,TAXI SERVICES,GPC
WALSALL COUNCIL,http://opendatacommunities.org/id/metropolitan-district-council/walsall ,30/09/2021,CHILDRENS SERVICES,WALSALL COUNCIL,09/07/2021,H59620210713RHBPSHPIL-1,28.00,SAFEGUARDING & FAMILY SUPPORT-FEES & LICENCES,GOVERNMENT SERVICES,GPC
WALSALL COUNCIL,http://opendatacommunities.org/id/metropolitan-district-council/walsall ,30/09/2021,ECONOMY & ENVIRONMENT,AMZNMKTPLACE,09/07/2021,H59620210713RJYKTKTHB-1,64.89,FLEET-MATERIALS,MISCELLANEOUS AND SPECIALTY RETAIL STORES,GPC
WALSALL COUNCIL,http://opendatacommunities.org/id/metropolitan-district-council/walsall ,30/09/2021,CHILDRENS SERVICES,NIKE,09/07/2021,H59620210713RNTUMTEDK-1,44.98,REDRUTH ROAD-CLOTHING & LAUNDRY,"SPORTS APPAREL, RIDING APPAREL STORES",GPC
WALSALL COUNCIL,http://opendatacommunities.org/id/metropolitan-district-council/walsall ,30/09/2021,CHILDRENS SERVICES,ALDI 772 129,09/07/2021,H59620210713RNUYMSDMJ-1,31.81,"43A HILTON ROAD, WILLENHALL-FOOD & DRINK SUPPLIES",GROCERY STORES AND SUPERMARKETS,GPC
WALSALL COUNCIL,http://opendatacommunities.org/id/metropolitan-district-council/walsall ,30/09/2021,CHILDRENS SERVICES,ALDI 772 129,09/07/2021,H59620210713RNUYMSDMJ-2,9.00,"43A HILTON ROAD, WILLENHALL-FOOD & DRINK SUPPLIES",GROCERY STORES AND SUPERMARKETS,GPC
WALSALL COUNCIL,http://opendatacommunities.org/id/metropolitan-district-council/walsall ,30/09/2021,CHILDRENS SERVICES,IZ *KELLY S KITCHE,09/07/2021,H59620210713RRIUBMCPG-1,31.60,EDGE OF CARE TEAM-FOOD & DRINK SUPPLIES,"EATING PLACES, RESTAURANTS",GPC
WALSALL COUNCIL,http://opendatacommunities.org/id/metropolitan-district-council/walsall ,30/09/2021,CHILDRENS SERVICES,W M MORRISONS.COM,09/07/2021,H59620210713RXIAWZSIC-1,41.76,BLUEBELLS-FOOD & DRINK SUPPLIES,GROCERY STORES AND SUPERMARKETS,GPC
WALSALL COUNCIL,http://opendatacommunities.org/id/metropolitan-district-council/walsall ,30/09/2021,CHILDRENS SERVICES,W M MORRISONS.COM,09/07/2021,H59620210713RXIAWZSIC-2,88.39,BLUEBELLS-FOOD & DRINK SUPPLIES,GROCERY STORES AND SUPERMARKETS,GPC
WALSALL COUNCIL,http://opendatacommunities.org/id/metropolitan-district-council/walsall ,30/09/2021,CHILDRENS SERVICES,247 CARS WILLENHALL LTD,09/07/2021,H59620210713SRLVCJPYK-1,191.50,SAFEGUARDING & FAMILY SUPPORT-TAXI FARES,TAXI SERVICES,GPC
WALSALL COUNCIL,http://opendatacommunities.org/id/metropolitan-district-council/walsall ,30/09/2021,CHILDRENS SERVICES,247 CARS WILLENHALL LTD,09/07/2021,H59620210713SYFAKLDJV-1,-6.70,SAFEGUARDING & FAMILY SUPPORT-TAXI FARES,TAXI SERVICES,GPC
WALSALL COUNCIL,http://opendatacommunities.org/id/metropolitan-district-council/walsall ,30/09/2021,CHILDRENS SERVICES,SENSORY DIRECT,09/07/2021,H59620210713TFVSGLMIK-1,137.94,EARLY YEARS & DISABILITIES SER-MATERIALS,"GAME, TOY, AND HOBBY SHOPS",GPC
WALSALL COUNCIL,http://opendatacommunities.org/id/metropolitan-district-council/walsall ,30/09/2021,CHILDRENS SERVICES,AMZNMKTPLACE AMAZON.CO.UK,09/07/2021,H59620210713TVPENLVZZ-1,12.99,E19-MATERIALS,MISCELLANEOUS AND SPECIALTY RETAIL STORES,GPC
WALSALL COUNCIL,http://opendatacommunities.org/id/metropolitan-district-council/walsall ,30/09/2021,CHILDRENS SERVICES,METRO WALSALL,09/07/2021,H59620210713UJGBXIUSX-1,646.00,ROUGH SLEEPING INITIATIVE GRAN-BED & BREAKFAST PAYMENTS,"HOTELS, MOTELS, RESORTS",GPC
WALSALL COUNCIL,http://opendatacommunities.org/id/metropolitan-district-council/walsall ,30/09/2021,ECONOMY & ENVIRONMENT,AMZNMKTPLACE,09/07/2021,H59620210713UWTRKXVGN-1,13.99,FLEET-MATERIALS,MISCELLANEOUS AND SPECIALTY RETAIL STORES,GPC
WALSALL COUNCIL,http://opendatacommunities.org/id/metropolitan-district-council/walsall ,30/09/2021,RESOURCES AND TRANSFORMATION,ARTHUR BRETT CATER,09/07/2021,H59620210713VBPJYMOGE-1,48.16,CATERING - SCHOOLS-FOOD & DRINK SUPPLIES,MISCELLANEOUS FOOD STORES & CONVENIENCE STORES,GPC
WALSALL COUNCIL,http://opendatacommunities.org/id/metropolitan-district-council/walsall ,30/09/2021,CHILDRENS SERVICES,B & Q 1276,09/07/2021,H59620210713VOLMMGPLX-1,25.60,WALSALL CRISIS SUPPORT SCHEME-PURCHASE OF FURNITURE & EQUIPM,HOME SUPPLY WAREHOUSE STORES,GPC
WALSALL COUNCIL,http://opendatacommunities.org/id/metropolitan-district-council/walsall ,30/09/2021,RESOURCES AND TRANSFORMATION,NOBISCO LIMITED,09/07/2021,H59620210713VUBOWXPJF-1,57.12,CATERING - SCHOOLS-FOOD & DRINK SUPPLIES,OTHER INDUSTRIAL SUPPLIES,GPC
WALSALL COUNCIL,http://opendatacommunities.org/id/metropolitan-district-council/walsall ,30/09/2021,ECONOMY & ENVIRONMENT,SUMUP *ESTECH,09/07/2021,H59620210713WPQHNILDH-1,244.16,BLOXWICH ACTIVE LIVING CENTRE-PAYMENT TO CONTRACTORS,"GENERAL CONTRACTORS, RESIDENTIAL AND COMMERCIAL",GPC
WALSALL COUNCIL,http://opendatacommunities.org/id/metropolitan-district-council/walsall ,30/09/2021,CHILDRENS SERVICES,247 CARS WILLENHALL LTD,09/07/2021,H59620210713WWGPIAOTP-1,3.50,INITIAL RESPONSE SERVICE-TAXI FARES,TAXI SERVICES,GPC
WALSALL COUNCIL,http://opendatacommunities.org/id/metropolitan-district-council/walsall ,30/09/2021,RESOURCES AND TRANSFORMATION,CITIZENCARD,09/07/2021,H59620210713XVGRFKVHK-1,7.50,YEI ESF FUNDING-FEES & LICENCES,"ORGANIZATIONS, MEMBERSHIP",GPC
WALSALL COUNCIL,http://opendatacommunities.org/id/metropolitan-district-council/walsall ,30/09/2021,RESOURCES AND TRANSFORMATION,CITIZENCARD,09/07/2021,H59620210713XVGRFKVHK-2,7.50,YEI (IMPACT) PROGRAMME-FEES & LICENCES,"ORGANIZATIONS, MEMBERSHIP",GPC
WALSALL COUNCIL,http://opendatacommunities.org/id/metropolitan-district-council/walsall ,30/09/2021,CHILDRENS SERVICES,POST OFFICE COUNTER,09/07/2021,H59620210713XVSNWRESQ-1,2.25,FAMILY PLACEMENTS-POSTAGES & COURIER SERVICES,POSTAL SERVICES - GOVERNMENT ONLY,GPC
WALSALL COUNCIL,http://opendatacommunities.org/id/metropolitan-district-council/walsall ,30/09/2021,CHILDRENS SERVICES,GEN REGISTER OFFICE,09/07/2021,H59620210713YGLERRLCL-1,11.00,SAFEGUARDING & FAMILY SUPPORT-FEES & LICENCES,GOVERNMENT SERVICES,GPC
WALSALL COUNCIL,http://opendatacommunities.org/id/metropolitan-district-council/walsall ,30/09/2021,RESOURCES AND TRANSFORMATION,ARTHUR BRETT CATER,09/07/2021,H59620210713YMFZDNTFL-1,17.40,CATERING - SCHOOLS-FOOD & DRINK SUPPLIES,MISCELLANEOUS FOOD STORES & CONVENIENCE STORES,GPC
WALSALL COUNCIL,http://opendatacommunities.org/id/metropolitan-district-council/walsall ,30/09/2021,CHILDRENS SERVICES,247 CARS WILLENHALL LTD,09/07/2021,H59620210713YRVNBGEYR-1,4.10,INITIAL RESPONSE SERVICE-TAXI FARES,TAXI SERVICES,GPC
WALSALL COUNCIL,http://opendatacommunities.org/id/metropolitan-district-council/walsall ,30/09/2021,CHILDRENS SERVICES,AMZNMKTPLACE,09/07/2021,H59620210713YSYSOJSCQ-1,19.98,E19-MATERIALS,MISCELLANEOUS AND SPECIALTY RETAIL STORES,GPC
WALSALL COUNCIL,http://opendatacommunities.org/id/metropolitan-district-council/walsall ,30/09/2021,ECONOMY & ENVIRONMENT,ARCO LIMITED (SAP),09/07/2021,H59620210713YUHQXDQDN-1,74.64,OAK PARK ACTIVE LIVING CENTRE-PURCHASE OF FURNITURE & EQUIPM,OTHER INDUSTRIAL SUPPLIES,GPC
WALSALL COUNCIL,http://opendatacommunities.org/id/metropolitan-district-council/walsall ,30/09/2021,CHILDRENS SERVICES,WWW.BANNERUK.COM,09/07/2021,H59620210713ZKBQYWRKO-1,134.08,PUPIL REFERRAL UNIT EXCLUSIONS-STATIONERY & GENERAL OFFICE SU,"STATIONERY, OFFICE SUPPLIES AND WRITING PAPER",GPC
WALSALL COUNCIL,http://opendatacommunities.org/id/metropolitan-district-council/walsall ,30/09/2021,CHILDRENS SERVICES,GEN REGISTER OFFICE,09/07/2021,H59620210721SBQMOLRPK-1,-11.00,SAFEGUARDING & FAMILY SUPPORT-FEES & LICENCES,GOVERNMENT SERVICES,GPC
WALSALL COUNCIL,http://opendatacommunities.org/id/metropolitan-district-council/walsall ,30/09/2021,ECONOMY & ENVIRONMENT,REV.COM,10/07/2021,H59620210713AZMBFLUZM-1,25.45,EXHIBITIONS - SPECIAL PROJECTS-PROFESSIONAL FEES & SERVICES,STENOGRAPHIC AND SECRETARIAL SUPPORT SERVICES,GPC
WALSALL COUNCIL,http://opendatacommunities.org/id/metropolitan-district-council/walsall ,30/09/2021,CHILDRENS SERVICES,AMAZON.CO.UK*9Y69X9I45,10/07/2021,H59620210713IKKAUBRXM-1,35.97,ADMINISTRATIVE SUPPLIES-STATIONERY & GENERAL OFFICE SU,OTHER DIRECT MARKETING-OTHER DIRECT MARKETERS,GPC
WALSALL COUNCIL,http://opendatacommunities.org/id/metropolitan-district-council/walsall ,30/09/2021,CHILDRENS SERVICES,METRO WALSALL,10/07/2021,H59620210713IZGNIYVMH-1,76.00,HOMELESSNESS PREVENTION STRATE-ACCOMMODATION AND RELATED COST,"HOTELS, MOTELS, RESORTS",GPC
WALSALL COUNCIL,http://opendatacommunities.org/id/metropolitan-district-council/walsall ,30/09/2021,CHILDRENS SERVICES,SMYTHS TOYS WOLVERHAMP,10/07/2021,H59620210713NGTJNVUUY-1,200.00,PALFREY JUNIOR SCHOOL-MATERIALS,"GAME, TOY, AND HOBBY SHOPS",GPC
WALSALL COUNCIL,http://opendatacommunities.org/id/metropolitan-district-council/walsall ,30/09/2021,RESOURCES AND TRANSFORMATION,POST OFFICE COUNTER,10/07/2021,H59620210713OCSHESHAK-1,3.83,YEI ESF FUNDING-POSTAGES & COURIER SERVICES,POSTAL SERVICES - GOVERNMENT ONLY,GPC
WALSALL COUNCIL,http://opendatacommunities.org/id/metropolitan-district-council/walsall ,30/09/2021,RESOURCES AND TRANSFORMATION,POST OFFICE COUNTER,10/07/2021,H59620210713OCSHESHAK-2,3.82,YEI (IMPACT) PROGRAMME-POSTAGES & COURIER SERVICES,POSTAL SERVICES - GOVERNMENT ONLY,GPC
WALSALL COUNCIL,http://opendatacommunities.org/id/metropolitan-district-council/walsall ,30/09/2021,CHILDRENS SERVICES,WM MORRISONS STORE,10/07/2021,H59620210713YRBWIIXAG-1,1.00,EDGE OF CARE TEAM-FOOD & DRINK SUPPLIES,GROCERY STORES AND SUPERMARKETS,GPC
WALSALL COUNCIL,http://opendatacommunities.org/id/metropolitan-district-council/walsall ,30/09/2021,RESOURCES AND TRANSFORMATION,CHICKEN JOES LTD,11/07/2021,H59620210713EXOMLZLDM-1,49.40,CATERING - SCHOOLS-FOOD & DRINK SUPPLIES,CATERERS,GPC
WALSALL COUNCIL,http://opendatacommunities.org/id/metropolitan-district-council/walsall ,30/09/2021,CHILDRENS SERVICES,AMZNMKTPLACE,11/07/2021,H59620210713FCXGXMVGL-1,46.99,LEARNING ENVIRONMENT-MATERIALS,MISCELLANEOUS AND SPECIALTY RETAIL STORES,GPC
WALSALL COUNCIL,http://opendatacommunities.org/id/metropolitan-district-council/walsall ,30/09/2021,CHILDRENS SERVICES,AMZNMKTPLACE,11/07/2021,H59620210713FNSCILUOO-1,27.99,ICT LEARNING RESOURCES-MATERIALS,MISCELLANEOUS AND SPECIALTY RETAIL STORES,GPC
WALSALL COUNCIL,http://opendatacommunities.org/id/metropolitan-district-council/walsall ,30/09/2021,RESOURCES AND TRANSFORMATION,CHICKEN JOES LTD,11/07/2021,H59620210713FNUQOGSRY-1,69.92,CATERING - SCHOOLS-FOOD & DRINK SUPPLIES,CATERERS,GPC
WALSALL COUNCIL,http://opendatacommunities.org/id/metropolitan-district-council/walsall ,30/09/2021,RESOURCES AND TRANSFORMATION,CHICKEN JOES LTD,11/07/2021,H59620210713FSLLLKODY-1,78.00,CATERING - SCHOOLS-FOOD & DRINK SUPPLIES,CATERERS,GPC
WALSALL COUNCIL,http://opendatacommunities.org/id/metropolitan-district-council/walsall ,30/09/2021,CHILDRENS SERVICES,IZ *KELLY S KITCHE,11/07/2021,H59620210713FTNKGFSEC-1,19.75,EDGE OF CARE TEAM-FOOD & DRINK SUPPLIES,"EATING PLACES, RESTAURANTS",GPC
WALSALL COUNCIL,http://opendatacommunities.org/id/metropolitan-district-council/walsall ,30/09/2021,CHILDRENS SERVICES,AMZNMKTPLACE,11/07/2021,H59620210713JYXUOJRES-1,26.16,LEARNING ENVIRONMENT-MATERIALS,MISCELLANEOUS AND SPECIALTY RETAIL STORES,GPC
WALSALL COUNCIL,http://opendatacommunities.org/id/metropolitan-district-council/walsall ,30/09/2021,CHILDRENS SERVICES,AMZNMKTPLACE,11/07/2021,H59620210713JYXUOJRES-2,24.95,LEARNING ENVIRONMENT-MATERIALS,MISCELLANEOUS AND SPECIALTY RETAIL STORES,GPC
WALSALL COUNCIL,http://opendatacommunities.org/id/metropolitan-district-council/walsall ,30/09/2021,CHILDRENS SERVICES,B & Q 1276,11/07/2021,H59620210713MYIPLTMOV-1,139.08,SALISBURY PRIMARY SCHOOL-OPERATIONAL MAINTENANCE,HOME SUPPLY WAREHOUSE STORES,GPC
WALSALL COUNCIL,http://opendatacommunities.org/id/metropolitan-district-council/walsall ,30/09/2021,RESOURCES AND TRANSFORMATION,CHICKEN JOES LTD,11/07/2021,H59620210713NFLCFBUGY-1,88.50,CATERING - SCHOOLS-FOOD & DRINK SUPPLIES,CATERERS,GPC
WALSALL COUNCIL,http://opendatacommunities.org/id/metropolitan-district-council/walsall ,30/09/2021,CHILDRENS SERVICES,HPI INSTANT INK UK,11/07/2021,H59620210713NRQXTYNGD-1,9.99,ADMINISTRATIVE SUPPLIES-STATIONERY & GENERAL OFFICE SU,ELECTRONIC SALES,GPC
WALSALL COUNCIL,http://opendatacommunities.org/id/metropolitan-district-council/walsall ,30/09/2021,ECONOMY & ENVIRONMENT,B & Q 1169,11/07/2021,H59620210713RFVLJGRUU-1,17.89,PARKS AND COUNTRYSIDE-MATERIALS,HOME SUPPLY WAREHOUSE STORES,GPC
WALSALL COUNCIL,http://opendatacommunities.org/id/metropolitan-district-council/walsall ,30/09/2021,RESOURCES AND TRANSFORMATION,CHICKEN JOES LTD,11/07/2021,H59620210713THFJBEPHQ-1,56.55,CATERING - SCHOOLS-FOOD & DRINK SUPPLIES,CATERERS,GPC
WALSALL COUNCIL,http://opendatacommunities.org/id/metropolitan-district-council/walsall ,30/09/2021,RESOURCES AND TRANSFORMATION,CHICKEN JOES LTD,11/07/2021,H59620210713TSTJFEFKU-1,181.24,CATERING - SCHOOLS-FOOD & DRINK SUPPLIES,CATERERS,GPC
WALSALL COUNCIL,http://opendatacommunities.org/id/metropolitan-district-council/walsall ,30/09/2021,CHILDRENS SERVICES,AMZNMKTPLACE,11/07/2021,H59620210713WOVTXCTQL-1,9.39,LEARNING ENVIRONMENT-MATERIALS,MISCELLANEOUS AND SPECIALTY RETAIL STORES,GPC
WALSALL COUNCIL,http://opendatacommunities.org/id/metropolitan-district-council/walsall ,30/09/2021,RESOURCES AND TRANSFORMATION,AMZNMKTPLACE,11/07/2021,H59620210713XOYIOWSQE-1,35.56,PROGRAMME DELIVERY TEAM-COMPUTER EQUIPMENT,MISCELLANEOUS AND SPECIALTY RETAIL STORES,GPC
WALSALL COUNCIL,http://opendatacommunities.org/id/metropolitan-district-council/walsall ,30/09/2021,RESOURCES AND TRANSFORMATION,CHICKEN JOES LTD,11/07/2021,H59620210713YWCMLTNXX-1,104.80,CATERING - SCHOOLS-FOOD & DRINK SUPPLIES,CATERERS,GPC
WALSALL COUNCIL,http://opendatacommunities.org/id/metropolitan-district-council/walsall ,30/09/2021,CHILDRENS SERVICES,AMZNMKTPLACE AMAZON.CO.UK,11/07/2021,H59620210714WJRTGQIDE-1,50.97,E19-MATERIALS,MISCELLANEOUS AND SPECIALTY RETAIL STORES,GPC
WALSALL COUNCIL,http://opendatacommunities.org/id/metropolitan-district-council/walsall ,30/09/2021,ECONOMY & ENVIRONMENT,FOREIGN EXCHANGE FEE,12/07/2021,H59620210713WMQULOGFW-1,0.70,EXHIBITIONS - SPECIAL PROJECTS-PROFESSIONAL FEES & SERVICES,,GPC
WALSALL COUNCIL,http://opendatacommunities.org/id/metropolitan-district-council/walsall ,30/09/2021,CHILDRENS SERVICES,SCHOOLGATEWA*BLUE COAT AC,12/07/2021,H59620210714BDIXKRTLB-1,15.00,REDRUTH ROAD-FOOD & DRINK SUPPLIES,"COLLEGES, UNIVERSITIES, PROFESSIONAL SCHOOLS",GPC
WALSALL COUNCIL,http://opendatacommunities.org/id/metropolitan-district-council/walsall ,30/09/2021,CHILDRENS SERVICES,WALSALL COUNCIL,12/07/2021,H59620210714BIKETODAQ-1,42.22,ST JOHNS C.E. PRIMARY SCHOOL-POLICE CHECKS,GOVERNMENT SERVICES,GPC
WALSALL COUNCIL,http://opendatacommunities.org/id/metropolitan-district-council/walsall ,30/09/2021,RESOURCES AND TRANSFORMATION,BLAKEMORE FOODSERVICE,12/07/2021,H59620210714BLSQMFGQA-1,252.75,CATERING - SCHOOLS-FOOD & DRINK SUPPLIES,CATERERS,GPC
WALSALL COUNCIL,http://opendatacommunities.org/id/metropolitan-district-council/walsall ,30/09/2021,RESOURCES AND TRANSFORMATION,BLAKEMORE FOODSERVICE,12/07/2021,H59620210714BLSQMFGQA-2,19.84,CATERING - SCHOOLS-FOOD & DRINK SUPPLIES,CATERERS,GPC
WALSALL COUNCIL,http://opendatacommunities.org/id/metropolitan-district-council/walsall ,30/09/2021,CHILDRENS SERVICES,ARGOS LTD,12/07/2021,H59620210714BXXFGGPGN-1,632.92,TRANSITION AND LEAVING CARE PL-CARE LEAVERS MTCE PAYMENTS,DISCOUNT STORES,GPC
WALSALL COUNCIL,http://opendatacommunities.org/id/metropolitan-district-council/walsall ,30/09/2021,RESOURCES AND TRANSFORMATION,BLAKEMORE FOODSERVICE,12/07/2021,H59620210714CHPNONMHW-1,4.20,CATERING - SCHOOLS-FOOD & DRINK SUPPLIES,CATERERS,GPC
WALSALL COUNCIL,http://opendatacommunities.org/id/metropolitan-district-council/walsall ,30/09/2021,ECONOMY & ENVIRONMENT,MIDLANDNEWS.COM,12/07/2021,H59620210714CXRXQHSOS-1,55.20,DEVELOPMENT MANAGEMENT-SUBSCRIPTIONS,NEWS DEALERS AND NEWSSTANDS,GPC
WALSALL COUNCIL,http://opendatacommunities.org/id/metropolitan-district-council/walsall ,30/09/2021,CHILDRENS SERVICES,AMZNMKTPLACE,12/07/2021,H59620210714DJIRCPBUS-1,6.75,SCIENCE-MATERIALS,MISCELLANEOUS AND SPECIALTY RETAIL STORES,GPC
WALSALL COUNCIL,http://opendatacommunities.org/id/metropolitan-district-council/walsall ,30/09/2021,CHILDRENS SERVICES,CURRYS,12/07/2021,H59620210714DPLIVHTTT-1,32.99,EDGE OF CARE TEAM-MATERIALS,ELECTRONIC SALES,GPC
WALSALL COUNCIL,http://opendatacommunities.org/id/metropolitan-district-council/walsall ,30/09/2021,CHILDRENS SERVICES,IRISPAY,12/07/2021,H59620210714ECBTUEESQ-1,15.00,REDRUTH ROAD-FOOD & DRINK SUPPLIES,OTHER SCHOOLS AND EDUCATIONAL SERVICES,GPC
WALSALL COUNCIL,http://opendatacommunities.org/id/metropolitan-district-council/walsall ,30/09/2021,RESOURCES AND TRANSFORMATION,BLAKEMORE FOODSERVICE,12/07/2021,H59620210714EIAXFVHQU-1,272.17,CATERING - SCHOOLS-FOOD & DRINK SUPPLIES,CATERERS,GPC
WALSALL COUNCIL,http://opendatacommunities.org/id/metropolitan-district-council/walsall ,30/09/2021,RESOURCES AND TRANSFORMATION,BLAKEMORE FOODSERVICE,12/07/2021,H59620210714EIAXFVHQU-2,20.30,CATERING - SCHOOLS-FOOD & DRINK SUPPLIES,CATERERS,GPC
WALSALL COUNCIL,http://opendatacommunities.org/id/metropolitan-district-council/walsall ,30/09/2021,RESOURCES AND TRANSFORMATION,BLAKEMORE FOODSERVICE,12/07/2021,H59620210714FBDMFDQGX-1,24.36,CATERING - SCHOOLS-FOOD & DRINK SUPPLIES,CATERERS,GPC
WALSALL COUNCIL,http://opendatacommunities.org/id/metropolitan-district-council/walsall ,30/09/2021,RESOURCES AND TRANSFORMATION,ONE STOP 5038,12/07/2021,H59620210714FJRXFZWLT-1,3.00,CATERING - SCHOOLS-FOOD & DRINK SUPPLIES,GROCERY STORES AND SUPERMARKETS,GPC
WALSALL COUNCIL,http://opendatacommunities.org/id/metropolitan-district-council/walsall ,30/09/2021,CHILDRENS SERVICES,WEST MIDLANDS TRAV,12/07/2021,H59620210714FRJMUYYMD-1,5.00,PUPIL PREMIUM-MATERIALS,BUS LINES,GPC
WALSALL COUNCIL,http://opendatacommunities.org/id/metropolitan-district-council/walsall ,30/09/2021,ECONOMY & ENVIRONMENT,DVLA VEHICLE TAX,12/07/2021,H59620210714FRPRXUOPM-1,302.50,FLEET-LICENCES FOR VEHICLES,TAX PAYMENTS,GPC
WALSALL COUNCIL,http://opendatacommunities.org/id/metropolitan-district-council/walsall ,30/09/2021,CHILDRENS SERVICES,TESCO STORES 6161,12/07/2021,H59620210714GFFPQBTNG-1,10.81,FOOD TECHNOLOGY/HOSPITALITY-MATERIALS,GROCERY STORES AND SUPERMARKETS,GPC
WALSALL COUNCIL,http://opendatacommunities.org/id/metropolitan-district-council/walsall ,30/09/2021,CHILDRENS SERVICES,ALDI 772 129,12/07/2021,H59620210714GOXGSMDOV-1,13.55,"43A HILTON ROAD, WILLENHALL-FOOD & DRINK SUPPLIES",GROCERY STORES AND SUPERMARKETS,GPC
WALSALL COUNCIL,http://opendatacommunities.org/id/metropolitan-district-council/walsall ,30/09/2021,ECONOMY & ENVIRONMENT,WWW.BANNERUK.COM,12/07/2021,H59620210714HEAHMQUUO-1,12.07,CEMETERIES-STATIONERY & GENERAL OFFICE SU,"STATIONERY, OFFICE SUPPLIES AND WRITING PAPER",GPC
WALSALL COUNCIL,http://opendatacommunities.org/id/metropolitan-district-council/walsall ,30/09/2021,CHILDRENS SERVICES,FAST KEY SERVICES LIMI,12/07/2021,H59620210714HFUCDVOSN-1,4.34,HOME TO SCHOOL TRANSPORT-PROFESSIONAL SERVICES-PRIV CON,OTHER BUSINESS SERVICES,GPC
WALSALL COUNCIL,http://opendatacommunities.org/id/metropolitan-district-council/walsall ,30/09/2021,CHILDRENS SERVICES,ASDA SUPERSTORE,12/07/2021,H59620210714HGEJUHPKP-1,20.58,CONTINGENCY-PURCHASE OF FURNITURE & EQUIPM,GROCERY STORES AND SUPERMARKETS,GPC
WALSALL COUNCIL,http://opendatacommunities.org/id/metropolitan-district-council/walsall ,30/09/2021,CHILDRENS SERVICES,W M MORRISON STORE,12/07/2021,H59620210714HMDBJICUP-1,10.00,REDRUTH ROAD-PURCHASE OF FURNITURE & EQUIPM,GROCERY STORES AND SUPERMARKETS,GPC
WALSALL COUNCIL,http://opendatacommunities.org/id/metropolitan-district-council/walsall ,30/09/2021,ECONOMY & ENVIRONMENT,DVLA VEHICLE TAX,12/07/2021,H59620210714HORGBJXQB-1,277.50,FLEET-LICENCES FOR VEHICLES,TAX PAYMENTS,GPC
WALSALL COUNCIL,http://opendatacommunities.org/id/metropolitan-district-council/walsall ,30/09/2021,CHILDRENS SERVICES,WWW.BANNERUK.COM,12/07/2021,H59620210714HWFBFGPST-1,37.12,BLUEBELLS-STATIONERY & GENERAL OFFICE SU,"STATIONERY, OFFICE SUPPLIES AND WRITING PAPER",GPC
WALSALL COUNCIL,http://opendatacommunities.org/id/metropolitan-district-council/walsall ,30/09/2021,RESOURCES AND TRANSFORMATION,BLAKEMORE FOODSERVICE,12/07/2021,H59620210714HWGFUXXHE-1,47.27,CATERING - SCHOOLS-FOOD & DRINK SUPPLIES,CATERERS,GPC
WALSALL COUNCIL,http://opendatacommunities.org/id/metropolitan-district-council/walsall ,30/09/2021,CHILDRENS SERVICES,TESCO STORES 6161,12/07/2021,H59620210714HXUDYXVFW-1,10.00,ELMWOOD SCHOOL-FOOD & DRINK SUPPLIES,GROCERY STORES AND SUPERMARKETS,GPC
WALSALL COUNCIL,http://opendatacommunities.org/id/metropolitan-district-council/walsall ,30/09/2021,CHILDRENS SERVICES,TESCO STORES 6161,12/07/2021,H59620210714HXUDYXVFW-2,32.30,ELMWOOD SCHOOL-FOOD & DRINK SUPPLIES,GROCERY STORES AND SUPERMARKETS,GPC
WALSALL COUNCIL,http://opendatacommunities.org/id/metropolitan-district-council/walsall ,30/09/2021,RESOURCES AND TRANSFORMATION,BLAKEMORE FOODSERVICE,12/07/2021,H59620210714IIDMOBVQO-1,549.01,CATERING - SCHOOLS-FOOD & DRINK SUPPLIES,CATERERS,GPC
WALSALL COUNCIL,http://opendatacommunities.org/id/metropolitan-district-council/walsall ,30/09/2021,RESOURCES AND TRANSFORMATION,BLAKEMORE FOODSERVICE,12/07/2021,H59620210714IIDMOBVQO-2,79.15,CATERING - SCHOOLS-FOOD & DRINK SUPPLIES,CATERERS,GPC
WALSALL COUNCIL,http://opendatacommunities.org/id/metropolitan-district-council/walsall ,30/09/2021,CHILDRENS SERVICES,AMAZON.CO.UK*WU2GU52M5,12/07/2021,H59620210714IKWTHTCAN-1,13.97,LEARNING ENVIRONMENT-MATERIALS,OTHER DIRECT MARKETING-OTHER DIRECT MARKETERS,GPC
WALSALL COUNCIL,http://opendatacommunities.org/id/metropolitan-district-council/walsall ,30/09/2021,CHILDRENS SERVICES,ASDA GROCERIES ONLINE,12/07/2021,H59620210714IPCIQSYNE-1,-0.76,BREAKFAST CLUB-FOOD & DRINK SUPPLIES,GROCERY STORES AND SUPERMARKETS,GPC
WALSALL COUNCIL,http://opendatacommunities.org/id/metropolitan-district-council/walsall ,30/09/2021,RESOURCES AND TRANSFORMATION,BLAKEMORE FOODSERVICE,12/07/2021,H59620210714ITBUOFLHE-1,18.19,CATERING - SCHOOLS-FOOD & DRINK SUPPLIES,CATERERS,GPC
WALSALL COUNCIL,http://opendatacommunities.org/id/metropolitan-district-council/walsall ,30/09/2021,RESOURCES AND TRANSFORMATION,BLAKEMORE FOODSERVICE,12/07/2021,H59620210714ITBUOFLHE-2,57.12,CATERING - SCHOOLS-FOOD & DRINK SUPPLIES,CATERERS,GPC
WALSALL COUNCIL,http://opendatacommunities.org/id/metropolitan-district-council/walsall ,30/09/2021,RESOURCES AND TRANSFORMATION,BLAKEMORE FOODSERVICE,12/07/2021,H59620210714IWYHLPZZP-1,7.42,CATERING - SCHOOLS-FOOD & DRINK SUPPLIES,CATERERS,GPC
WALSALL COUNCIL,http://opendatacommunities.org/id/metropolitan-district-council/walsall ,30/09/2021,RESOURCES AND TRANSFORMATION,AELP.ORG.UK,12/07/2021,H59620210714JCBBMJCMR-1,82.80,APPRENTICESHIP LEVY-EXTERNAL TRAINING,OTHER SCHOOLS AND EDUCATIONAL SERVICES,GPC
WALSALL COUNCIL,http://opendatacommunities.org/id/metropolitan-district-council/walsall ,30/09/2021,RESOURCES AND TRANSFORMATION,BLAKEMORE FOODSERVICE,12/07/2021,H59620210714JNUHIJSRV-1,43.92,CATERING - SCHOOLS-FOOD & DRINK SUPPLIES,CATERERS,GPC
WALSALL COUNCIL,http://opendatacommunities.org/id/metropolitan-district-council/walsall ,30/09/2021,CHILDRENS SERVICES,AMZNMKTPLACE,12/07/2021,H59620210714KJBESYODI-1,60.98,CHUCKERY PRIMARY SCHOOL-OPERATIONAL MAINTENANCE,MISCELLANEOUS AND SPECIALTY RETAIL STORES,GPC
WALSALL COUNCIL,http://opendatacommunities.org/id/metropolitan-district-council/walsall ,30/09/2021,RESOURCES AND TRANSFORMATION,BLAKEMORE FOODSERVICE,12/07/2021,H59620210714KQRWUBOFY-1,531.12,CATERING - SCHOOLS-FOOD & DRINK SUPPLIES,CATERERS,GPC
WALSALL COUNCIL,http://opendatacommunities.org/id/metropolitan-district-council/walsall ,30/09/2021,RESOURCES AND TRANSFORMATION,BLAKEMORE FOODSERVICE,12/07/2021,H59620210714KQRWUBOFY-2,19.84,CATERING - SCHOOLS-FOOD & DRINK SUPPLIES,CATERERS,GPC
WALSALL COUNCIL,http://opendatacommunities.org/id/metropolitan-district-council/walsall ,30/09/2021,CHILDRENS SERVICES,ASDA GROCERIES ONLINE,12/07/2021,H59620210714LDAZIETKR-1,43.60,BREAKFAST CLUB-FOOD & DRINK SUPPLIES,GROCERY STORES AND SUPERMARKETS,GPC
WALSALL COUNCIL,http://opendatacommunities.org/id/metropolitan-district-council/walsall ,30/09/2021,RESOURCES AND TRANSFORMATION,BLAKEMORE FOODSERVICE,12/07/2021,H59620210714LECVVDVSY-1,225.59,CATERING - SCHOOLS-FOOD & DRINK SUPPLIES,CATERERS,GPC
WALSALL COUNCIL,http://opendatacommunities.org/id/metropolitan-district-council/walsall ,30/09/2021,CHILDRENS SERVICES,W M MORRISONS.COM,12/07/2021,H59620210714LJBWYZFFM-1,72.94,PELSALL VILLAGE SCHOOL-FOOD & DRINK SUPPLIES,GROCERY STORES AND SUPERMARKETS,GPC
WALSALL COUNCIL,http://opendatacommunities.org/id/metropolitan-district-council/walsall ,30/09/2021,CHILDRENS SERVICES,W M MORRISONS.COM,12/07/2021,H59620210714LJBWYZFFM-2,41.52,PELSALL VILLAGE SCHOOL-FOOD & DRINK SUPPLIES,GROCERY STORES AND SUPERMARKETS,GPC
WALSALL COUNCIL,http://opendatacommunities.org/id/metropolitan-district-council/walsall ,30/09/2021,RESOURCES AND TRANSFORMATION,BLAKEMORE FOODSERVICE,12/07/2021,H59620210714LNFJTWTGG-1,92.40,CATERING - SCHOOLS-FOOD & DRINK SUPPLIES,CATERERS,GPC
WALSALL COUNCIL,http://opendatacommunities.org/id/metropolitan-district-council/walsall ,30/09/2021,RESOURCES AND TRANSFORMATION,BLAKEMORE FOODSERVICE,12/07/2021,H59620210714LNFJTWTGG-2,30.00,CATERING - SCHOOLS-FOOD & DRINK SUPPLIES,CATERERS,GPC
WALSALL COUNCIL,http://opendatacommunities.org/id/metropolitan-district-council/walsall ,30/09/2021,CHILDRENS SERVICES,QUADIENT UK LTD,12/07/2021,H59620210714LQQDXDFYD-1,275.98,SAFEGUARDING & FAMILY SUPPORT-STATIONERY & GENERAL OFFICE SU,"STATIONERY, OFFICE SUPPLIES AND WRITING PAPER",GPC
WALSALL COUNCIL,http://opendatacommunities.org/id/metropolitan-district-council/walsall ,30/09/2021,RESOURCES AND TRANSFORMATION,BLAKEMORE FOODSERVICE,12/07/2021,H59620210714LQWIXIGGB-1,328.63,CATERING - SCHOOLS-FOOD & DRINK SUPPLIES,CATERERS,GPC
WALSALL COUNCIL,http://opendatacommunities.org/id/metropolitan-district-council/walsall ,30/09/2021,RESOURCES AND TRANSFORMATION,BLAKEMORE FOODSERVICE,12/07/2021,H59620210714LQWIXIGGB-2,27.62,CATERING - SCHOOLS-FOOD & DRINK SUPPLIES,CATERERS,GPC
WALSALL COUNCIL,http://opendatacommunities.org/id/metropolitan-district-council/walsall ,30/09/2021,RESOURCES AND TRANSFORMATION,BLAKEMORE FOODSERVICE,12/07/2021,H59620210714LWALCGFZD-1,497.92,CATERING - SCHOOLS-FOOD & DRINK SUPPLIES,CATERERS,GPC
WALSALL COUNCIL,http://opendatacommunities.org/id/metropolitan-district-council/walsall ,30/09/2021,CHILDRENS SERVICES,HOME BARGAINS,12/07/2021,H59620210714MCKZNWOXB-1,7.96,REDRUTH ROAD-CLEANING MATERIALS,HARDWARE STORES,GPC
WALSALL COUNCIL,http://opendatacommunities.org/id/metropolitan-district-council/walsall ,30/09/2021,CHILDRENS SERVICES,GENERATION FLOORING,12/07/2021,H59620210714MFYFANCLA-1,399.27,SAFEGUARDING & FAMILY SUPPORT-PURCHASE OF FURNITURE & EQUIPM,FLOOR COVERING STORES,GPC
WALSALL COUNCIL,http://opendatacommunities.org/id/metropolitan-district-council/walsall ,30/09/2021,ECONOMY & ENVIRONMENT,DVLA VEHICLE TAX,12/07/2021,H59620210714MGCDIOIJG-1,277.50,FLEET-LICENCES FOR VEHICLES,TAX PAYMENTS,GPC
WALSALL COUNCIL,http://opendatacommunities.org/id/metropolitan-district-council/walsall ,30/09/2021,RESOURCES AND TRANSFORMATION,BLAKEMORE FOODSERVICE,12/07/2021,H59620210714MJNBAGQRT-1,584.33,CATERING - SCHOOLS-FOOD & DRINK SUPPLIES,CATERERS,GPC
WALSALL COUNCIL,http://opendatacommunities.org/id/metropolitan-district-council/walsall ,30/09/2021,RESOURCES AND TRANSFORMATION,BLAKEMORE FOODSERVICE,12/07/2021,H59620210714MJNBAGQRT-2,47.01,CATERING - SCHOOLS-FOOD & DRINK SUPPLIES,CATERERS,GPC
WALSALL COUNCIL,http://opendatacommunities.org/id/metropolitan-district-council/walsall ,30/09/2021,RESOURCES AND TRANSFORMATION,BLAKEMORE FOODSERVICE,12/07/2021,H59620210714MKQGPBFVP-1,28.44,CATERING - MANAGEMENT-FOOD & DRINK SUPPLIES,CATERERS,GPC
WALSALL COUNCIL,http://opendatacommunities.org/id/metropolitan-district-council/walsall ,30/09/2021,ECONOMY & ENVIRONMENT,DVLA VEHICLE TAX,12/07/2021,H59620210714MLXANILDZ-1,277.50,FLEET-LICENCES FOR VEHICLES,TAX PAYMENTS,GPC
WALSALL COUNCIL,http://opendatacommunities.org/id/metropolitan-district-council/walsall ,30/09/2021,ECONOMY & ENVIRONMENT,DVLA VEHICLE TAX,12/07/2021,H59620210714MXFURXQSM-1,277.50,FLEET-LICENCES FOR VEHICLES,TAX PAYMENTS,GPC
WALSALL COUNCIL,http://opendatacommunities.org/id/metropolitan-district-council/walsall ,30/09/2021,CHILDRENS SERVICES,HOTEL AT BOOKING.COM,12/07/2021,H59620210714MZMYVQDCV-1,36.17,BED & BREAKFAST PAYMENTS-BED & BREAKFAST PAYMENTS,"HOTELS, MOTELS, RESORTS",GPC
WALSALL COUNCIL,http://opendatacommunities.org/id/metropolitan-district-council/walsall ,30/09/2021,RESOURCES AND TRANSFORMATION,BLAKEMORE FOODSERVICE,12/07/2021,H59620210714NGYLCRCFM-1,38.38,CATERING - SCHOOLS-FOOD & DRINK SUPPLIES,CATERERS,GPC
WALSALL COUNCIL,http://opendatacommunities.org/id/metropolitan-district-council/walsall ,30/09/2021,ECONOMY & ENVIRONMENT,BAKER ROSS,12/07/2021,H59620210714NTAVSJXTM-1,33.32,LEATHER MUSEUM-MATERIALS,"ARTIST SUPPLY STORES, CRAFT SHOPS",GPC
WALSALL COUNCIL,http://opendatacommunities.org/id/metropolitan-district-council/walsall ,30/09/2021,CHILDRENS SERVICES,MCDONALDS,12/07/2021,H59620210714OUHJGGURR-1,3.18,EDGE OF CARE TEAM-FOOD & DRINK SUPPLIES,QUICK PAYMENT SERVICE-FAST-FOOD RESTAURANTS,GPC
WALSALL COUNCIL,http://opendatacommunities.org/id/metropolitan-district-council/walsall ,30/09/2021,ECONOMY & ENVIRONMENT,DVLA VEHICLE TAX,12/07/2021,H59620210714PQBIELMGW-1,167.50,FLEET-LICENCES FOR VEHICLES,TAX PAYMENTS,GPC
WALSALL COUNCIL,http://opendatacommunities.org/id/metropolitan-district-council/walsall ,30/09/2021,ECONOMY & ENVIRONMENT,DVLA VEHICLE TAX,12/07/2021,H59620210714PWCSIRGPM-1,277.50,FLEET-LICENCES FOR VEHICLES,TAX PAYMENTS,GPC
WALSALL COUNCIL,http://opendatacommunities.org/id/metropolitan-district-council/walsall ,30/09/2021,RESOURCES AND TRANSFORMATION,BLAKEMORE FOODSERVICE,12/07/2021,H59620210714QCDWLKDUU-1,348.22,CATERING - SCHOOLS-FOOD & DRINK SUPPLIES,CATERERS,GPC
WALSALL COUNCIL,http://opendatacommunities.org/id/metropolitan-district-council/walsall ,30/09/2021,CHILDRENS SERVICES,ALLPAY *ACCORD HOUSING AS,12/07/2021,H59620210714QGBUZWRGT-1,119.67,WALSALL CRISIS SUPPORT SCHEME-RENTS,"ORGANIZATIONS, CHARITABLE AND SOCIAL SERVICE",GPC
WALSALL COUNCIL,http://opendatacommunities.org/id/metropolitan-district-council/walsall ,30/09/2021,RESOURCES AND TRANSFORMATION,BLAKEMORE FOODSERVICE,12/07/2021,H59620210714QQEOBKKHG-1,-6.48,CATERING - SCHOOLS-FOOD & DRINK SUPPLIES,CATERERS,GPC
WALSALL COUNCIL,http://opendatacommunities.org/id/metropolitan-district-council/walsall ,30/09/2021,ECONOMY & ENVIRONMENT,DVLA VEHICLE TAX,12/07/2021,H59620210714SFRKSBHVU-1,167.50,FLEET-LICENCES FOR VEHICLES,TAX PAYMENTS,GPC
WALSALL COUNCIL,http://opendatacommunities.org/id/metropolitan-district-council/walsall ,30/09/2021,CHILDRENS SERVICES,POUNDLAND,12/07/2021,H59620210714SICECUXZP-1,7.00,EDGE OF CARE TEAM-FOOD & DRINK SUPPLIES,DISCOUNT STORES,GPC
WALSALL COUNCIL,http://opendatacommunities.org/id/metropolitan-district-council/walsall ,30/09/2021,CHILDRENS SERVICES,POUNDLAND,12/07/2021,H59620210714SICECUXZP-2,3.00,EDGE OF CARE TEAM-FOOD & DRINK SUPPLIES,DISCOUNT STORES,GPC
WALSALL COUNCIL,http://opendatacommunities.org/id/metropolitan-district-council/walsall ,30/09/2021,RESOURCES AND TRANSFORMATION,BLAKEMORE FOODSERVICE,12/07/2021,H59620210714SPNATLBWA-1,502.23,CATERING - SCHOOLS-FOOD & DRINK SUPPLIES,CATERERS,GPC
WALSALL COUNCIL,http://opendatacommunities.org/id/metropolitan-district-council/walsall ,30/09/2021,RESOURCES AND TRANSFORMATION,BLAKEMORE FOODSERVICE,12/07/2021,H59620210714SPNATLBWA-2,55.58,CATERING - SCHOOLS-FOOD & DRINK SUPPLIES,CATERERS,GPC
WALSALL COUNCIL,http://opendatacommunities.org/id/metropolitan-district-council/walsall ,30/09/2021,CHILDRENS SERVICES,MCDONALDS,12/07/2021,H59620210714TMXRDADYB-1,5.29,EDGE OF CARE TEAM-FOOD & DRINK SUPPLIES,QUICK PAYMENT SERVICE-FAST-FOOD RESTAURANTS,GPC
WALSALL COUNCIL,http://opendatacommunities.org/id/metropolitan-district-council/walsall ,30/09/2021,RESOURCES AND TRANSFORMATION,BLAKEMORE FOODSERVICE,12/07/2021,H59620210714TXKPGPFUR-1,308.40,CATERING - SCHOOLS-FOOD & DRINK SUPPLIES,CATERERS,GPC
WALSALL COUNCIL,http://opendatacommunities.org/id/metropolitan-district-council/walsall ,30/09/2021,RESOURCES AND TRANSFORMATION,BLAKEMORE FOODSERVICE,12/07/2021,H59620210714TXKPGPFUR-2,19.84,CATERING - SCHOOLS-FOOD & DRINK SUPPLIES,CATERERS,GPC
